Organisation Name,Organisation Code,Unique Ref No,Effective Date,Directorate,Supplier Name ,Payment Date,Net Amount,Purpose of spend,"Procurement Classification
(Higher Level)","Procurement Classification
(Lower Level)","CAPITAL / 
REVENUE"
Walsall Council,http://opendatacommunities.org/id/metropolitan-district-council/walsall ,WC161-1,30.04.24,CHILDRENS,100GREEN - GREEN ENERGY (UK) PLC,09/04/2024,318.72,6222-Operational Maintenance,PREMISES,REPAIRS & MAINTENANCE,REVENUE
Walsall Council,http://opendatacommunities.org/id/metropolitan-district-council/walsall ,WC161-2,30.04.24,RESOURCES AND TRANSFORMATION,11KBW,02/04/2024,325.00,6610-School Only Payments - Catering,THIRD PARTY PAYMENTS,INDEPENDENT UNIT WITHIN COUNCIL,REVENUE
Walsall Council,http://opendatacommunities.org/id/metropolitan-district-council/walsall ,WC161-3,30.04.24,RESOURCES AND TRANSFORMATION,11KBW,04/04/2024,"7,965.00",6610-External Legal Fees,SUPPLIES & SERVICES,SERVICES,REVENUE
Walsall Council,http://opendatacommunities.org/id/metropolitan-district-council/walsall ,WC161-4,30.04.24,RESOURCES AND TRANSFORMATION,11KBW,04/04/2024,"2,175.00",6610-External Legal Fees,SUPPLIES & SERVICES,SERVICES,REVENUE
Walsall Council,http://opendatacommunities.org/id/metropolitan-district-council/walsall ,WC161-5,30.04.24,CHILDRENS,1ST STAFF LTD,10/04/2024,"2,880.00",1220-Professional Fees & Services,SUPPLIES & SERVICES,SERVICES,REVENUE
Walsall Council,http://opendatacommunities.org/id/metropolitan-district-council/walsall ,WC161-6,30.04.24,CHILDRENS,1ST STAFF LTD,10/04/2024,"3,600.00",1220-Professional Fees & Services,SUPPLIES & SERVICES,SERVICES,REVENUE
Walsall Council,http://opendatacommunities.org/id/metropolitan-district-council/walsall ,WC161-7,30.04.24,CHILDRENS,247 CARS (WILLENHALL) LIMITED,22/04/2024,665.00,6241-Hire of Vehicle with Driver,TRANSPORT,DIRECT TRANSPORT COSTS,REVENUE
Walsall Council,http://opendatacommunities.org/id/metropolitan-district-council/walsall ,WC161-8,30.04.24,CHILDRENS,247 CARS (WILLENHALL) LIMITED,22/04/2024,"1,136.00",6241-Hire of Vehicle with Driver,TRANSPORT,DIRECT TRANSPORT COSTS,REVENUE
Walsall Council,http://opendatacommunities.org/id/metropolitan-district-council/walsall ,WC161-9,30.04.24,CHILDRENS,247 CARS (WILLENHALL) LIMITED,22/04/2024,"1,136.00",6241-Hire of Vehicle with Driver,TRANSPORT,DIRECT TRANSPORT COSTS,REVENUE
Walsall Council,http://opendatacommunities.org/id/metropolitan-district-council/walsall ,WC161-10,30.04.24,CHILDRENS,247 CARS (WILLENHALL) LIMITED,22/04/2024,"1,136.00",6241-Hire of Vehicle with Driver,TRANSPORT,DIRECT TRANSPORT COSTS,REVENUE
Walsall Council,http://opendatacommunities.org/id/metropolitan-district-council/walsall ,WC161-11,30.04.24,CHILDRENS,247 CARS (WILLENHALL) LIMITED,22/04/2024,"1,136.00",6241-Hire of Vehicle with Driver,TRANSPORT,DIRECT TRANSPORT COSTS,REVENUE
Walsall Council,http://opendatacommunities.org/id/metropolitan-district-council/walsall ,WC161-12,30.04.24,CHILDRENS,247 CARS (WILLENHALL) LIMITED,22/04/2024,800.00,6241-Hire of Vehicle with Driver,TRANSPORT,DIRECT TRANSPORT COSTS,REVENUE
Walsall Council,http://opendatacommunities.org/id/metropolitan-district-council/walsall ,WC161-13,30.04.24,CHILDRENS,247 CARS (WILLENHALL) LIMITED,22/04/2024,"1,301.30",6241-Hire of Vehicle with Driver,TRANSPORT,DIRECT TRANSPORT COSTS,REVENUE
Walsall Council,http://opendatacommunities.org/id/metropolitan-district-council/walsall ,WC161-14,30.04.24,CHILDRENS,247 CARS (WILLENHALL) LIMITED,22/04/2024,"1,411.00",6241-Hire of Vehicle with Driver,TRANSPORT,DIRECT TRANSPORT COSTS,REVENUE
Walsall Council,http://opendatacommunities.org/id/metropolitan-district-council/walsall ,WC161-15,30.04.24,CHILDRENS,247 CARS (WILLENHALL) LIMITED,22/04/2024,282.72,6241-Hire of Vehicle with Driver,TRANSPORT,DIRECT TRANSPORT COSTS,REVENUE
Walsall Council,http://opendatacommunities.org/id/metropolitan-district-council/walsall ,WC161-16,30.04.24,CHILDRENS,247 CARS (WILLENHALL) LIMITED,22/04/2024,888.50,6241-Hire of Vehicle with Driver,TRANSPORT,DIRECT TRANSPORT COSTS,REVENUE
Walsall Council,http://opendatacommunities.org/id/metropolitan-district-council/walsall ,WC161-17,30.04.24,CHILDRENS,247 CARS (WILLENHALL) LIMITED,22/04/2024,888.50,6241-Hire of Vehicle with Driver,TRANSPORT,DIRECT TRANSPORT COSTS,REVENUE
Walsall Council,http://opendatacommunities.org/id/metropolitan-district-council/walsall ,WC161-18,30.04.24,CHILDRENS,247 CARS (WILLENHALL) LIMITED,22/04/2024,960.00,6241-Hire of Vehicle with Driver,TRANSPORT,DIRECT TRANSPORT COSTS,REVENUE
Walsall Council,http://opendatacommunities.org/id/metropolitan-district-council/walsall ,WC161-19,30.04.24,CHILDRENS,247 CARS (WILLENHALL) LIMITED,22/04/2024,925.00,6241-Hire of Vehicle with Driver,TRANSPORT,DIRECT TRANSPORT COSTS,REVENUE
Walsall Council,http://opendatacommunities.org/id/metropolitan-district-council/walsall ,WC161-20,30.04.24,CHILDRENS,247 CARS (WILLENHALL) LIMITED,22/04/2024,925.00,6241-Hire of Vehicle with Driver,TRANSPORT,DIRECT TRANSPORT COSTS,REVENUE
Walsall Council,http://opendatacommunities.org/id/metropolitan-district-council/walsall ,WC161-21,30.04.24,CHILDRENS,247 CARS (WILLENHALL) LIMITED,22/04/2024,"1,136.00",6241-Hire of Vehicle with Driver,TRANSPORT,DIRECT TRANSPORT COSTS,REVENUE
Walsall Council,http://opendatacommunities.org/id/metropolitan-district-council/walsall ,WC161-22,30.04.24,CHILDRENS,247 CARS (WILLENHALL) LIMITED,22/04/2024,"1,200.00",6241-Hire of Vehicle with Driver,TRANSPORT,DIRECT TRANSPORT COSTS,REVENUE
Walsall Council,http://opendatacommunities.org/id/metropolitan-district-council/walsall ,WC161-23,30.04.24,CHILDRENS,247 CARS (WILLENHALL) LIMITED,22/04/2024,"1,200.30",6241-Hire of Vehicle with Driver,TRANSPORT,DIRECT TRANSPORT COSTS,REVENUE
Walsall Council,http://opendatacommunities.org/id/metropolitan-district-council/walsall ,WC161-24,30.04.24,CHILDRENS,247 CARS (WILLENHALL) LIMITED,22/04/2024,"1,658.30",6241-Hire of Vehicle with Driver,TRANSPORT,DIRECT TRANSPORT COSTS,REVENUE
Walsall Council,http://opendatacommunities.org/id/metropolitan-district-council/walsall ,WC161-25,30.04.24,CHILDRENS,247 CARS (WILLENHALL) LIMITED,22/04/2024,"1,810.70",6241-Hire of Vehicle with Driver,TRANSPORT,DIRECT TRANSPORT COSTS,REVENUE
Walsall Council,http://opendatacommunities.org/id/metropolitan-district-council/walsall ,WC161-26,30.04.24,CHILDRENS,247 CARS (WILLENHALL) LIMITED,22/04/2024,"1,249.00",6241-Hire of Vehicle with Driver,TRANSPORT,DIRECT TRANSPORT COSTS,REVENUE
Walsall Council,http://opendatacommunities.org/id/metropolitan-district-council/walsall ,WC161-27,30.04.24,CHILDRENS,247 CARS (WILLENHALL) LIMITED,22/04/2024,"1,007.60",6241-Hire of Vehicle with Driver,TRANSPORT,DIRECT TRANSPORT COSTS,REVENUE
Walsall Council,http://opendatacommunities.org/id/metropolitan-district-council/walsall ,WC161-28,30.04.24,CHILDRENS,247 CARS (WILLENHALL) LIMITED,22/04/2024,"1,218.50",6241-Hire of Vehicle with Driver,TRANSPORT,DIRECT TRANSPORT COSTS,REVENUE
Walsall Council,http://opendatacommunities.org/id/metropolitan-district-council/walsall ,WC161-29,30.04.24,CHILDRENS,247 CARS (WILLENHALL) LIMITED,22/04/2024,"1,136.00",6241-Hire of Vehicle with Driver,TRANSPORT,DIRECT TRANSPORT COSTS,REVENUE
Walsall Council,http://opendatacommunities.org/id/metropolitan-district-council/walsall ,WC161-30,30.04.24,CHILDRENS,247 CARS (WILLENHALL) LIMITED,22/04/2024,"1,136.00",6241-Hire of Vehicle with Driver,TRANSPORT,DIRECT TRANSPORT COSTS,REVENUE
Walsall Council,http://opendatacommunities.org/id/metropolitan-district-council/walsall ,WC161-31,30.04.24,CHILDRENS,247 CARS (WILLENHALL) LIMITED,22/04/2024,"1,136.00",6241-Hire of Vehicle with Driver,TRANSPORT,DIRECT TRANSPORT COSTS,REVENUE
Walsall Council,http://opendatacommunities.org/id/metropolitan-district-council/walsall ,WC161-32,30.04.24,CHILDRENS,247 CARS (WILLENHALL) LIMITED,22/04/2024,745.80,6241-Hire of Vehicle with Driver,TRANSPORT,DIRECT TRANSPORT COSTS,REVENUE
Walsall Council,http://opendatacommunities.org/id/metropolitan-district-council/walsall ,WC161-33,30.04.24,CHILDRENS,247 CARS (WILLENHALL) LIMITED,22/04/2024,480.60,6241-Hire of Vehicle with Driver,TRANSPORT,DIRECT TRANSPORT COSTS,REVENUE
Walsall Council,http://opendatacommunities.org/id/metropolitan-district-council/walsall ,WC161-34,30.04.24,CHILDRENS,247 CARS (WILLENHALL) LIMITED,22/04/2024,"2,040.00",6241-Hire of Vehicle with Driver,TRANSPORT,DIRECT TRANSPORT COSTS,REVENUE
Walsall Council,http://opendatacommunities.org/id/metropolitan-district-council/walsall ,WC161-35,30.04.24,CHILDRENS,247 CARS (WILLENHALL) LIMITED,22/04/2024,"1,277.00",6241-Hire of Vehicle with Driver,TRANSPORT,DIRECT TRANSPORT COSTS,REVENUE
Walsall Council,http://opendatacommunities.org/id/metropolitan-district-council/walsall ,WC161-36,30.04.24,CHILDRENS,247 CARS (WILLENHALL) LIMITED,22/04/2024,925.00,6241-Hire of Vehicle with Driver,TRANSPORT,DIRECT TRANSPORT COSTS,REVENUE
Walsall Council,http://opendatacommunities.org/id/metropolitan-district-council/walsall ,WC161-37,30.04.24,CHILDRENS,247 CARS (WILLENHALL) LIMITED,22/04/2024,"1,136.00",6241-Hire of Vehicle with Driver,TRANSPORT,DIRECT TRANSPORT COSTS,REVENUE
Walsall Council,http://opendatacommunities.org/id/metropolitan-district-council/walsall ,WC161-38,30.04.24,CHILDRENS,247 CARS (WILLENHALL) LIMITED,22/04/2024,"1,057.30",6241-Hire of Vehicle with Driver,TRANSPORT,DIRECT TRANSPORT COSTS,REVENUE
Walsall Council,http://opendatacommunities.org/id/metropolitan-district-council/walsall ,WC161-39,30.04.24,CHILDRENS,247 CARS (WILLENHALL) LIMITED,22/04/2024,946.00,6241-Hire of Vehicle with Driver,TRANSPORT,DIRECT TRANSPORT COSTS,REVENUE
Walsall Council,http://opendatacommunities.org/id/metropolitan-district-council/walsall ,WC161-40,30.04.24,CHILDRENS,247 CARS (WILLENHALL) LIMITED,22/04/2024,"1,095.80",6241-Hire of Vehicle with Driver,TRANSPORT,DIRECT TRANSPORT COSTS,REVENUE
Walsall Council,http://opendatacommunities.org/id/metropolitan-district-council/walsall ,WC161-41,30.04.24,CHILDRENS,247 CARS (WILLENHALL) LIMITED,22/04/2024,"1,266.30",6241-Hire of Vehicle with Driver,TRANSPORT,DIRECT TRANSPORT COSTS,REVENUE
Walsall Council,http://opendatacommunities.org/id/metropolitan-district-council/walsall ,WC161-42,30.04.24,CHILDRENS,247 CARS (WILLENHALL) LIMITED,22/04/2024,890.00,6241-Hire of Vehicle with Driver,TRANSPORT,DIRECT TRANSPORT COSTS,REVENUE
Walsall Council,http://opendatacommunities.org/id/metropolitan-district-council/walsall ,WC161-43,30.04.24,CHILDRENS,247 CARS (WILLENHALL) LIMITED,22/04/2024,"1,514.30",6241-Hire of Vehicle with Driver,TRANSPORT,DIRECT TRANSPORT COSTS,REVENUE
Walsall Council,http://opendatacommunities.org/id/metropolitan-district-council/walsall ,WC161-44,30.04.24,CHILDRENS,247 CARS (WILLENHALL) LIMITED,22/04/2024,431.75,6241-Hire of Vehicle with Driver,TRANSPORT,DIRECT TRANSPORT COSTS,REVENUE
Walsall Council,http://opendatacommunities.org/id/metropolitan-district-council/walsall ,WC161-45,30.04.24,CHILDRENS,247 CARS (WILLENHALL) LIMITED,22/04/2024,"1,136.00",6241-Hire of Vehicle with Driver,TRANSPORT,DIRECT TRANSPORT COSTS,REVENUE
Walsall Council,http://opendatacommunities.org/id/metropolitan-district-council/walsall ,WC161-46,30.04.24,CHILDRENS,247 CARS (WILLENHALL) LIMITED,22/04/2024,"1,070.00",6241-Hire of Vehicle with Driver,TRANSPORT,DIRECT TRANSPORT COSTS,REVENUE
Walsall Council,http://opendatacommunities.org/id/metropolitan-district-council/walsall ,WC161-47,30.04.24,CHILDRENS,247 CARS (WILLENHALL) LIMITED,22/04/2024,"1,030.00",6241-Hire of Vehicle with Driver,TRANSPORT,DIRECT TRANSPORT COSTS,REVENUE
Walsall Council,http://opendatacommunities.org/id/metropolitan-district-council/walsall ,WC161-48,30.04.24,CHILDRENS,247 CARS (WILLENHALL) LIMITED,22/04/2024,845.00,6241-Hire of Vehicle with Driver,TRANSPORT,DIRECT TRANSPORT COSTS,REVENUE
Walsall Council,http://opendatacommunities.org/id/metropolitan-district-council/walsall ,WC161-49,30.04.24,CHILDRENS,247 CARS (WILLENHALL) LIMITED,22/04/2024,740.80,6241-Hire of Vehicle with Driver,TRANSPORT,DIRECT TRANSPORT COSTS,REVENUE
Walsall Council,http://opendatacommunities.org/id/metropolitan-district-council/walsall ,WC161-50,30.04.24,CHILDRENS,247 CARS (WILLENHALL) LIMITED,22/04/2024,"1,311.00",6241-Hire of Vehicle with Driver,TRANSPORT,DIRECT TRANSPORT COSTS,REVENUE
Walsall Council,http://opendatacommunities.org/id/metropolitan-district-council/walsall ,WC161-51,30.04.24,CHILDRENS,247 CARS (WILLENHALL) LIMITED,22/04/2024,800.00,6241-Hire of Vehicle with Driver,TRANSPORT,DIRECT TRANSPORT COSTS,REVENUE
Walsall Council,http://opendatacommunities.org/id/metropolitan-district-council/walsall ,WC161-52,30.04.24,CHILDRENS,247 CARS (WILLENHALL) LIMITED,22/04/2024,"1,340.10",6241-Hire of Vehicle with Driver,TRANSPORT,DIRECT TRANSPORT COSTS,REVENUE
Walsall Council,http://opendatacommunities.org/id/metropolitan-district-council/walsall ,WC161-53,30.04.24,CHILDRENS,247 CARS (WILLENHALL) LIMITED,03/04/2024,972.60,1220-Professional Fees & Services,SUPPLIES & SERVICES,SERVICES,REVENUE
Walsall Council,http://opendatacommunities.org/id/metropolitan-district-council/walsall ,WC161-54,30.04.24,CHILDRENS,247 CARS (WILLENHALL) LIMITED,04/04/2024,"1,613.10",1220-Professional Fees & Services,SUPPLIES & SERVICES,SERVICES,REVENUE
Walsall Council,http://opendatacommunities.org/id/metropolitan-district-council/walsall ,WC161-55,30.04.24,ADULT SOCIAL CARE,5 CARE SERVICES LTD,09/04/2024,756.00,6541-Domiciliary Care,THIRD PARTY PAYMENTS,PRIVATE CONTRACTOR,REVENUE
Walsall Council,http://opendatacommunities.org/id/metropolitan-district-council/walsall ,WC161-56,30.04.24,ADULT SOCIAL CARE,5 CARE SERVICES LTD,09/04/2024,283.50,6541-Domiciliary Care,THIRD PARTY PAYMENTS,PRIVATE CONTRACTOR,REVENUE
Walsall Council,http://opendatacommunities.org/id/metropolitan-district-council/walsall ,WC161-57,30.04.24,ADULT SOCIAL CARE,5 CARE SERVICES LTD,09/04/2024,648.00,6541-Domiciliary Care,THIRD PARTY PAYMENTS,PRIVATE CONTRACTOR,REVENUE
Walsall Council,http://opendatacommunities.org/id/metropolitan-district-council/walsall ,WC161-58,30.04.24,ADULT SOCIAL CARE,5 CARE SERVICES LTD,09/04/2024,567.00,6541-Domiciliary Care,THIRD PARTY PAYMENTS,PRIVATE CONTRACTOR,REVENUE
Walsall Council,http://opendatacommunities.org/id/metropolitan-district-council/walsall ,WC161-59,30.04.24,ADULT SOCIAL CARE,5 CARE SERVICES LTD,09/04/2024,567.00,6541-Domiciliary Care,THIRD PARTY PAYMENTS,PRIVATE CONTRACTOR,REVENUE
Walsall Council,http://opendatacommunities.org/id/metropolitan-district-council/walsall ,WC161-60,30.04.24,ADULT SOCIAL CARE,5 CARE SERVICES LTD,09/04/2024,567.00,6541-Domiciliary Care,THIRD PARTY PAYMENTS,PRIVATE CONTRACTOR,REVENUE
Walsall Council,http://opendatacommunities.org/id/metropolitan-district-council/walsall ,WC161-61,30.04.24,ADULT SOCIAL CARE,5 CARE SERVICES LTD,09/04/2024,504.00,6541-Domiciliary Care,THIRD PARTY PAYMENTS,PRIVATE CONTRACTOR,REVENUE
Walsall Council,http://opendatacommunities.org/id/metropolitan-district-council/walsall ,WC161-62,30.04.24,ADULT SOCIAL CARE,5 CARE SERVICES LTD,09/04/2024,567.00,6541-Domiciliary Care,THIRD PARTY PAYMENTS,PRIVATE CONTRACTOR,REVENUE
Walsall Council,http://opendatacommunities.org/id/metropolitan-district-council/walsall ,WC161-63,30.04.24,ADULT SOCIAL CARE,5 CARE SERVICES LTD,09/04/2024,567.00,6541-Domiciliary Care,THIRD PARTY PAYMENTS,PRIVATE CONTRACTOR,REVENUE
Walsall Council,http://opendatacommunities.org/id/metropolitan-district-council/walsall ,WC161-64,30.04.24,ADULT SOCIAL CARE,5 CARE SERVICES LTD,09/04/2024,567.00,6541-Domiciliary Care,THIRD PARTY PAYMENTS,PRIVATE CONTRACTOR,REVENUE
Walsall Council,http://opendatacommunities.org/id/metropolitan-district-council/walsall ,WC161-65,30.04.24,ADULT SOCIAL CARE,5 CARE SERVICES LTD,09/04/2024,360.00,6541-Domiciliary Care,THIRD PARTY PAYMENTS,PRIVATE CONTRACTOR,REVENUE
Walsall Council,http://opendatacommunities.org/id/metropolitan-district-council/walsall ,WC161-66,30.04.24,ADULT SOCIAL CARE,5 CARE SERVICES LTD,09/04/2024,774.00,6541-Domiciliary Care,THIRD PARTY PAYMENTS,PRIVATE CONTRACTOR,REVENUE
Walsall Council,http://opendatacommunities.org/id/metropolitan-district-council/walsall ,WC161-67,30.04.24,ADULT SOCIAL CARE,5 CARE SERVICES LTD,09/04/2024,630.00,6541-Domiciliary Care,THIRD PARTY PAYMENTS,PRIVATE CONTRACTOR,REVENUE
Walsall Council,http://opendatacommunities.org/id/metropolitan-district-council/walsall ,WC161-68,30.04.24,ADULT SOCIAL CARE,5 CARE SERVICES LTD,09/04/2024,567.00,6541-Domiciliary Care,THIRD PARTY PAYMENTS,PRIVATE CONTRACTOR,REVENUE
Walsall Council,http://opendatacommunities.org/id/metropolitan-district-council/walsall ,WC161-69,30.04.24,ADULT SOCIAL CARE,5 CARE SERVICES LTD,09/04/2024,283.50,6541-Domiciliary Care,THIRD PARTY PAYMENTS,PRIVATE CONTRACTOR,REVENUE
Walsall Council,http://opendatacommunities.org/id/metropolitan-district-council/walsall ,WC161-70,30.04.24,ADULT SOCIAL CARE,5 CARE SERVICES LTD,09/04/2024,486.00,6541-Domiciliary Care,THIRD PARTY PAYMENTS,PRIVATE CONTRACTOR,REVENUE
Walsall Council,http://opendatacommunities.org/id/metropolitan-district-council/walsall ,WC161-71,30.04.24,ADULT SOCIAL CARE,5 CARE SERVICES LTD,09/04/2024,-855.00,6541-Domiciliary Care,THIRD PARTY PAYMENTS,PRIVATE CONTRACTOR,REVENUE
Walsall Council,http://opendatacommunities.org/id/metropolitan-district-council/walsall ,WC161-72,30.04.24,ADULT SOCIAL CARE,5 CARE SERVICES LTD,09/04/2024,"-1,458.00",6541-Domiciliary Care,THIRD PARTY PAYMENTS,PRIVATE CONTRACTOR,REVENUE
Walsall Council,http://opendatacommunities.org/id/metropolitan-district-council/walsall ,WC161-73,30.04.24,ADULT SOCIAL CARE,5 CARE SERVICES LTD,09/04/2024,882.00,6541-Domiciliary Care,THIRD PARTY PAYMENTS,PRIVATE CONTRACTOR,REVENUE
Walsall Council,http://opendatacommunities.org/id/metropolitan-district-council/walsall ,WC161-74,30.04.24,ADULT SOCIAL CARE,5 CARE SERVICES LTD,09/04/2024,702.00,6541-Domiciliary Care,THIRD PARTY PAYMENTS,PRIVATE CONTRACTOR,REVENUE
Walsall Council,http://opendatacommunities.org/id/metropolitan-district-council/walsall ,WC161-75,30.04.24,ADULT SOCIAL CARE,5 CARE SERVICES LTD,09/04/2024,"1,386.00",6541-Domiciliary Care,THIRD PARTY PAYMENTS,PRIVATE CONTRACTOR,REVENUE
Walsall Council,http://opendatacommunities.org/id/metropolitan-district-council/walsall ,WC161-76,30.04.24,ADULT SOCIAL CARE,5 CARE SERVICES LTD,09/04/2024,324.00,6541-Domiciliary Care,THIRD PARTY PAYMENTS,PRIVATE CONTRACTOR,REVENUE
Walsall Council,http://opendatacommunities.org/id/metropolitan-district-council/walsall ,WC161-77,30.04.24,ADULT SOCIAL CARE,5 CARE SERVICES LTD,09/04/2024,324.00,6541-Domiciliary Care,THIRD PARTY PAYMENTS,PRIVATE CONTRACTOR,REVENUE
Walsall Council,http://opendatacommunities.org/id/metropolitan-district-council/walsall ,WC161-78,30.04.24,ADULT SOCIAL CARE,5 CARE SERVICES LTD,09/04/2024,283.50,6541-Domiciliary Care,THIRD PARTY PAYMENTS,PRIVATE CONTRACTOR,REVENUE
Walsall Council,http://opendatacommunities.org/id/metropolitan-district-council/walsall ,WC161-79,30.04.24,ADULT SOCIAL CARE,5 CARE SERVICES LTD,09/04/2024,819.00,6541-Domiciliary Care,THIRD PARTY PAYMENTS,PRIVATE CONTRACTOR,REVENUE
Walsall Council,http://opendatacommunities.org/id/metropolitan-district-council/walsall ,WC161-80,30.04.24,ADULT SOCIAL CARE,5 CARE SERVICES LTD,09/04/2024,567.00,6541-Domiciliary Care,THIRD PARTY PAYMENTS,PRIVATE CONTRACTOR,REVENUE
Walsall Council,http://opendatacommunities.org/id/metropolitan-district-council/walsall ,WC161-81,30.04.24,ADULT SOCIAL CARE,5 CARE SERVICES LTD,09/04/2024,256.50,6541-Domiciliary Care,THIRD PARTY PAYMENTS,PRIVATE CONTRACTOR,REVENUE
Walsall Council,http://opendatacommunities.org/id/metropolitan-district-council/walsall ,WC161-82,30.04.24,ADULT SOCIAL CARE,5 CARE SERVICES LTD,09/04/2024,630.00,6541-Domiciliary Care,THIRD PARTY PAYMENTS,PRIVATE CONTRACTOR,REVENUE
Walsall Council,http://opendatacommunities.org/id/metropolitan-district-council/walsall ,WC161-83,30.04.24,ADULT SOCIAL CARE,5 CARE SERVICES LTD,09/04/2024,378.00,6541-Domiciliary Care,THIRD PARTY PAYMENTS,PRIVATE CONTRACTOR,REVENUE
Walsall Council,http://opendatacommunities.org/id/metropolitan-district-council/walsall ,WC161-84,30.04.24,ADULT SOCIAL CARE,5 CARE SERVICES LTD,09/04/2024,472.50,6541-Domiciliary Care,THIRD PARTY PAYMENTS,PRIVATE CONTRACTOR,REVENUE
Walsall Council,http://opendatacommunities.org/id/metropolitan-district-council/walsall ,WC161-85,30.04.24,ADULT SOCIAL CARE,5 CARE SERVICES LTD,09/04/2024,981.00,6541-Domiciliary Care,THIRD PARTY PAYMENTS,PRIVATE CONTRACTOR,REVENUE
Walsall Council,http://opendatacommunities.org/id/metropolitan-district-council/walsall ,WC161-86,30.04.24,ADULT SOCIAL CARE,5 CARE SERVICES LTD,09/04/2024,405.00,6541-Domiciliary Care,THIRD PARTY PAYMENTS,PRIVATE CONTRACTOR,REVENUE
Walsall Council,http://opendatacommunities.org/id/metropolitan-district-council/walsall ,WC161-87,30.04.24,ADULT SOCIAL CARE,5 CARE SERVICES LTD,09/04/2024,283.50,6541-Domiciliary Care,THIRD PARTY PAYMENTS,PRIVATE CONTRACTOR,REVENUE
Walsall Council,http://opendatacommunities.org/id/metropolitan-district-council/walsall ,WC161-88,30.04.24,ADULT SOCIAL CARE,5 CARE SERVICES LTD,09/04/2024,756.00,6541-Domiciliary Care,THIRD PARTY PAYMENTS,PRIVATE CONTRACTOR,REVENUE
Walsall Council,http://opendatacommunities.org/id/metropolitan-district-council/walsall ,WC161-89,30.04.24,ADULT SOCIAL CARE,5 CARE SERVICES LTD,09/04/2024,774.00,6541-Domiciliary Care,THIRD PARTY PAYMENTS,PRIVATE CONTRACTOR,REVENUE
Walsall Council,http://opendatacommunities.org/id/metropolitan-district-council/walsall ,WC161-90,30.04.24,ADULT SOCIAL CARE,5 CARE SERVICES LTD,09/04/2024,630.00,6541-Domiciliary Care,THIRD PARTY PAYMENTS,PRIVATE CONTRACTOR,REVENUE
Walsall Council,http://opendatacommunities.org/id/metropolitan-district-council/walsall ,WC161-91,30.04.24,ADULT SOCIAL CARE,5 CARE SERVICES LTD,09/04/2024,567.00,6541-Domiciliary Care,THIRD PARTY PAYMENTS,PRIVATE CONTRACTOR,REVENUE
Walsall Council,http://opendatacommunities.org/id/metropolitan-district-council/walsall ,WC161-92,30.04.24,ADULT SOCIAL CARE,5 CARE SERVICES LTD,09/04/2024,504.00,6541-Domiciliary Care,THIRD PARTY PAYMENTS,PRIVATE CONTRACTOR,REVENUE
Walsall Council,http://opendatacommunities.org/id/metropolitan-district-council/walsall ,WC161-93,30.04.24,ADULT SOCIAL CARE,5 CARE SERVICES LTD,09/04/2024,567.00,6541-Domiciliary Care,THIRD PARTY PAYMENTS,PRIVATE CONTRACTOR,REVENUE
Walsall Council,http://opendatacommunities.org/id/metropolitan-district-council/walsall ,WC161-94,30.04.24,ADULT SOCIAL CARE,5 CARE SERVICES LTD,09/04/2024,567.00,6541-Domiciliary Care,THIRD PARTY PAYMENTS,PRIVATE CONTRACTOR,REVENUE
Walsall Council,http://opendatacommunities.org/id/metropolitan-district-council/walsall ,WC161-95,30.04.24,ADULT SOCIAL CARE,5 CARE SERVICES LTD,09/04/2024,567.00,6541-Domiciliary Care,THIRD PARTY PAYMENTS,PRIVATE CONTRACTOR,REVENUE
Walsall Council,http://opendatacommunities.org/id/metropolitan-district-council/walsall ,WC161-96,30.04.24,ADULT SOCIAL CARE,5 CARE SERVICES LTD,09/04/2024,567.00,6541-Domiciliary Care,THIRD PARTY PAYMENTS,PRIVATE CONTRACTOR,REVENUE
Walsall Council,http://opendatacommunities.org/id/metropolitan-district-council/walsall ,WC161-97,30.04.24,ADULT SOCIAL CARE,5 CARE SERVICES LTD,09/04/2024,630.00,6541-Domiciliary Care,THIRD PARTY PAYMENTS,PRIVATE CONTRACTOR,REVENUE
Walsall Council,http://opendatacommunities.org/id/metropolitan-district-council/walsall ,WC161-98,30.04.24,ADULT SOCIAL CARE,5 CARE SERVICES LTD,09/04/2024,"1,386.00",6541-Domiciliary Care,THIRD PARTY PAYMENTS,PRIVATE CONTRACTOR,REVENUE
Walsall Council,http://opendatacommunities.org/id/metropolitan-district-council/walsall ,WC161-99,30.04.24,ADULT SOCIAL CARE,5 CARE SERVICES LTD,09/04/2024,333.00,6541-Domiciliary Care,THIRD PARTY PAYMENTS,PRIVATE CONTRACTOR,REVENUE
Walsall Council,http://opendatacommunities.org/id/metropolitan-district-council/walsall ,WC161-100,30.04.24,ADULT SOCIAL CARE,5 CARE SERVICES LTD,09/04/2024,283.50,6541-Domiciliary Care,THIRD PARTY PAYMENTS,PRIVATE CONTRACTOR,REVENUE
Walsall Council,http://opendatacommunities.org/id/metropolitan-district-council/walsall ,WC161-101,30.04.24,ADULT SOCIAL CARE,5 CARE SERVICES LTD,09/04/2024,819.00,6541-Domiciliary Care,THIRD PARTY PAYMENTS,PRIVATE CONTRACTOR,REVENUE
Walsall Council,http://opendatacommunities.org/id/metropolitan-district-council/walsall ,WC161-102,30.04.24,ADULT SOCIAL CARE,5 CARE SERVICES LTD,09/04/2024,360.00,6541-Domiciliary Care,THIRD PARTY PAYMENTS,PRIVATE CONTRACTOR,REVENUE
Walsall Council,http://opendatacommunities.org/id/metropolitan-district-council/walsall ,WC161-103,30.04.24,ADULT SOCIAL CARE,5 CARE SERVICES LTD,09/04/2024,567.00,6541-Domiciliary Care,THIRD PARTY PAYMENTS,PRIVATE CONTRACTOR,REVENUE
Walsall Council,http://opendatacommunities.org/id/metropolitan-district-council/walsall ,WC161-104,30.04.24,ADULT SOCIAL CARE,5 CARE SERVICES LTD,09/04/2024,567.00,6541-Domiciliary Care,THIRD PARTY PAYMENTS,PRIVATE CONTRACTOR,REVENUE
Walsall Council,http://opendatacommunities.org/id/metropolitan-district-council/walsall ,WC161-105,30.04.24,ADULT SOCIAL CARE,5 CARE SERVICES LTD,09/04/2024,252.00,6541-Domiciliary Care,THIRD PARTY PAYMENTS,PRIVATE CONTRACTOR,REVENUE
Walsall Council,http://opendatacommunities.org/id/metropolitan-district-council/walsall ,WC161-106,30.04.24,ADULT SOCIAL CARE,5 CARE SERVICES LTD,09/04/2024,378.00,6541-Domiciliary Care,THIRD PARTY PAYMENTS,PRIVATE CONTRACTOR,REVENUE
Walsall Council,http://opendatacommunities.org/id/metropolitan-district-council/walsall ,WC161-107,30.04.24,ADULT SOCIAL CARE,5 CARE SERVICES LTD,09/04/2024,283.50,6541-Domiciliary Care,THIRD PARTY PAYMENTS,PRIVATE CONTRACTOR,REVENUE
Walsall Council,http://opendatacommunities.org/id/metropolitan-district-council/walsall ,WC161-108,30.04.24,ADULT SOCIAL CARE,5 CARE SERVICES LTD,09/04/2024,504.00,6541-Domiciliary Care,THIRD PARTY PAYMENTS,PRIVATE CONTRACTOR,REVENUE
Walsall Council,http://opendatacommunities.org/id/metropolitan-district-council/walsall ,WC161-109,30.04.24,ADULT SOCIAL CARE,5 CARE SERVICES LTD,09/04/2024,378.00,6541-Domiciliary Care,THIRD PARTY PAYMENTS,PRIVATE CONTRACTOR,REVENUE
Walsall Council,http://opendatacommunities.org/id/metropolitan-district-council/walsall ,WC161-110,30.04.24,ADULT SOCIAL CARE,5 CARE SERVICES LTD,09/04/2024,567.00,6541-Domiciliary Care,THIRD PARTY PAYMENTS,PRIVATE CONTRACTOR,REVENUE
Walsall Council,http://opendatacommunities.org/id/metropolitan-district-council/walsall ,WC161-111,30.04.24,ADULT SOCIAL CARE,5 CARE SERVICES LTD,09/04/2024,256.50,6541-Domiciliary Care,THIRD PARTY PAYMENTS,PRIVATE CONTRACTOR,REVENUE
Walsall Council,http://opendatacommunities.org/id/metropolitan-district-council/walsall ,WC161-112,30.04.24,ADULT SOCIAL CARE,5 CARE SERVICES LTD,09/04/2024,630.00,6541-Domiciliary Care,THIRD PARTY PAYMENTS,PRIVATE CONTRACTOR,REVENUE
Walsall Council,http://opendatacommunities.org/id/metropolitan-district-council/walsall ,WC161-113,30.04.24,ADULT SOCIAL CARE,5 CARE SERVICES LTD,09/04/2024,378.00,6541-Domiciliary Care,THIRD PARTY PAYMENTS,PRIVATE CONTRACTOR,REVENUE
Walsall Council,http://opendatacommunities.org/id/metropolitan-district-council/walsall ,WC161-114,30.04.24,ADULT SOCIAL CARE,5 CARE SERVICES LTD,09/04/2024,472.50,6541-Domiciliary Care,THIRD PARTY PAYMENTS,PRIVATE CONTRACTOR,REVENUE
Walsall Council,http://opendatacommunities.org/id/metropolitan-district-council/walsall ,WC161-115,30.04.24,ADULT SOCIAL CARE,5 CARE SERVICES LTD,09/04/2024,294.00,6541-Domiciliary Care,THIRD PARTY PAYMENTS,PRIVATE CONTRACTOR,REVENUE
Walsall Council,http://opendatacommunities.org/id/metropolitan-district-council/walsall ,WC161-116,30.04.24,ADULT SOCIAL CARE,5 CARE SERVICES LTD,09/04/2024,486.00,6541-Domiciliary Care,THIRD PARTY PAYMENTS,PRIVATE CONTRACTOR,REVENUE
Walsall Council,http://opendatacommunities.org/id/metropolitan-district-council/walsall ,WC161-117,30.04.24,ADULT SOCIAL CARE,5 CARE SERVICES LTD,09/04/2024,882.00,6541-Domiciliary Care,THIRD PARTY PAYMENTS,PRIVATE CONTRACTOR,REVENUE
Walsall Council,http://opendatacommunities.org/id/metropolitan-district-council/walsall ,WC161-118,30.04.24,ADULT SOCIAL CARE,5 CARE SERVICES LTD,09/04/2024,328.50,6541-Domiciliary Care,THIRD PARTY PAYMENTS,PRIVATE CONTRACTOR,REVENUE
Walsall Council,http://opendatacommunities.org/id/metropolitan-district-council/walsall ,WC161-119,30.04.24,ADULT SOCIAL CARE,5 CARE SERVICES LTD,22/04/2024,304.01,6541-Domiciliary Care,THIRD PARTY PAYMENTS,PRIVATE CONTRACTOR,REVENUE
Walsall Council,http://opendatacommunities.org/id/metropolitan-district-council/walsall ,WC161-120,30.04.24,ADULT SOCIAL CARE,5 CARE SERVICES LTD,22/04/2024,810.60,6541-Domiciliary Care,THIRD PARTY PAYMENTS,PRIVATE CONTRACTOR,REVENUE
Walsall Council,http://opendatacommunities.org/id/metropolitan-district-council/walsall ,WC161-121,30.04.24,ADULT SOCIAL CARE,5 CARE SERVICES LTD,22/04/2024,607.95,6541-Domiciliary Care,THIRD PARTY PAYMENTS,PRIVATE CONTRACTOR,REVENUE
Walsall Council,http://opendatacommunities.org/id/metropolitan-district-council/walsall ,WC161-122,30.04.24,ADULT SOCIAL CARE,5 CARE SERVICES LTD,22/04/2024,540.40,6541-Domiciliary Care,THIRD PARTY PAYMENTS,PRIVATE CONTRACTOR,REVENUE
Walsall Council,http://opendatacommunities.org/id/metropolitan-district-council/walsall ,WC161-123,30.04.24,ADULT SOCIAL CARE,5 CARE SERVICES LTD,22/04/2024,607.95,6541-Domiciliary Care,THIRD PARTY PAYMENTS,PRIVATE CONTRACTOR,REVENUE
Walsall Council,http://opendatacommunities.org/id/metropolitan-district-council/walsall ,WC161-124,30.04.24,ADULT SOCIAL CARE,5 CARE SERVICES LTD,22/04/2024,607.95,6541-Domiciliary Care,THIRD PARTY PAYMENTS,PRIVATE CONTRACTOR,REVENUE
Walsall Council,http://opendatacommunities.org/id/metropolitan-district-council/walsall ,WC161-125,30.04.24,ADULT SOCIAL CARE,5 CARE SERVICES LTD,22/04/2024,607.95,6541-Domiciliary Care,THIRD PARTY PAYMENTS,PRIVATE CONTRACTOR,REVENUE
Walsall Council,http://opendatacommunities.org/id/metropolitan-district-council/walsall ,WC161-126,30.04.24,ADULT SOCIAL CARE,5 CARE SERVICES LTD,22/04/2024,607.95,6541-Domiciliary Care,THIRD PARTY PAYMENTS,PRIVATE CONTRACTOR,REVENUE
Walsall Council,http://opendatacommunities.org/id/metropolitan-district-council/walsall ,WC161-127,30.04.24,ADULT SOCIAL CARE,5 CARE SERVICES LTD,22/04/2024,675.50,6541-Domiciliary Care,THIRD PARTY PAYMENTS,PRIVATE CONTRACTOR,REVENUE
Walsall Council,http://opendatacommunities.org/id/metropolitan-district-council/walsall ,WC161-128,30.04.24,ADULT SOCIAL CARE,5 CARE SERVICES LTD,22/04/2024,"-3,096.00",6541-Domiciliary Care,THIRD PARTY PAYMENTS,PRIVATE CONTRACTOR,REVENUE
Walsall Council,http://opendatacommunities.org/id/metropolitan-district-council/walsall ,WC161-129,30.04.24,ADULT SOCIAL CARE,5 CARE SERVICES LTD,22/04/2024,607.95,6541-Domiciliary Care,THIRD PARTY PAYMENTS,PRIVATE CONTRACTOR,REVENUE
Walsall Council,http://opendatacommunities.org/id/metropolitan-district-council/walsall ,WC161-130,30.04.24,ADULT SOCIAL CARE,5 CARE SERVICES LTD,22/04/2024,386.00,6541-Domiciliary Care,THIRD PARTY PAYMENTS,PRIVATE CONTRACTOR,REVENUE
Walsall Council,http://opendatacommunities.org/id/metropolitan-district-council/walsall ,WC161-131,30.04.24,ADULT SOCIAL CARE,5 CARE SERVICES LTD,22/04/2024,829.90,6541-Domiciliary Care,THIRD PARTY PAYMENTS,PRIVATE CONTRACTOR,REVENUE
Walsall Council,http://opendatacommunities.org/id/metropolitan-district-council/walsall ,WC161-132,30.04.24,ADULT SOCIAL CARE,5 CARE SERVICES LTD,22/04/2024,351.00,6541-Domiciliary Care,THIRD PARTY PAYMENTS,PRIVATE CONTRACTOR,REVENUE
Walsall Council,http://opendatacommunities.org/id/metropolitan-district-council/walsall ,WC161-133,30.04.24,ADULT SOCIAL CARE,5 CARE SERVICES LTD,22/04/2024,607.95,6541-Domiciliary Care,THIRD PARTY PAYMENTS,PRIVATE CONTRACTOR,REVENUE
Walsall Council,http://opendatacommunities.org/id/metropolitan-district-council/walsall ,WC161-134,30.04.24,ADULT SOCIAL CARE,5 CARE SERVICES LTD,22/04/2024,829.90,6541-Domiciliary Care,THIRD PARTY PAYMENTS,PRIVATE CONTRACTOR,REVENUE
Walsall Council,http://opendatacommunities.org/id/metropolitan-district-council/walsall ,WC161-135,30.04.24,ADULT SOCIAL CARE,5 CARE SERVICES LTD,22/04/2024,318.45,6541-Domiciliary Care,THIRD PARTY PAYMENTS,PRIVATE CONTRACTOR,REVENUE
Walsall Council,http://opendatacommunities.org/id/metropolitan-district-council/walsall ,WC161-136,30.04.24,ADULT SOCIAL CARE,5 CARE SERVICES LTD,22/04/2024,607.95,6541-Domiciliary Care,THIRD PARTY PAYMENTS,PRIVATE CONTRACTOR,REVENUE
Walsall Council,http://opendatacommunities.org/id/metropolitan-district-council/walsall ,WC161-137,30.04.24,ADULT SOCIAL CARE,5 CARE SERVICES LTD,22/04/2024,-432.00,6541-Domiciliary Care,THIRD PARTY PAYMENTS,PRIVATE CONTRACTOR,REVENUE
Walsall Council,http://opendatacommunities.org/id/metropolitan-district-council/walsall ,WC161-138,30.04.24,ADULT SOCIAL CARE,5 CARE SERVICES LTD,22/04/2024,270.20,6541-Domiciliary Care,THIRD PARTY PAYMENTS,PRIVATE CONTRACTOR,REVENUE
Walsall Council,http://opendatacommunities.org/id/metropolitan-district-council/walsall ,WC161-139,30.04.24,ADULT SOCIAL CARE,5 CARE SERVICES LTD,22/04/2024,393.50,6541-Domiciliary Care,THIRD PARTY PAYMENTS,PRIVATE CONTRACTOR,REVENUE
Walsall Council,http://opendatacommunities.org/id/metropolitan-district-council/walsall ,WC161-140,30.04.24,ADULT SOCIAL CARE,5 CARE SERVICES LTD,22/04/2024,521.10,6541-Domiciliary Care,THIRD PARTY PAYMENTS,PRIVATE CONTRACTOR,REVENUE
Walsall Council,http://opendatacommunities.org/id/metropolitan-district-council/walsall ,WC161-141,30.04.24,ADULT SOCIAL CARE,5 CARE SERVICES LTD,22/04/2024,"4,711.65",6541-Domiciliary Care,THIRD PARTY PAYMENTS,PRIVATE CONTRACTOR,REVENUE
Walsall Council,http://opendatacommunities.org/id/metropolitan-district-council/walsall ,WC161-142,30.04.24,ADULT SOCIAL CARE,5 CARE SERVICES LTD,22/04/2024,675.50,6541-Domiciliary Care,THIRD PARTY PAYMENTS,PRIVATE CONTRACTOR,REVENUE
Walsall Council,http://opendatacommunities.org/id/metropolitan-district-council/walsall ,WC161-143,30.04.24,ADULT SOCIAL CARE,5 CARE SERVICES LTD,22/04/2024,"1,486.10",6541-Domiciliary Care,THIRD PARTY PAYMENTS,PRIVATE CONTRACTOR,REVENUE
Walsall Council,http://opendatacommunities.org/id/metropolitan-district-council/walsall ,WC161-144,30.04.24,ADULT SOCIAL CARE,5 CARE SERVICES LTD,22/04/2024,347.40,6541-Domiciliary Care,THIRD PARTY PAYMENTS,PRIVATE CONTRACTOR,REVENUE
Walsall Council,http://opendatacommunities.org/id/metropolitan-district-council/walsall ,WC161-145,30.04.24,ADULT SOCIAL CARE,5 CARE SERVICES LTD,22/04/2024,304.01,6541-Domiciliary Care,THIRD PARTY PAYMENTS,PRIVATE CONTRACTOR,REVENUE
Walsall Council,http://opendatacommunities.org/id/metropolitan-district-council/walsall ,WC161-146,30.04.24,ADULT SOCIAL CARE,5 CARE SERVICES LTD,22/04/2024,878.15,6541-Domiciliary Care,THIRD PARTY PAYMENTS,PRIVATE CONTRACTOR,REVENUE
Walsall Council,http://opendatacommunities.org/id/metropolitan-district-council/walsall ,WC161-147,30.04.24,ADULT SOCIAL CARE,5 CARE SERVICES LTD,22/04/2024,945.70,6541-Domiciliary Care,THIRD PARTY PAYMENTS,PRIVATE CONTRACTOR,REVENUE
Walsall Council,http://opendatacommunities.org/id/metropolitan-district-council/walsall ,WC161-148,30.04.24,ADULT SOCIAL CARE,5 CARE SERVICES LTD,22/04/2024,352.24,6541-Domiciliary Care,THIRD PARTY PAYMENTS,PRIVATE CONTRACTOR,REVENUE
Walsall Council,http://opendatacommunities.org/id/metropolitan-district-council/walsall ,WC161-149,30.04.24,ADULT SOCIAL CARE,5 CARE SERVICES LTD,22/04/2024,607.95,6541-Domiciliary Care,THIRD PARTY PAYMENTS,PRIVATE CONTRACTOR,REVENUE
Walsall Council,http://opendatacommunities.org/id/metropolitan-district-council/walsall ,WC161-150,30.04.24,ADULT SOCIAL CARE,5 CARE SERVICES LTD,22/04/2024,275.06,6541-Domiciliary Care,THIRD PARTY PAYMENTS,PRIVATE CONTRACTOR,REVENUE
Walsall Council,http://opendatacommunities.org/id/metropolitan-district-council/walsall ,WC161-151,30.04.24,ADULT SOCIAL CARE,5 CARE SERVICES LTD,22/04/2024,675.50,6541-Domiciliary Care,THIRD PARTY PAYMENTS,PRIVATE CONTRACTOR,REVENUE
Walsall Council,http://opendatacommunities.org/id/metropolitan-district-council/walsall ,WC161-152,30.04.24,ADULT SOCIAL CARE,5 CARE SERVICES LTD,22/04/2024,405.30,6541-Domiciliary Care,THIRD PARTY PAYMENTS,PRIVATE CONTRACTOR,REVENUE
Walsall Council,http://opendatacommunities.org/id/metropolitan-district-council/walsall ,WC161-153,30.04.24,ADULT SOCIAL CARE,5 CARE SERVICES LTD,22/04/2024,506.66,6541-Domiciliary Care,THIRD PARTY PAYMENTS,PRIVATE CONTRACTOR,REVENUE
Walsall Council,http://opendatacommunities.org/id/metropolitan-district-council/walsall ,WC161-154,30.04.24,ADULT SOCIAL CARE,5 CARE SERVICES LTD,22/04/2024,315.21,6541-Domiciliary Care,THIRD PARTY PAYMENTS,PRIVATE CONTRACTOR,REVENUE
Walsall Council,http://opendatacommunities.org/id/metropolitan-district-council/walsall ,WC161-155,30.04.24,ADULT SOCIAL CARE,5 CARE SERVICES LTD,22/04/2024,810.60,6541-Domiciliary Care,THIRD PARTY PAYMENTS,PRIVATE CONTRACTOR,REVENUE
Walsall Council,http://opendatacommunities.org/id/metropolitan-district-council/walsall ,WC161-156,30.04.24,ADULT SOCIAL CARE,5 CARE SERVICES LTD,22/04/2024,304.01,6541-Domiciliary Care,THIRD PARTY PAYMENTS,PRIVATE CONTRACTOR,REVENUE
Walsall Council,http://opendatacommunities.org/id/metropolitan-district-council/walsall ,WC161-157,30.04.24,ADULT SOCIAL CARE,5 CARE SERVICES LTD,22/04/2024,607.95,6541-Domiciliary Care,THIRD PARTY PAYMENTS,PRIVATE CONTRACTOR,REVENUE
Walsall Council,http://opendatacommunities.org/id/metropolitan-district-council/walsall ,WC161-158,30.04.24,ADULT SOCIAL CARE,5 CARE SERVICES LTD,22/04/2024,607.95,6541-Domiciliary Care,THIRD PARTY PAYMENTS,PRIVATE CONTRACTOR,REVENUE
Walsall Council,http://opendatacommunities.org/id/metropolitan-district-council/walsall ,WC161-159,30.04.24,ADULT SOCIAL CARE,5 CARE SERVICES LTD,22/04/2024,386.00,6541-Domiciliary Care,THIRD PARTY PAYMENTS,PRIVATE CONTRACTOR,REVENUE
Walsall Council,http://opendatacommunities.org/id/metropolitan-district-council/walsall ,WC161-160,30.04.24,ADULT SOCIAL CARE,5 CARE SERVICES LTD,22/04/2024,607.95,6541-Domiciliary Care,THIRD PARTY PAYMENTS,PRIVATE CONTRACTOR,REVENUE
Walsall Council,http://opendatacommunities.org/id/metropolitan-district-council/walsall ,WC161-161,30.04.24,ADULT SOCIAL CARE,5 CARE SERVICES LTD,22/04/2024,540.40,6541-Domiciliary Care,THIRD PARTY PAYMENTS,PRIVATE CONTRACTOR,REVENUE
Walsall Council,http://opendatacommunities.org/id/metropolitan-district-council/walsall ,WC161-162,30.04.24,ADULT SOCIAL CARE,5 CARE SERVICES LTD,22/04/2024,607.95,6541-Domiciliary Care,THIRD PARTY PAYMENTS,PRIVATE CONTRACTOR,REVENUE
Walsall Council,http://opendatacommunities.org/id/metropolitan-district-council/walsall ,WC161-163,30.04.24,ADULT SOCIAL CARE,5 CARE SERVICES LTD,22/04/2024,607.95,6541-Domiciliary Care,THIRD PARTY PAYMENTS,PRIVATE CONTRACTOR,REVENUE
Walsall Council,http://opendatacommunities.org/id/metropolitan-district-council/walsall ,WC161-164,30.04.24,ADULT SOCIAL CARE,5 CARE SERVICES LTD,22/04/2024,675.50,6541-Domiciliary Care,THIRD PARTY PAYMENTS,PRIVATE CONTRACTOR,REVENUE
Walsall Council,http://opendatacommunities.org/id/metropolitan-district-council/walsall ,WC161-165,30.04.24,ADULT SOCIAL CARE,5 CARE SERVICES LTD,22/04/2024,829.90,6541-Domiciliary Care,THIRD PARTY PAYMENTS,PRIVATE CONTRACTOR,REVENUE
Walsall Council,http://opendatacommunities.org/id/metropolitan-district-council/walsall ,WC161-166,30.04.24,ADULT SOCIAL CARE,5 CARE SERVICES LTD,22/04/2024,675.50,6541-Domiciliary Care,THIRD PARTY PAYMENTS,PRIVATE CONTRACTOR,REVENUE
Walsall Council,http://opendatacommunities.org/id/metropolitan-district-council/walsall ,WC161-167,30.04.24,ADULT SOCIAL CARE,5 CARE SERVICES LTD,22/04/2024,"1,486.10",6541-Domiciliary Care,THIRD PARTY PAYMENTS,PRIVATE CONTRACTOR,REVENUE
Walsall Council,http://opendatacommunities.org/id/metropolitan-district-council/walsall ,WC161-168,30.04.24,ADULT SOCIAL CARE,5 CARE SERVICES LTD,22/04/2024,607.95,6541-Domiciliary Care,THIRD PARTY PAYMENTS,PRIVATE CONTRACTOR,REVENUE
Walsall Council,http://opendatacommunities.org/id/metropolitan-district-council/walsall ,WC161-169,30.04.24,ADULT SOCIAL CARE,5 CARE SERVICES LTD,22/04/2024,607.95,6541-Domiciliary Care,THIRD PARTY PAYMENTS,PRIVATE CONTRACTOR,REVENUE
Walsall Council,http://opendatacommunities.org/id/metropolitan-district-council/walsall ,WC161-170,30.04.24,ADULT SOCIAL CARE,5 CARE SERVICES LTD,22/04/2024,405.30,6541-Domiciliary Care,THIRD PARTY PAYMENTS,PRIVATE CONTRACTOR,REVENUE
Walsall Council,http://opendatacommunities.org/id/metropolitan-district-council/walsall ,WC161-171,30.04.24,ADULT SOCIAL CARE,5 CARE SERVICES LTD,22/04/2024,270.20,6541-Domiciliary Care,THIRD PARTY PAYMENTS,PRIVATE CONTRACTOR,REVENUE
Walsall Council,http://opendatacommunities.org/id/metropolitan-district-council/walsall ,WC161-172,30.04.24,ADULT SOCIAL CARE,5 CARE SERVICES LTD,22/04/2024,607.95,6541-Domiciliary Care,THIRD PARTY PAYMENTS,PRIVATE CONTRACTOR,REVENUE
Walsall Council,http://opendatacommunities.org/id/metropolitan-district-council/walsall ,WC161-173,30.04.24,ADULT SOCIAL CARE,5 CARE SERVICES LTD,22/04/2024,810.60,6541-Domiciliary Care,THIRD PARTY PAYMENTS,PRIVATE CONTRACTOR,REVENUE
Walsall Council,http://opendatacommunities.org/id/metropolitan-district-council/walsall ,WC161-174,30.04.24,ADULT SOCIAL CARE,5 CARE SERVICES LTD,22/04/2024,607.95,6541-Domiciliary Care,THIRD PARTY PAYMENTS,PRIVATE CONTRACTOR,REVENUE
Walsall Council,http://opendatacommunities.org/id/metropolitan-district-council/walsall ,WC161-175,30.04.24,ADULT SOCIAL CARE,5 CARE SERVICES LTD,22/04/2024,304.01,6541-Domiciliary Care,THIRD PARTY PAYMENTS,PRIVATE CONTRACTOR,REVENUE
Walsall Council,http://opendatacommunities.org/id/metropolitan-district-council/walsall ,WC161-176,30.04.24,ADULT SOCIAL CARE,5 CARE SERVICES LTD,22/04/2024,347.40,6541-Domiciliary Care,THIRD PARTY PAYMENTS,PRIVATE CONTRACTOR,REVENUE
Walsall Council,http://opendatacommunities.org/id/metropolitan-district-council/walsall ,WC161-177,30.04.24,ADULT SOCIAL CARE,5 CARE SERVICES LTD,22/04/2024,304.01,6541-Domiciliary Care,THIRD PARTY PAYMENTS,PRIVATE CONTRACTOR,REVENUE
Walsall Council,http://opendatacommunities.org/id/metropolitan-district-council/walsall ,WC161-178,30.04.24,ADULT SOCIAL CARE,5 CARE SERVICES LTD,22/04/2024,878.15,6541-Domiciliary Care,THIRD PARTY PAYMENTS,PRIVATE CONTRACTOR,REVENUE
Walsall Council,http://opendatacommunities.org/id/metropolitan-district-council/walsall ,WC161-179,30.04.24,ADULT SOCIAL CARE,5 CARE SERVICES LTD,22/04/2024,607.95,6541-Domiciliary Care,THIRD PARTY PAYMENTS,PRIVATE CONTRACTOR,REVENUE
Walsall Council,http://opendatacommunities.org/id/metropolitan-district-council/walsall ,WC161-180,30.04.24,ADULT SOCIAL CARE,5 CARE SERVICES LTD,22/04/2024,275.06,6541-Domiciliary Care,THIRD PARTY PAYMENTS,PRIVATE CONTRACTOR,REVENUE
Walsall Council,http://opendatacommunities.org/id/metropolitan-district-council/walsall ,WC161-181,30.04.24,ADULT SOCIAL CARE,5 CARE SERVICES LTD,22/04/2024,675.50,6541-Domiciliary Care,THIRD PARTY PAYMENTS,PRIVATE CONTRACTOR,REVENUE
Walsall Council,http://opendatacommunities.org/id/metropolitan-district-council/walsall ,WC161-182,30.04.24,ADULT SOCIAL CARE,5 CARE SERVICES LTD,22/04/2024,405.30,6541-Domiciliary Care,THIRD PARTY PAYMENTS,PRIVATE CONTRACTOR,REVENUE
Walsall Council,http://opendatacommunities.org/id/metropolitan-district-council/walsall ,WC161-183,30.04.24,ADULT SOCIAL CARE,5 CARE SERVICES LTD,22/04/2024,506.66,6541-Domiciliary Care,THIRD PARTY PAYMENTS,PRIVATE CONTRACTOR,REVENUE
Walsall Council,http://opendatacommunities.org/id/metropolitan-district-council/walsall ,WC161-184,30.04.24,ADULT SOCIAL CARE,5 CARE SERVICES LTD,22/04/2024,315.21,6541-Domiciliary Care,THIRD PARTY PAYMENTS,PRIVATE CONTRACTOR,REVENUE
Walsall Council,http://opendatacommunities.org/id/metropolitan-district-council/walsall ,WC161-185,30.04.24,ADULT SOCIAL CARE,5 CARE SERVICES LTD,22/04/2024,521.10,6541-Domiciliary Care,THIRD PARTY PAYMENTS,PRIVATE CONTRACTOR,REVENUE
Walsall Council,http://opendatacommunities.org/id/metropolitan-district-council/walsall ,WC161-186,30.04.24,ADULT SOCIAL CARE,5 CARE SERVICES LTD,22/04/2024,945.70,6541-Domiciliary Care,THIRD PARTY PAYMENTS,PRIVATE CONTRACTOR,REVENUE
Walsall Council,http://opendatacommunities.org/id/metropolitan-district-council/walsall ,WC161-187,30.04.24,ADULT SOCIAL CARE,5 CARE SERVICES LTD,22/04/2024,352.24,6541-Domiciliary Care,THIRD PARTY PAYMENTS,PRIVATE CONTRACTOR,REVENUE
Walsall Council,http://opendatacommunities.org/id/metropolitan-district-council/walsall ,WC161-188,30.04.24,ADULT SOCIAL CARE,5 CARE SERVICES LTD,22/04/2024,752.70,6541-Domiciliary Care,THIRD PARTY PAYMENTS,PRIVATE CONTRACTOR,REVENUE
Walsall Council,http://opendatacommunities.org/id/metropolitan-district-council/walsall ,WC161-189,30.04.24,CHILDRENS,5 CARE SERVICES LTD,02/04/2024,288.00,6222-Professional Fees & Services,SUPPLIES & SERVICES,SERVICES,REVENUE
Walsall Council,http://opendatacommunities.org/id/metropolitan-district-council/walsall ,WC161-190,30.04.24,CHILDRENS,5 CARE SERVICES LTD,02/04/2024,855.00,6220-Professional Fees & Services,SUPPLIES & SERVICES,SERVICES,REVENUE
Walsall Council,http://opendatacommunities.org/id/metropolitan-district-council/walsall ,WC161-191,30.04.24,ADULT SOCIAL CARE,5 CARE SERVICES LTD,03/04/2024,360.00,6554-Professional Services-Priv Contractor & Other Agencies,THIRD PARTY PAYMENTS,PRIVATE CONTRACTOR,REVENUE
Walsall Council,http://opendatacommunities.org/id/metropolitan-district-council/walsall ,WC161-192,30.04.24,CHILDRENS,5 CARE SERVICES LTD,02/04/2024,"1,710.00",6220-Professional Fees & Services,SUPPLIES & SERVICES,SERVICES,REVENUE
Walsall Council,http://opendatacommunities.org/id/metropolitan-district-council/walsall ,WC161-193,30.04.24,CHILDRENS,5 CARE SERVICES LTD,02/04/2024,"1,026.00",6220-Professional Fees & Services,SUPPLIES & SERVICES,SERVICES,REVENUE
Walsall Council,http://opendatacommunities.org/id/metropolitan-district-council/walsall ,WC161-194,30.04.24,CHILDRENS,5 CARE SERVICES LTD,05/04/2024,846.00,6220-Professional Fees & Services,SUPPLIES & SERVICES,SERVICES,REVENUE
Walsall Council,http://opendatacommunities.org/id/metropolitan-district-council/walsall ,WC161-195,30.04.24,CHILDRENS,5 CARE SERVICES LTD,05/04/2024,"2,340.00",6220-Professional Fees & Services,SUPPLIES & SERVICES,SERVICES,REVENUE
Walsall Council,http://opendatacommunities.org/id/metropolitan-district-council/walsall ,WC161-196,30.04.24,CHILDRENS,5 CARE SERVICES LTD,05/04/2024,"1,800.00",6220-Professional Fees & Services,SUPPLIES & SERVICES,SERVICES,REVENUE
Walsall Council,http://opendatacommunities.org/id/metropolitan-district-council/walsall ,WC161-197,30.04.24,CHILDRENS,5 CARE SERVICES LTD,18/04/2024,294.33,6220-Professional Fees & Services,SUPPLIES & SERVICES,SERVICES,REVENUE
Walsall Council,http://opendatacommunities.org/id/metropolitan-district-council/walsall ,WC161-198,30.04.24,CHILDRENS,5 CARE SERVICES LTD,17/04/2024,694.80,6220-Professional Fees & Services,SUPPLIES & SERVICES,SERVICES,REVENUE
Walsall Council,http://opendatacommunities.org/id/metropolitan-district-council/walsall ,WC161-199,30.04.24,CHILDRENS,5 CARE SERVICES LTD,17/04/2024,579.00,6220-Professional Fees & Services,SUPPLIES & SERVICES,SERVICES,REVENUE
Walsall Council,http://opendatacommunities.org/id/metropolitan-district-council/walsall ,WC161-200,30.04.24,CHILDRENS,5 CARE SERVICES LTD,17/04/2024,"-2,547.60",6220-Professional Fees & Services,SUPPLIES & SERVICES,SERVICES,REVENUE
Walsall Council,http://opendatacommunities.org/id/metropolitan-district-council/walsall ,WC161-201,30.04.24,CHILDRENS,5 CARE SERVICES LTD,17/04/2024,"2,547.60",6220-Professional Fees & Services,SUPPLIES & SERVICES,SERVICES,REVENUE
Walsall Council,http://opendatacommunities.org/id/metropolitan-district-council/walsall ,WC161-202,30.04.24,CHILDRENS,5 CARE SERVICES LTD,18/04/2024,"1,930.00",6220-Professional Fees & Services,SUPPLIES & SERVICES,SERVICES,REVENUE
Walsall Council,http://opendatacommunities.org/id/metropolitan-district-council/walsall ,WC161-203,30.04.24,CHILDRENS,5 CARE SERVICES LTD,30/04/2024,"1,708.05",6220-Professional Fees & Services,SUPPLIES & SERVICES,SERVICES,REVENUE
Walsall Council,http://opendatacommunities.org/id/metropolitan-district-council/walsall ,WC161-204,30.04.24,CHILDRENS,5 CARE SERVICES LTD,30/04/2024,434.25,6220-Professional Fees & Services,SUPPLIES & SERVICES,SERVICES,REVENUE
Walsall Council,http://opendatacommunities.org/id/metropolitan-district-council/walsall ,WC161-205,30.04.24,CHILDRENS,5 CARE SERVICES LTD,30/04/2024,579.00,6220-Professional Fees & Services,SUPPLIES & SERVICES,SERVICES,REVENUE
Walsall Council,http://opendatacommunities.org/id/metropolitan-district-council/walsall ,WC161-206,30.04.24,CHILDRENS,5 CARE SERVICES LTD,30/04/2024,"2,354.60",6220-Professional Fees & Services,SUPPLIES & SERVICES,SERVICES,REVENUE
Walsall Council,http://opendatacommunities.org/id/metropolitan-district-council/walsall ,WC161-207,30.04.24,ADULT SOCIAL CARE,5 CARE SERVICES LTD,04/04/2024,-270.00,6554-Professional Services-Priv Contractor & Other Agencies,THIRD PARTY PAYMENTS,PRIVATE CONTRACTOR,REVENUE
Walsall Council,http://opendatacommunities.org/id/metropolitan-district-council/walsall ,WC161-208,30.04.24,ADULT SOCIAL CARE,5 CARE SERVICES LTD,04/04/2024,"1,683.00",6554-Professional Services-Priv Contractor & Other Agencies,THIRD PARTY PAYMENTS,PRIVATE CONTRACTOR,REVENUE
Walsall Council,http://opendatacommunities.org/id/metropolitan-district-council/walsall ,WC161-209,30.04.24,ADULT SOCIAL CARE,5 CARE SERVICES LTD,04/04/2024,675.00,6554-Professional Services-Priv Contractor & Other Agencies,THIRD PARTY PAYMENTS,PRIVATE CONTRACTOR,REVENUE
Walsall Council,http://opendatacommunities.org/id/metropolitan-district-council/walsall ,WC161-210,30.04.24,ADULT SOCIAL CARE,5 CARE SERVICES LTD,04/04/2024,"7,654.50",6554-Professional Services-Priv Contractor & Other Agencies,THIRD PARTY PAYMENTS,PRIVATE CONTRACTOR,REVENUE
Walsall Council,http://opendatacommunities.org/id/metropolitan-district-council/walsall ,WC161-211,30.04.24,ADULT SOCIAL CARE,5 CARE SERVICES LTD,04/04/2024,504.00,6554-Professional Services-Priv Contractor & Other Agencies,THIRD PARTY PAYMENTS,PRIVATE CONTRACTOR,REVENUE
Walsall Council,http://opendatacommunities.org/id/metropolitan-district-council/walsall ,WC161-212,30.04.24,ADULT SOCIAL CARE,5 CARE SERVICES LTD,04/04/2024,360.00,6554-Professional Services-Priv Contractor & Other Agencies,THIRD PARTY PAYMENTS,PRIVATE CONTRACTOR,REVENUE
Walsall Council,http://opendatacommunities.org/id/metropolitan-district-council/walsall ,WC161-213,30.04.24,ADULT SOCIAL CARE,5 CARE SERVICES LTD,04/04/2024,972.00,6554-Professional Services-Priv Contractor & Other Agencies,THIRD PARTY PAYMENTS,PRIVATE CONTRACTOR,REVENUE
Walsall Council,http://opendatacommunities.org/id/metropolitan-district-council/walsall ,WC161-214,30.04.24,ADULT SOCIAL CARE,5 CARE SERVICES LTD,04/04/2024,"1,858.50",6554-Professional Services-Priv Contractor & Other Agencies,THIRD PARTY PAYMENTS,PRIVATE CONTRACTOR,REVENUE
Walsall Council,http://opendatacommunities.org/id/metropolitan-district-council/walsall ,WC161-215,30.04.24,ADULT SOCIAL CARE,5 CARE SERVICES LTD,04/04/2024,"1,377.00",6554-Professional Services-Priv Contractor & Other Agencies,THIRD PARTY PAYMENTS,PRIVATE CONTRACTOR,REVENUE
Walsall Council,http://opendatacommunities.org/id/metropolitan-district-council/walsall ,WC161-216,30.04.24,ADULT SOCIAL CARE,5 CARE SERVICES LTD,04/04/2024,"1,260.00",6554-Professional Services-Priv Contractor & Other Agencies,THIRD PARTY PAYMENTS,PRIVATE CONTRACTOR,REVENUE
Walsall Council,http://opendatacommunities.org/id/metropolitan-district-council/walsall ,WC161-217,30.04.24,ADULT SOCIAL CARE,5 CARE SERVICES LTD,04/04/2024,603.00,6554-Professional Services-Priv Contractor & Other Agencies,THIRD PARTY PAYMENTS,PRIVATE CONTRACTOR,REVENUE
Walsall Council,http://opendatacommunities.org/id/metropolitan-district-council/walsall ,WC161-218,30.04.24,RESOURCES AND TRANSFORMATION,A D T FIRE AND SECURITY PLC,09/04/2024,306.40,6310-Security & Alarm Maintenance,PREMISES,REPAIRS & MAINTENANCE,REVENUE
Walsall Council,http://opendatacommunities.org/id/metropolitan-district-council/walsall ,WC161-219,30.04.24,RESOURCES AND TRANSFORMATION,A D T FIRE AND SECURITY PLC,09/04/2024,"1,655.63",6310-Security & Alarm Maintenance,PREMISES,REPAIRS & MAINTENANCE,REVENUE
Walsall Council,http://opendatacommunities.org/id/metropolitan-district-council/walsall ,WC161-220,30.04.24,"ECONOMY, ENVIRONMENT & COMMUNITIES",A D T FIRE AND SECURITY PLC,23/04/2024,590.00,6410-Security & Alarm Maintenance,PREMISES,REPAIRS & MAINTENANCE,REVENUE
Walsall Council,http://opendatacommunities.org/id/metropolitan-district-council/walsall ,WC161-221,30.04.24,"ECONOMY, ENVIRONMENT & COMMUNITIES",A F BLAKEMORE & SON LTD,02/04/2024,655.96,6413-Food & Drink Supplies,SUPPLIES & SERVICES,CATERING,REVENUE
Walsall Council,http://opendatacommunities.org/id/metropolitan-district-council/walsall ,WC161-222,30.04.24,"ECONOMY, ENVIRONMENT & COMMUNITIES",A F BLAKEMORE & SON LTD,02/04/2024,691.62,6413-Food & Drink Supplies,SUPPLIES & SERVICES,CATERING,REVENUE
Walsall Council,http://opendatacommunities.org/id/metropolitan-district-council/walsall ,WC161-223,30.04.24,"ECONOMY, ENVIRONMENT & COMMUNITIES",A F BLAKEMORE & SON LTD,02/04/2024,410.68,6413-Food & Drink Supplies,SUPPLIES & SERVICES,CATERING,REVENUE
Walsall Council,http://opendatacommunities.org/id/metropolitan-district-council/walsall ,WC161-224,30.04.24,"ECONOMY, ENVIRONMENT & COMMUNITIES",A F BLAKEMORE & SON LTD,02/04/2024,"1,063.98",6413-Food & Drink Supplies,SUPPLIES & SERVICES,CATERING,REVENUE
Walsall Council,http://opendatacommunities.org/id/metropolitan-district-council/walsall ,WC161-225,30.04.24,"ECONOMY, ENVIRONMENT & COMMUNITIES",A F BLAKEMORE & SON LTD,30/04/2024,-582.85,6413-Food & Drink Supplies,SUPPLIES & SERVICES,CATERING,REVENUE
Walsall Council,http://opendatacommunities.org/id/metropolitan-district-council/walsall ,WC161-226,30.04.24,"ECONOMY, ENVIRONMENT & COMMUNITIES",A F BLAKEMORE & SON LTD,30/04/2024,342.87,6413-Food & Drink Supplies,SUPPLIES & SERVICES,CATERING,REVENUE
Walsall Council,http://opendatacommunities.org/id/metropolitan-district-council/walsall ,WC161-227,30.04.24,"ECONOMY, ENVIRONMENT & COMMUNITIES",A F BLAKEMORE & SON LTD,30/04/2024,502.85,6413-Food & Drink Supplies,SUPPLIES & SERVICES,CATERING,REVENUE
Walsall Council,http://opendatacommunities.org/id/metropolitan-district-council/walsall ,WC161-228,30.04.24,"ECONOMY, ENVIRONMENT & COMMUNITIES",A F BLAKEMORE & SON LTD,30/04/2024,582.85,6413-Food & Drink Supplies,SUPPLIES & SERVICES,CATERING,REVENUE
Walsall Council,http://opendatacommunities.org/id/metropolitan-district-council/walsall ,WC161-229,30.04.24,"ECONOMY, ENVIRONMENT & COMMUNITIES",A F BLAKEMORE & SON LTD,30/04/2024,463.43,6413-Food & Drink Supplies,SUPPLIES & SERVICES,CATERING,REVENUE
Walsall Council,http://opendatacommunities.org/id/metropolitan-district-council/walsall ,WC161-230,30.04.24,"ECONOMY, ENVIRONMENT & COMMUNITIES",A F BLAKEMORE & SON LTD,30/04/2024,771.35,6413-Food & Drink Supplies,SUPPLIES & SERVICES,CATERING,REVENUE
Walsall Council,http://opendatacommunities.org/id/metropolitan-district-council/walsall ,WC161-231,30.04.24,"ECONOMY, ENVIRONMENT & COMMUNITIES",A F BLAKEMORE & SON LTD,22/04/2024,417.73,6413-Materials,SUPPLIES & SERVICES,EQUIPMENT FURNITURE & MATERIALS,REVENUE
Walsall Council,http://opendatacommunities.org/id/metropolitan-district-council/walsall ,WC161-232,30.04.24,"ECONOMY, ENVIRONMENT & COMMUNITIES",A F BLAKEMORE & SON LTD,22/04/2024,869.03,6413-Materials,SUPPLIES & SERVICES,EQUIPMENT FURNITURE & MATERIALS,REVENUE
Walsall Council,http://opendatacommunities.org/id/metropolitan-district-council/walsall ,WC161-233,30.04.24,"ECONOMY, ENVIRONMENT & COMMUNITIES",A F BLAKEMORE & SON LTD,30/04/2024,355.40,6413-Food & Drink Supplies,SUPPLIES & SERVICES,CATERING,REVENUE
Walsall Council,http://opendatacommunities.org/id/metropolitan-district-council/walsall ,WC161-234,30.04.24,"ECONOMY, ENVIRONMENT & COMMUNITIES",A F BLAKEMORE & SON LTD,30/04/2024,630.70,6413-Food & Drink Supplies,SUPPLIES & SERVICES,CATERING,REVENUE
Walsall Council,http://opendatacommunities.org/id/metropolitan-district-council/walsall ,WC161-235,30.04.24,"ECONOMY, ENVIRONMENT & COMMUNITIES",A F BLAKEMORE & SON LTD,30/04/2024,"1,316.48",6413-Food & Drink Supplies,SUPPLIES & SERVICES,CATERING,REVENUE
Walsall Council,http://opendatacommunities.org/id/metropolitan-district-council/walsall ,WC161-236,30.04.24,"ECONOMY, ENVIRONMENT & COMMUNITIES",A F BLAKEMORE & SON LTD,23/04/2024,370.75,6413-Materials,SUPPLIES & SERVICES,EQUIPMENT FURNITURE & MATERIALS,REVENUE
Walsall Council,http://opendatacommunities.org/id/metropolitan-district-council/walsall ,WC161-237,30.04.24,"ECONOMY, ENVIRONMENT & COMMUNITIES",A F BLAKEMORE & SON LTD,23/04/2024,686.45,6413-Materials,SUPPLIES & SERVICES,EQUIPMENT FURNITURE & MATERIALS,REVENUE
Walsall Council,http://opendatacommunities.org/id/metropolitan-district-council/walsall ,WC161-238,30.04.24,CHILDRENS,A+ TUTORING SERVICES,23/04/2024,320.00,1220-Professional Fees & Services,SUPPLIES & SERVICES,SERVICES,REVENUE
Walsall Council,http://opendatacommunities.org/id/metropolitan-district-council/walsall ,WC161-239,30.04.24,CHILDRENS,A1 WALSALL RADIO CARS,22/04/2024,"1,680.00",6241-Hire of Vehicle with Driver,TRANSPORT,DIRECT TRANSPORT COSTS,REVENUE
Walsall Council,http://opendatacommunities.org/id/metropolitan-district-council/walsall ,WC161-240,30.04.24,CHILDRENS,A1 WALSALL RADIO CARS,22/04/2024,980.00,6241-Hire of Vehicle with Driver,TRANSPORT,DIRECT TRANSPORT COSTS,REVENUE
Walsall Council,http://opendatacommunities.org/id/metropolitan-district-council/walsall ,WC161-241,30.04.24,CHILDRENS,A1 WALSALL RADIO CARS,22/04/2024,830.00,6241-Hire of Vehicle with Driver,TRANSPORT,DIRECT TRANSPORT COSTS,REVENUE
Walsall Council,http://opendatacommunities.org/id/metropolitan-district-council/walsall ,WC161-242,30.04.24,CHILDRENS,A1 WALSALL RADIO CARS,22/04/2024,"2,592.00",6241-Hire of Vehicle with Driver,TRANSPORT,DIRECT TRANSPORT COSTS,REVENUE
Walsall Council,http://opendatacommunities.org/id/metropolitan-district-council/walsall ,WC161-243,30.04.24,CHILDRENS,A1 WALSALL RADIO CARS,22/04/2024,640.00,6241-Hire of Vehicle with Driver,TRANSPORT,DIRECT TRANSPORT COSTS,REVENUE
Walsall Council,http://opendatacommunities.org/id/metropolitan-district-council/walsall ,WC161-244,30.04.24,CHILDRENS,A1 WALSALL RADIO CARS,22/04/2024,940.00,6241-Hire of Vehicle with Driver,TRANSPORT,DIRECT TRANSPORT COSTS,REVENUE
Walsall Council,http://opendatacommunities.org/id/metropolitan-district-council/walsall ,WC161-245,30.04.24,CHILDRENS,A1 WALSALL RADIO CARS,22/04/2024,576.00,6241-Hire of Vehicle with Driver,TRANSPORT,DIRECT TRANSPORT COSTS,REVENUE
Walsall Council,http://opendatacommunities.org/id/metropolitan-district-council/walsall ,WC161-246,30.04.24,CHILDRENS,A1 WALSALL RADIO CARS,22/04/2024,498.00,6241-Hire of Vehicle with Driver,TRANSPORT,DIRECT TRANSPORT COSTS,REVENUE
Walsall Council,http://opendatacommunities.org/id/metropolitan-district-council/walsall ,WC161-247,30.04.24,CHILDRENS,A1 WALSALL RADIO CARS,22/04/2024,"1,050.00",6241-Hire of Vehicle with Driver,TRANSPORT,DIRECT TRANSPORT COSTS,REVENUE
Walsall Council,http://opendatacommunities.org/id/metropolitan-district-council/walsall ,WC161-248,30.04.24,ADULT SOCIAL CARE,REDACTED,04/04/2024,921.88,6541-Direct Payment,THIRD PARTY PAYMENTS,PRIVATE CONTRACTOR,REVENUE
Walsall Council,http://opendatacommunities.org/id/metropolitan-district-council/walsall ,WC161-249,30.04.24,CHILDRENS,REDACTED,10/04/2024,"-2,342.43",1220-Professional Fees & Services,SUPPLIES & SERVICES,SERVICES,REVENUE
Walsall Council,http://opendatacommunities.org/id/metropolitan-district-council/walsall ,WC161-250,30.04.24,CHILDRENS,REDACTED,10/04/2024,"2,342.43",1220-Professional Fees & Services,SUPPLIES & SERVICES,SERVICES,REVENUE
Walsall Council,http://opendatacommunities.org/id/metropolitan-district-council/walsall ,WC161-251,30.04.24,CHILDRENS,ABACUS FOSTERING LTD,16/04/2024,"3,043.80",6223-Independent Foster Care-Oth Agency Provision,THIRD PARTY PAYMENTS,PRIVATE CONTRACTOR,REVENUE
Walsall Council,http://opendatacommunities.org/id/metropolitan-district-council/walsall ,WC161-252,30.04.24,CHILDRENS,ABACUS FOSTERING LTD,16/04/2024,"2,874.56",6223-Independent Foster Care-Oth Agency Provision,THIRD PARTY PAYMENTS,PRIVATE CONTRACTOR,REVENUE
Walsall Council,http://opendatacommunities.org/id/metropolitan-district-council/walsall ,WC161-253,30.04.24,CHILDRENS,ABACUS FOSTERING LTD,16/04/2024,"3,261.44",6223-Independent Foster Care-Oth Agency Provision,THIRD PARTY PAYMENTS,PRIVATE CONTRACTOR,REVENUE
Walsall Council,http://opendatacommunities.org/id/metropolitan-district-council/walsall ,WC161-254,30.04.24,CHILDRENS,ABACUS FOSTERING LTD,16/04/2024,"3,098.40",6223-Independent Foster Care-Oth Agency Provision,THIRD PARTY PAYMENTS,PRIVATE CONTRACTOR,REVENUE
Walsall Council,http://opendatacommunities.org/id/metropolitan-district-council/walsall ,WC161-255,30.04.24,"ECONOMY, ENVIRONMENT & COMMUNITIES",ABBEY BLINDS LTD,03/04/2024,566.10,6414-Purchase of Furniture & Equipment,SUPPLIES & SERVICES,EQUIPMENT FURNITURE & MATERIALS,REVENUE
Walsall Council,http://opendatacommunities.org/id/metropolitan-district-council/walsall ,WC161-256,30.04.24,CHILDRENS,ABBEY BLINDS LTD,16/04/2024,349.60,6211-Purchase of Furniture & Equipment,SUPPLIES & SERVICES,EQUIPMENT FURNITURE & MATERIALS,REVENUE
Walsall Council,http://opendatacommunities.org/id/metropolitan-district-council/walsall ,WC161-257,30.04.24,ADULT SOCIAL CARE,ABBEY HEALTHCARE HOMES LTD,09/04/2024,"2,432.32",6541-Residential,THIRD PARTY PAYMENTS,PRIVATE CONTRACTOR,REVENUE
Walsall Council,http://opendatacommunities.org/id/metropolitan-district-council/walsall ,WC161-258,30.04.24,ADULT SOCIAL CARE,ABBEY HEALTHCARE HOMES LTD,09/04/2024,"3,180.76",6541-Residential,THIRD PARTY PAYMENTS,PRIVATE CONTRACTOR,REVENUE
Walsall Council,http://opendatacommunities.org/id/metropolitan-district-council/walsall ,WC161-259,30.04.24,ADULT SOCIAL CARE,ABBEY HEALTHCARE HOMES LTD,09/04/2024,"3,180.76",6541-Residential,THIRD PARTY PAYMENTS,PRIVATE CONTRACTOR,REVENUE
Walsall Council,http://opendatacommunities.org/id/metropolitan-district-council/walsall ,WC161-260,30.04.24,ADULT SOCIAL CARE,ABBEY HEALTHCARE HOMES LTD,09/04/2024,"4,000.00",6541-Residential,THIRD PARTY PAYMENTS,PRIVATE CONTRACTOR,REVENUE
Walsall Council,http://opendatacommunities.org/id/metropolitan-district-council/walsall ,WC161-261,30.04.24,CHILDRENS,ABC DAY NURSERY (WILLENHALL) LIMITED,18/04/2024,288.00,6223-Creche Facilities,SUPPLIES & SERVICES,SERVICES,REVENUE
Walsall Council,http://opendatacommunities.org/id/metropolitan-district-council/walsall ,WC161-262,30.04.24,CHILDRENS,ABC DAY NURSERY (WILLENHALL) LIMITED,19/04/2024,-648.80,1184-Other-Grants to Other Orgs,SUPPLIES & SERVICES,GRANTS (EXP) & SUBSCRIPTIONS,REVENUE
Walsall Council,http://opendatacommunities.org/id/metropolitan-district-council/walsall ,WC161-263,30.04.24,CHILDRENS,ABC DAY NURSERY (WILLENHALL) LIMITED,16/04/2024,"11,846.25",1184-Other-Grants to Other Orgs,SUPPLIES & SERVICES,GRANTS (EXP) & SUBSCRIPTIONS,REVENUE
Walsall Council,http://opendatacommunities.org/id/metropolitan-district-council/walsall ,WC161-264,30.04.24,CHILDRENS,ABC DAY NURSERY (WILLENHALL) LIMITED,19/04/2024,"6,935.63",1184-Other-Grants to Other Orgs,SUPPLIES & SERVICES,GRANTS (EXP) & SUBSCRIPTIONS,REVENUE
Walsall Council,http://opendatacommunities.org/id/metropolitan-district-council/walsall ,WC161-265,30.04.24,CHILDRENS,ABC DAY NURSERY (WILLENHALL) LIMITED,19/04/2024,"-2,194.29",1184-Other-Grants to Other Orgs,SUPPLIES & SERVICES,GRANTS (EXP) & SUBSCRIPTIONS,REVENUE
Walsall Council,http://opendatacommunities.org/id/metropolitan-district-council/walsall ,WC161-266,30.04.24,CHILDRENS,ABC DAY NURSERY (WILLENHALL) LIMITED,16/04/2024,"26,061.75",1184-Other-Grants to Other Orgs,SUPPLIES & SERVICES,GRANTS (EXP) & SUBSCRIPTIONS,REVENUE
Walsall Council,http://opendatacommunities.org/id/metropolitan-district-council/walsall ,WC161-267,30.04.24,CHILDRENS,ABC DAY NURSERY (WILLENHALL) LIMITED,19/04/2024,"2,004.75",1184-Other-Grants to Other Orgs,SUPPLIES & SERVICES,GRANTS (EXP) & SUBSCRIPTIONS,REVENUE
Walsall Council,http://opendatacommunities.org/id/metropolitan-district-council/walsall ,WC161-268,30.04.24,CHILDRENS,ABC DAY NURSERY (WILLENHALL) LIMITED,03/04/2024,"-1,911.04",1265-Early Years Supplementary Grant Expenditure,TRANSFER PAYMENTS,SCHOOLCHILDREN/STUDENTS,REVENUE
Walsall Council,http://opendatacommunities.org/id/metropolitan-district-council/walsall ,WC161-269,30.04.24,CHILDRENS,ABC DAY NURSERY (WILLENHALL) LIMITED,03/04/2024,"1,856.92",1265-Early Years Supplementary Grant Expenditure,TRANSFER PAYMENTS,SCHOOLCHILDREN/STUDENTS,REVENUE
Walsall Council,http://opendatacommunities.org/id/metropolitan-district-council/walsall ,WC161-270,30.04.24,CHILDRENS,ABC DAY NURSERY (WILLENHALL) LIMITED,03/04/2024,-406.41,1265-Early Years Supplementary Grant Expenditure,TRANSFER PAYMENTS,SCHOOLCHILDREN/STUDENTS,REVENUE
Walsall Council,http://opendatacommunities.org/id/metropolitan-district-council/walsall ,WC161-271,30.04.24,CHILDRENS,ABC DAY NURSERY (WILLENHALL) LIMITED,03/04/2024,"1,329.67",1265-Early Years Supplementary Grant Expenditure,TRANSFER PAYMENTS,SCHOOLCHILDREN/STUDENTS,REVENUE
Walsall Council,http://opendatacommunities.org/id/metropolitan-district-council/walsall ,WC161-272,30.04.24,ADULT SOCIAL CARE,REDACTED,04/04/2024,"2,531.34",6541-Direct Payment,THIRD PARTY PAYMENTS,PRIVATE CONTRACTOR,REVENUE
Walsall Council,http://opendatacommunities.org/id/metropolitan-district-council/walsall ,WC161-273,30.04.24,CHILDRENS,ABIGAILS PLACE LTD,10/04/2024,"20,900.00",1220-Top Up Funding -Grants to Schools,SUPPLIES & SERVICES,GRANTS (EXP) & SUBSCRIPTIONS,REVENUE
Walsall Council,http://opendatacommunities.org/id/metropolitan-district-council/walsall ,WC161-274,30.04.24,ADULT SOCIAL CARE,ABILITY HEALTHCARE CANNOCK LTD,03/04/2024,"2,268.00",6541-Domiciliary Care,THIRD PARTY PAYMENTS,PRIVATE CONTRACTOR,REVENUE
Walsall Council,http://opendatacommunities.org/id/metropolitan-district-council/walsall ,WC161-275,30.04.24,ADULT SOCIAL CARE,ABILITY HEALTHCARE CANNOCK LTD,03/04/2024,"1,962.00",6541-Domiciliary Care,THIRD PARTY PAYMENTS,PRIVATE CONTRACTOR,REVENUE
Walsall Council,http://opendatacommunities.org/id/metropolitan-district-council/walsall ,WC161-276,30.04.24,ADULT SOCIAL CARE,ABILITY HEALTHCARE CANNOCK LTD,03/04/2024,"2,268.00",6541-Domiciliary Care,THIRD PARTY PAYMENTS,PRIVATE CONTRACTOR,REVENUE
Walsall Council,http://opendatacommunities.org/id/metropolitan-district-council/walsall ,WC161-277,30.04.24,ADULT SOCIAL CARE,ABILITY HEALTHCARE CANNOCK LTD,03/04/2024,"1,236.00",6541-Domiciliary Care,THIRD PARTY PAYMENTS,PRIVATE CONTRACTOR,REVENUE
Walsall Council,http://opendatacommunities.org/id/metropolitan-district-council/walsall ,WC161-278,30.04.24,ADULT SOCIAL CARE,ABILITY HEALTHCARE CANNOCK LTD,03/04/2024,"2,016.00",6541-Domiciliary Care,THIRD PARTY PAYMENTS,PRIVATE CONTRACTOR,REVENUE
Walsall Council,http://opendatacommunities.org/id/metropolitan-district-council/walsall ,WC161-279,30.04.24,ADULT SOCIAL CARE,ABILITY HEALTHCARE CANNOCK LTD,03/04/2024,"2,412.00",6541-Domiciliary Care,THIRD PARTY PAYMENTS,PRIVATE CONTRACTOR,REVENUE
Walsall Council,http://opendatacommunities.org/id/metropolitan-district-council/walsall ,WC161-280,30.04.24,ADULT SOCIAL CARE,ABILITY HEALTHCARE CANNOCK LTD,03/04/2024,"2,268.00",6541-Domiciliary Care,THIRD PARTY PAYMENTS,PRIVATE CONTRACTOR,REVENUE
Walsall Council,http://opendatacommunities.org/id/metropolitan-district-council/walsall ,WC161-281,30.04.24,ADULT SOCIAL CARE,ABILITY HEALTHCARE CANNOCK LTD,03/04/2024,"2,016.00",6541-Domiciliary Care,THIRD PARTY PAYMENTS,PRIVATE CONTRACTOR,REVENUE
Walsall Council,http://opendatacommunities.org/id/metropolitan-district-council/walsall ,WC161-282,30.04.24,ADULT SOCIAL CARE,ABILITY HEALTHCARE CANNOCK LTD,03/04/2024,"2,268.00",6541-Domiciliary Care,THIRD PARTY PAYMENTS,PRIVATE CONTRACTOR,REVENUE
Walsall Council,http://opendatacommunities.org/id/metropolitan-district-council/walsall ,WC161-283,30.04.24,ADULT SOCIAL CARE,ABILITY HEALTHCARE CANNOCK LTD,03/04/2024,"2,016.00",6541-Domiciliary Care,THIRD PARTY PAYMENTS,PRIVATE CONTRACTOR,REVENUE
Walsall Council,http://opendatacommunities.org/id/metropolitan-district-council/walsall ,WC161-284,30.04.24,ADULT SOCIAL CARE,ABILITY HEALTHCARE CANNOCK LTD,03/04/2024,"3,528.00",6541-Domiciliary Care,THIRD PARTY PAYMENTS,PRIVATE CONTRACTOR,REVENUE
Walsall Council,http://opendatacommunities.org/id/metropolitan-district-council/walsall ,WC161-285,30.04.24,ADULT SOCIAL CARE,ABILITY HEALTHCARE CANNOCK LTD,03/04/2024,"1,344.00",6541-Domiciliary Care,THIRD PARTY PAYMENTS,PRIVATE CONTRACTOR,REVENUE
Walsall Council,http://opendatacommunities.org/id/metropolitan-district-council/walsall ,WC161-286,30.04.24,ADULT SOCIAL CARE,ABILITY HEALTHCARE CANNOCK LTD,03/04/2024,"2,016.00",6541-Domiciliary Care,THIRD PARTY PAYMENTS,PRIVATE CONTRACTOR,REVENUE
Walsall Council,http://opendatacommunities.org/id/metropolitan-district-council/walsall ,WC161-287,30.04.24,ADULT SOCIAL CARE,ABILITY HEALTHCARE CANNOCK LTD,03/04/2024,"2,268.00",6541-Domiciliary Care,THIRD PARTY PAYMENTS,PRIVATE CONTRACTOR,REVENUE
Walsall Council,http://opendatacommunities.org/id/metropolitan-district-council/walsall ,WC161-288,30.04.24,ADULT SOCIAL CARE,ABILITY HEALTHCARE CANNOCK LTD,03/04/2024,945.00,6541-Domiciliary Care,THIRD PARTY PAYMENTS,PRIVATE CONTRACTOR,REVENUE
Walsall Council,http://opendatacommunities.org/id/metropolitan-district-council/walsall ,WC161-289,30.04.24,ADULT SOCIAL CARE,ABILITY HEALTHCARE CANNOCK LTD,03/04/2024,"2,772.00",6541-Domiciliary Care,THIRD PARTY PAYMENTS,PRIVATE CONTRACTOR,REVENUE
Walsall Council,http://opendatacommunities.org/id/metropolitan-district-council/walsall ,WC161-290,30.04.24,ADULT SOCIAL CARE,ABILITY HEALTHCARE CANNOCK LTD,03/04/2024,"2,304.00",6541-Domiciliary Care,THIRD PARTY PAYMENTS,PRIVATE CONTRACTOR,REVENUE
Walsall Council,http://opendatacommunities.org/id/metropolitan-district-council/walsall ,WC161-291,30.04.24,ADULT SOCIAL CARE,ABILITY HEALTHCARE CANNOCK LTD,03/04/2024,"2,016.00",6541-Domiciliary Care,THIRD PARTY PAYMENTS,PRIVATE CONTRACTOR,REVENUE
Walsall Council,http://opendatacommunities.org/id/metropolitan-district-council/walsall ,WC161-292,30.04.24,ADULT SOCIAL CARE,ABILITY HEALTHCARE CANNOCK LTD,03/04/2024,"2,268.00",6541-Domiciliary Care,THIRD PARTY PAYMENTS,PRIVATE CONTRACTOR,REVENUE
Walsall Council,http://opendatacommunities.org/id/metropolitan-district-council/walsall ,WC161-293,30.04.24,ADULT SOCIAL CARE,ABILITY HEALTHCARE CANNOCK LTD,03/04/2024,"1,680.00",6541-Domiciliary Care,THIRD PARTY PAYMENTS,PRIVATE CONTRACTOR,REVENUE
Walsall Council,http://opendatacommunities.org/id/metropolitan-district-council/walsall ,WC161-294,30.04.24,ADULT SOCIAL CARE,ABILITY HEALTHCARE CANNOCK LTD,03/04/2024,540.00,6541-Domiciliary Care,THIRD PARTY PAYMENTS,PRIVATE CONTRACTOR,REVENUE
Walsall Council,http://opendatacommunities.org/id/metropolitan-district-council/walsall ,WC161-295,30.04.24,ADULT SOCIAL CARE,ABILITY HEALTHCARE CANNOCK LTD,03/04/2024,756.00,6541-Domiciliary Care,THIRD PARTY PAYMENTS,PRIVATE CONTRACTOR,REVENUE
Walsall Council,http://opendatacommunities.org/id/metropolitan-district-council/walsall ,WC161-296,30.04.24,ADULT SOCIAL CARE,ABILITY HEALTHCARE CANNOCK LTD,03/04/2024,"1,680.00",6541-Domiciliary Care,THIRD PARTY PAYMENTS,PRIVATE CONTRACTOR,REVENUE
Walsall Council,http://opendatacommunities.org/id/metropolitan-district-council/walsall ,WC161-297,30.04.24,ADULT SOCIAL CARE,ABILITY HEALTHCARE CANNOCK LTD,03/04/2024,"2,268.00",6541-Domiciliary Care,THIRD PARTY PAYMENTS,PRIVATE CONTRACTOR,REVENUE
Walsall Council,http://opendatacommunities.org/id/metropolitan-district-council/walsall ,WC161-298,30.04.24,ADULT SOCIAL CARE,ABILITY HEALTHCARE CANNOCK LTD,03/04/2024,"1,080.00",6541-Domiciliary Care,THIRD PARTY PAYMENTS,PRIVATE CONTRACTOR,REVENUE
Walsall Council,http://opendatacommunities.org/id/metropolitan-district-council/walsall ,WC161-299,30.04.24,ADULT SOCIAL CARE,ABILITY HEALTHCARE CANNOCK LTD,03/04/2024,336.00,6541-Domiciliary Care,THIRD PARTY PAYMENTS,PRIVATE CONTRACTOR,REVENUE
Walsall Council,http://opendatacommunities.org/id/metropolitan-district-council/walsall ,WC161-300,30.04.24,ADULT SOCIAL CARE,ABILITY HEALTHCARE CANNOCK LTD,03/04/2024,"1,764.00",6541-Domiciliary Care,THIRD PARTY PAYMENTS,PRIVATE CONTRACTOR,REVENUE
Walsall Council,http://opendatacommunities.org/id/metropolitan-district-council/walsall ,WC161-301,30.04.24,ADULT SOCIAL CARE,ABILITY HEALTHCARE CANNOCK LTD,03/04/2024,594.00,6541-Domiciliary Care,THIRD PARTY PAYMENTS,PRIVATE CONTRACTOR,REVENUE
Walsall Council,http://opendatacommunities.org/id/metropolitan-district-council/walsall ,WC161-302,30.04.24,ADULT SOCIAL CARE,ABILITY HEALTHCARE CANNOCK LTD,03/04/2024,"1,344.00",6541-Domiciliary Care,THIRD PARTY PAYMENTS,PRIVATE CONTRACTOR,REVENUE
Walsall Council,http://opendatacommunities.org/id/metropolitan-district-council/walsall ,WC161-303,30.04.24,ADULT SOCIAL CARE,ABILITY HEALTHCARE CANNOCK LTD,03/04/2024,"2,142.00",6541-Domiciliary Care,THIRD PARTY PAYMENTS,PRIVATE CONTRACTOR,REVENUE
Walsall Council,http://opendatacommunities.org/id/metropolitan-district-council/walsall ,WC161-304,30.04.24,ADULT SOCIAL CARE,ABILITY HEALTHCARE CANNOCK LTD,03/04/2024,"1,098.00",6541-Domiciliary Care,THIRD PARTY PAYMENTS,PRIVATE CONTRACTOR,REVENUE
Walsall Council,http://opendatacommunities.org/id/metropolitan-district-council/walsall ,WC161-305,30.04.24,ADULT SOCIAL CARE,ABILITY HEALTHCARE CANNOCK LTD,03/04/2024,"1,512.00",6541-Domiciliary Care,THIRD PARTY PAYMENTS,PRIVATE CONTRACTOR,REVENUE
Walsall Council,http://opendatacommunities.org/id/metropolitan-district-council/walsall ,WC161-306,30.04.24,ADULT SOCIAL CARE,ABILITY HEALTHCARE CANNOCK LTD,04/04/2024,405.00,6554-Professional Services-Priv Contractor & Other Agencies,THIRD PARTY PAYMENTS,PRIVATE CONTRACTOR,REVENUE
Walsall Council,http://opendatacommunities.org/id/metropolitan-district-council/walsall ,WC161-307,30.04.24,ADULT SOCIAL CARE,ABILITY HEALTHCARE CANNOCK LTD,04/04/2024,"1,512.00",6554-Professional Services-Priv Contractor & Other Agencies,THIRD PARTY PAYMENTS,PRIVATE CONTRACTOR,REVENUE
Walsall Council,http://opendatacommunities.org/id/metropolitan-district-council/walsall ,WC161-308,30.04.24,ADULT SOCIAL CARE,ABILITY HEALTHCARE CANNOCK LTD,04/04/2024,"1,215.00",6554-Professional Services-Priv Contractor & Other Agencies,THIRD PARTY PAYMENTS,PRIVATE CONTRACTOR,REVENUE
Walsall Council,http://opendatacommunities.org/id/metropolitan-district-council/walsall ,WC161-309,30.04.24,ADULT SOCIAL CARE,ABILITY HEALTHCARE CANNOCK LTD,04/04/2024,567.00,6554-Professional Services-Priv Contractor & Other Agencies,THIRD PARTY PAYMENTS,PRIVATE CONTRACTOR,REVENUE
Walsall Council,http://opendatacommunities.org/id/metropolitan-district-council/walsall ,WC161-310,30.04.24,ADULT SOCIAL CARE,ABILITY HEALTHCARE CANNOCK LTD,04/04/2024,"1,269.00",6554-Professional Services-Priv Contractor & Other Agencies,THIRD PARTY PAYMENTS,PRIVATE CONTRACTOR,REVENUE
Walsall Council,http://opendatacommunities.org/id/metropolitan-district-council/walsall ,WC161-311,30.04.24,ADULT SOCIAL CARE,ABILITY HEALTHCARE CANNOCK LTD,04/04/2024,"1,539.00",6554-Professional Services-Priv Contractor & Other Agencies,THIRD PARTY PAYMENTS,PRIVATE CONTRACTOR,REVENUE
Walsall Council,http://opendatacommunities.org/id/metropolitan-district-council/walsall ,WC161-312,30.04.24,ADULT SOCIAL CARE,ABILITY HEALTHCARE CANNOCK LTD,04/04/2024,441.00,6554-Professional Services-Priv Contractor & Other Agencies,THIRD PARTY PAYMENTS,PRIVATE CONTRACTOR,REVENUE
Walsall Council,http://opendatacommunities.org/id/metropolitan-district-council/walsall ,WC161-313,30.04.24,ADULT SOCIAL CARE,ABILITY HEALTHCARE CANNOCK LTD,04/04/2024,"1,524.00",6554-Professional Services-Priv Contractor & Other Agencies,THIRD PARTY PAYMENTS,PRIVATE CONTRACTOR,REVENUE
Walsall Council,http://opendatacommunities.org/id/metropolitan-district-council/walsall ,WC161-314,30.04.24,"ECONOMY, ENVIRONMENT & COMMUNITIES",ABLE INVESTIGATIONS & ENFORCEMENTS LTD,23/04/2024,"9,623.00",6440-Professional Fees & Services,SUPPLIES & SERVICES,SERVICES,REVENUE
Walsall Council,http://opendatacommunities.org/id/metropolitan-district-council/walsall ,WC161-315,30.04.24,"ECONOMY, ENVIRONMENT & COMMUNITIES",ABLE INVESTIGATIONS & ENFORCEMENTS LTD,23/04/2024,"1,315.00",6440-Professional Fees & Services,SUPPLIES & SERVICES,SERVICES,REVENUE
Walsall Council,http://opendatacommunities.org/id/metropolitan-district-council/walsall ,WC161-316,30.04.24,CHILDRENS,ABLEWELL CARS,22/04/2024,632.00,6241-Hire of Vehicle with Driver,TRANSPORT,DIRECT TRANSPORT COSTS,REVENUE
Walsall Council,http://opendatacommunities.org/id/metropolitan-district-council/walsall ,WC161-317,30.04.24,CHILDRENS,ABLEWELL CARS,22/04/2024,841.60,6241-Hire of Vehicle with Driver,TRANSPORT,DIRECT TRANSPORT COSTS,REVENUE
Walsall Council,http://opendatacommunities.org/id/metropolitan-district-council/walsall ,WC161-318,30.04.24,CHILDRENS,ABLEWELL CARS,22/04/2024,666.00,6241-Hire of Vehicle with Driver,TRANSPORT,DIRECT TRANSPORT COSTS,REVENUE
Walsall Council,http://opendatacommunities.org/id/metropolitan-district-council/walsall ,WC161-319,30.04.24,CHILDRENS,ABLEWELL CARS,22/04/2024,"1,425.00",6241-Hire of Vehicle with Driver,TRANSPORT,DIRECT TRANSPORT COSTS,REVENUE
Walsall Council,http://opendatacommunities.org/id/metropolitan-district-council/walsall ,WC161-320,30.04.24,"ECONOMY, ENVIRONMENT & COMMUNITIES",ABRSM,05/04/2024,"1,294.00",6414-Examinations-Services,SUPPLIES & SERVICES,SERVICES,REVENUE
Walsall Council,http://opendatacommunities.org/id/metropolitan-district-council/walsall ,WC161-321,30.04.24,CHILDRENS,ABS TAXIS (ALDRIDGE),22/04/2024,"1,514.00",6241-Hire of Vehicle with Driver,TRANSPORT,DIRECT TRANSPORT COSTS,REVENUE
Walsall Council,http://opendatacommunities.org/id/metropolitan-district-council/walsall ,WC161-322,30.04.24,CHILDRENS,ABS TAXIS (ALDRIDGE),22/04/2024,805.00,6241-Hire of Vehicle with Driver,TRANSPORT,DIRECT TRANSPORT COSTS,REVENUE
Walsall Council,http://opendatacommunities.org/id/metropolitan-district-council/walsall ,WC161-323,30.04.24,CHILDRENS,ABS TAXIS (ALDRIDGE),22/04/2024,987.00,6241-Hire of Vehicle with Driver,TRANSPORT,DIRECT TRANSPORT COSTS,REVENUE
Walsall Council,http://opendatacommunities.org/id/metropolitan-district-council/walsall ,WC161-324,30.04.24,ADULT SOCIAL CARE,ABSOLUTE CARE HOMES (CENTRAL) LTD,09/04/2024,"7,600.00",6541-Nursing EMI,THIRD PARTY PAYMENTS,PRIVATE CONTRACTOR,REVENUE
Walsall Council,http://opendatacommunities.org/id/metropolitan-district-council/walsall ,WC161-325,30.04.24,ADULT SOCIAL CARE,ABSOLUTE CARE HOMES (CENTRAL) LTD,09/04/2024,"7,200.00",6541-Residential,THIRD PARTY PAYMENTS,PRIVATE CONTRACTOR,REVENUE
Walsall Council,http://opendatacommunities.org/id/metropolitan-district-council/walsall ,WC161-326,30.04.24,ADULT SOCIAL CARE,ABSOLUTE CARE HOMES (CENTRAL) LTD,09/04/2024,"6,310.84",6541-Nursing EMI,THIRD PARTY PAYMENTS,PRIVATE CONTRACTOR,REVENUE
Walsall Council,http://opendatacommunities.org/id/metropolitan-district-council/walsall ,WC161-327,30.04.24,ADULT SOCIAL CARE,ABSOLUTE HEALTHCARE SWAN HOUSE LTD,09/04/2024,"2,137.32",6541-Residential,THIRD PARTY PAYMENTS,PRIVATE CONTRACTOR,REVENUE
Walsall Council,http://opendatacommunities.org/id/metropolitan-district-council/walsall ,WC161-328,30.04.24,ADULT SOCIAL CARE,ABSOLUTE HEALTHCARE SWAN HOUSE LTD,09/04/2024,"2,137.32",6541-Residential,THIRD PARTY PAYMENTS,PRIVATE CONTRACTOR,REVENUE
Walsall Council,http://opendatacommunities.org/id/metropolitan-district-council/walsall ,WC161-329,30.04.24,ADULT SOCIAL CARE,ABSOLUTE HEALTHCARE SWAN HOUSE LTD,09/04/2024,"2,413.36",6541-Residential EMI,THIRD PARTY PAYMENTS,PRIVATE CONTRACTOR,REVENUE
Walsall Council,http://opendatacommunities.org/id/metropolitan-district-council/walsall ,WC161-330,30.04.24,ADULT SOCIAL CARE,ABSOLUTE HEALTHCARE SWAN HOUSE LTD,09/04/2024,"3,000.00",6541-Residential EMI,THIRD PARTY PAYMENTS,PRIVATE CONTRACTOR,REVENUE
Walsall Council,http://opendatacommunities.org/id/metropolitan-district-council/walsall ,WC161-331,30.04.24,ADULT SOCIAL CARE,ABSOLUTE HEALTHCARE SWAN HOUSE LTD,09/04/2024,"2,413.36",6541-Residential EMI,THIRD PARTY PAYMENTS,PRIVATE CONTRACTOR,REVENUE
Walsall Council,http://opendatacommunities.org/id/metropolitan-district-council/walsall ,WC161-332,30.04.24,ADULT SOCIAL CARE,ABSOLUTE HEALTHCARE SWAN HOUSE LTD,09/04/2024,"3,400.00",6541-Residential EMI,THIRD PARTY PAYMENTS,PRIVATE CONTRACTOR,REVENUE
Walsall Council,http://opendatacommunities.org/id/metropolitan-district-council/walsall ,WC161-333,30.04.24,ADULT SOCIAL CARE,ABSOLUTE HEALTHCARE SWAN HOUSE LTD,09/04/2024,"2,413.36",6541-Residential EMI,THIRD PARTY PAYMENTS,PRIVATE CONTRACTOR,REVENUE
Walsall Council,http://opendatacommunities.org/id/metropolitan-district-council/walsall ,WC161-334,30.04.24,ADULT SOCIAL CARE,ABSOLUTE HEALTHCARE SWAN HOUSE LTD,09/04/2024,"2,277.32",6541-Residential,THIRD PARTY PAYMENTS,PRIVATE CONTRACTOR,REVENUE
Walsall Council,http://opendatacommunities.org/id/metropolitan-district-council/walsall ,WC161-335,30.04.24,ADULT SOCIAL CARE,ABSOLUTE HEALTHCARE SWAN HOUSE LTD,09/04/2024,"1,679.32",6541-Residential,THIRD PARTY PAYMENTS,PRIVATE CONTRACTOR,REVENUE
Walsall Council,http://opendatacommunities.org/id/metropolitan-district-council/walsall ,WC161-336,30.04.24,ADULT SOCIAL CARE,ABSOLUTE HEALTHCARE SWAN HOUSE LTD,09/04/2024,"3,600.00",6541-Residential,THIRD PARTY PAYMENTS,PRIVATE CONTRACTOR,REVENUE
Walsall Council,http://opendatacommunities.org/id/metropolitan-district-council/walsall ,WC161-337,30.04.24,ADULT SOCIAL CARE,ABSOLUTE HEALTHCARE SWAN HOUSE LTD,09/04/2024,"4,056.00",6541-Residential,THIRD PARTY PAYMENTS,PRIVATE CONTRACTOR,REVENUE
Walsall Council,http://opendatacommunities.org/id/metropolitan-district-council/walsall ,WC161-338,30.04.24,ADULT SOCIAL CARE,ABSOLUTE HEALTHCARE SWAN HOUSE LTD,09/04/2024,"2,137.32",6541-Residential,THIRD PARTY PAYMENTS,PRIVATE CONTRACTOR,REVENUE
Walsall Council,http://opendatacommunities.org/id/metropolitan-district-council/walsall ,WC161-339,30.04.24,ADULT SOCIAL CARE,ABSOLUTE HEALTHCARE SWAN HOUSE LTD,02/04/2024,"2,708.23",6541-Residential,THIRD PARTY PAYMENTS,PRIVATE CONTRACTOR,REVENUE
Walsall Council,http://opendatacommunities.org/id/metropolitan-district-council/walsall ,WC161-340,30.04.24,ADULT SOCIAL CARE,ABSOLUTE HEALTHCARE SWAN HOUSE LTD,02/04/2024,"2,144.01",6541-Residential EMI,THIRD PARTY PAYMENTS,PRIVATE CONTRACTOR,REVENUE
Walsall Council,http://opendatacommunities.org/id/metropolitan-district-council/walsall ,WC161-341,30.04.24,ADULT SOCIAL CARE,ABSOLUTE HEALTHCARE SWAN HOUSE LTD,02/04/2024,692.10,6541-Nursing EMI,THIRD PARTY PAYMENTS,PRIVATE CONTRACTOR,REVENUE
Walsall Council,http://opendatacommunities.org/id/metropolitan-district-council/walsall ,WC161-342,30.04.24,ADULT SOCIAL CARE,ABSOLUTE HEALTHCARE SWAN HOUSE LTD,03/04/2024,"6,400.00",6541-Residential,THIRD PARTY PAYMENTS,PRIVATE CONTRACTOR,REVENUE
Walsall Council,http://opendatacommunities.org/id/metropolitan-district-council/walsall ,WC161-343,30.04.24,ADULT SOCIAL CARE,ABSOLUTE HEALTHCARE SWAN HOUSE LTD,03/04/2024,"11,428.57",6541-Residential EMI,THIRD PARTY PAYMENTS,PRIVATE CONTRACTOR,REVENUE
Walsall Council,http://opendatacommunities.org/id/metropolitan-district-council/walsall ,WC161-344,30.04.24,CHILDRENS,ABU BAKR NURSERY,19/04/2024,"-1,165.37",1184-Other-Grants to Other Orgs,SUPPLIES & SERVICES,GRANTS (EXP) & SUBSCRIPTIONS,REVENUE
Walsall Council,http://opendatacommunities.org/id/metropolitan-district-council/walsall ,WC161-345,30.04.24,CHILDRENS,ABU BAKR NURSERY,16/04/2024,"9,477.00",1184-Other-Grants to Other Orgs,SUPPLIES & SERVICES,GRANTS (EXP) & SUBSCRIPTIONS,REVENUE
Walsall Council,http://opendatacommunities.org/id/metropolitan-district-council/walsall ,WC161-346,30.04.24,CHILDRENS,ABU BAKR NURSERY,19/04/2024,"5,548.50",1184-Other-Grants to Other Orgs,SUPPLIES & SERVICES,GRANTS (EXP) & SUBSCRIPTIONS,REVENUE
Walsall Council,http://opendatacommunities.org/id/metropolitan-district-council/walsall ,WC161-347,30.04.24,CHILDRENS,ABU BAKR NURSERY,19/04/2024,"-2,843.10",1184-Other-Grants to Other Orgs,SUPPLIES & SERVICES,GRANTS (EXP) & SUBSCRIPTIONS,REVENUE
Walsall Council,http://opendatacommunities.org/id/metropolitan-district-council/walsall ,WC161-348,30.04.24,CHILDRENS,ABU BAKR NURSERY,16/04/2024,"33,169.50",1184-Other-Grants to Other Orgs,SUPPLIES & SERVICES,GRANTS (EXP) & SUBSCRIPTIONS,REVENUE
Walsall Council,http://opendatacommunities.org/id/metropolitan-district-council/walsall ,WC161-349,30.04.24,CHILDRENS,ABU BAKR NURSERY,19/04/2024,"2,551.50",1184-Other-Grants to Other Orgs,SUPPLIES & SERVICES,GRANTS (EXP) & SUBSCRIPTIONS,REVENUE
Walsall Council,http://opendatacommunities.org/id/metropolitan-district-council/walsall ,WC161-350,30.04.24,CHILDRENS,ABU BAKR NURSERY,03/04/2024,"-2,491.66",1265-Early Years Supplementary Grant Expenditure,TRANSFER PAYMENTS,SCHOOLCHILDREN/STUDENTS,REVENUE
Walsall Council,http://opendatacommunities.org/id/metropolitan-district-council/walsall ,WC161-351,30.04.24,CHILDRENS,ABU BAKR NURSERY,03/04/2024,"3,335.36",1265-Early Years Supplementary Grant Expenditure,TRANSFER PAYMENTS,SCHOOLCHILDREN/STUDENTS,REVENUE
Walsall Council,http://opendatacommunities.org/id/metropolitan-district-council/walsall ,WC161-352,30.04.24,CHILDRENS,ABU BAKR NURSERY,03/04/2024,-633.98,1265-Early Years Supplementary Grant Expenditure,TRANSFER PAYMENTS,SCHOOLCHILDREN/STUDENTS,REVENUE
Walsall Council,http://opendatacommunities.org/id/metropolitan-district-council/walsall ,WC161-353,30.04.24,CHILDRENS,ABU BAKR NURSERY,03/04/2024,"1,722.83",1265-Early Years Supplementary Grant Expenditure,TRANSFER PAYMENTS,SCHOOLCHILDREN/STUDENTS,REVENUE
Walsall Council,http://opendatacommunities.org/id/metropolitan-district-council/walsall ,WC161-354,30.04.24,CHILDRENS,ACADEMY 21 LTD,04/04/2024,"-6,050.00",1220-Professional Fees & Services,SUPPLIES & SERVICES,SERVICES,REVENUE
Walsall Council,http://opendatacommunities.org/id/metropolitan-district-council/walsall ,WC161-355,30.04.24,CHILDRENS,ACADEMY 21 LTD,04/04/2024,"-6,050.00",1220-Professional Fees & Services,SUPPLIES & SERVICES,SERVICES,REVENUE
Walsall Council,http://opendatacommunities.org/id/metropolitan-district-council/walsall ,WC161-356,30.04.24,CHILDRENS,ACADEMY 21 LTD,04/04/2024,"6,050.00",1220-Professional Fees & Services,SUPPLIES & SERVICES,SERVICES,REVENUE
Walsall Council,http://opendatacommunities.org/id/metropolitan-district-council/walsall ,WC161-357,30.04.24,CHILDRENS,ACADEMY 21 LTD,04/04/2024,"6,050.00",1220-Professional Fees & Services,SUPPLIES & SERVICES,SERVICES,REVENUE
Walsall Council,http://opendatacommunities.org/id/metropolitan-district-council/walsall ,WC161-358,30.04.24,CHILDRENS,ACADEMY 21 LTD,17/04/2024,"5,885.00",1220-Professional Fees & Services,SUPPLIES & SERVICES,SERVICES,REVENUE
Walsall Council,http://opendatacommunities.org/id/metropolitan-district-council/walsall ,WC161-359,30.04.24,CHILDRENS,ACCALIA CARE SERVICES LTD,16/04/2024,"21,160.00",6223-External Residential Care-Oth Agency Provision,THIRD PARTY PAYMENTS,PRIVATE CONTRACTOR,REVENUE
Walsall Council,http://opendatacommunities.org/id/metropolitan-district-council/walsall ,WC161-360,30.04.24,CHILDRENS,ACCEPTING BEHAVIOUR LTD,03/04/2024,877.50,1220-Professional Fees & Services,SUPPLIES & SERVICES,SERVICES,REVENUE
Walsall Council,http://opendatacommunities.org/id/metropolitan-district-council/walsall ,WC161-361,30.04.24,RESOURCES AND TRANSFORMATION CAPITAL,ACCESS PAYSUITE LTD,24/04/2024,"10,950.00",7300-Consultants Fees,CAPITAL,"NEW CONSTRUCTION,CONVERSION & RENOVATION",CAPITAL
Walsall Council,http://opendatacommunities.org/id/metropolitan-district-council/walsall ,WC161-362,30.04.24,ADULT SOCIAL CARE,ACCESS UK LTD,04/04/2024,"18,315.00",6551-Professional Fees & Services,SUPPLIES & SERVICES,SERVICES,REVENUE
Walsall Council,http://opendatacommunities.org/id/metropolitan-district-council/walsall ,WC161-363,30.04.24,ADULT SOCIAL CARE,ACCESS UK LTD,23/04/2024,950.00,6540-Postages & Courier Services,SUPPLIES & SERVICES,COMMUNICATIONS & COMPUTING,REVENUE
Walsall Council,http://opendatacommunities.org/id/metropolitan-district-council/walsall ,WC161-364,30.04.24,ADULT SOCIAL CARE,ACCORD HOUSING ASSOCIATION LIMITED - HOBS MEADOW,09/04/2024,"4,776.84",6541-Residential,THIRD PARTY PAYMENTS,PRIVATE CONTRACTOR,REVENUE
Walsall Council,http://opendatacommunities.org/id/metropolitan-district-council/walsall ,WC161-365,30.04.24,ADULT SOCIAL CARE,ACCORD HOUSING ASSOCIATION LIMITED - HOBS MEADOW,09/04/2024,"4,872.36",6541-Residential,THIRD PARTY PAYMENTS,PRIVATE CONTRACTOR,REVENUE
Walsall Council,http://opendatacommunities.org/id/metropolitan-district-council/walsall ,WC161-366,30.04.24,ADULT SOCIAL CARE,ACCORD HOUSING ASSOCIATION LIMITED - HOBS MEADOW,09/04/2024,"4,872.36",6541-Residential,THIRD PARTY PAYMENTS,PRIVATE CONTRACTOR,REVENUE
Walsall Council,http://opendatacommunities.org/id/metropolitan-district-council/walsall ,WC161-367,30.04.24,CHILDRENS,ACE CARS & MINIBUSES LTD,22/04/2024,"1,070.00",6241-Hire of Vehicle with Driver,TRANSPORT,DIRECT TRANSPORT COSTS,REVENUE
Walsall Council,http://opendatacommunities.org/id/metropolitan-district-council/walsall ,WC161-368,30.04.24,CHILDRENS,ACE CARS & MINIBUSES LTD,22/04/2024,"1,070.00",6241-Hire of Vehicle with Driver,TRANSPORT,DIRECT TRANSPORT COSTS,REVENUE
Walsall Council,http://opendatacommunities.org/id/metropolitan-district-council/walsall ,WC161-369,30.04.24,CHILDRENS,ACE CARS & MINIBUSES LTD,22/04/2024,"1,180.00",6241-Hire of Vehicle with Driver,TRANSPORT,DIRECT TRANSPORT COSTS,REVENUE
Walsall Council,http://opendatacommunities.org/id/metropolitan-district-council/walsall ,WC161-370,30.04.24,CHILDRENS,ACE CARS & MINIBUSES LTD,22/04/2024,"1,696.90",6241-Hire of Vehicle with Driver,TRANSPORT,DIRECT TRANSPORT COSTS,REVENUE
Walsall Council,http://opendatacommunities.org/id/metropolitan-district-council/walsall ,WC161-371,30.04.24,CHILDRENS,ACE CARS & MINIBUSES LTD,22/04/2024,"1,070.00",6241-Hire of Vehicle with Driver,TRANSPORT,DIRECT TRANSPORT COSTS,REVENUE
Walsall Council,http://opendatacommunities.org/id/metropolitan-district-council/walsall ,WC161-372,30.04.24,CHILDRENS,ACE CARS & MINIBUSES LTD,22/04/2024,"1,180.00",6241-Hire of Vehicle with Driver,TRANSPORT,DIRECT TRANSPORT COSTS,REVENUE
Walsall Council,http://opendatacommunities.org/id/metropolitan-district-council/walsall ,WC161-373,30.04.24,CHILDRENS,ACE CARS & MINIBUSES LTD,22/04/2024,"1,345.20",6241-Hire of Vehicle with Driver,TRANSPORT,DIRECT TRANSPORT COSTS,REVENUE
Walsall Council,http://opendatacommunities.org/id/metropolitan-district-council/walsall ,WC161-374,30.04.24,CHILDRENS,ACE CARS & MINIBUSES LTD,22/04/2024,"1,250.80",6241-Hire of Vehicle with Driver,TRANSPORT,DIRECT TRANSPORT COSTS,REVENUE
Walsall Council,http://opendatacommunities.org/id/metropolitan-district-council/walsall ,WC161-375,30.04.24,CHILDRENS,ACE CARS & MINIBUSES LTD,22/04/2024,"1,140.00",6241-Hire of Vehicle with Driver,TRANSPORT,DIRECT TRANSPORT COSTS,REVENUE
Walsall Council,http://opendatacommunities.org/id/metropolitan-district-council/walsall ,WC161-376,30.04.24,CHILDRENS,ACE CARS & MINIBUSES LTD,22/04/2024,"1,180.00",6241-Hire of Vehicle with Driver,TRANSPORT,DIRECT TRANSPORT COSTS,REVENUE
Walsall Council,http://opendatacommunities.org/id/metropolitan-district-council/walsall ,WC161-377,30.04.24,CHILDRENS,ACE CARS & MINIBUSES LTD,22/04/2024,"1,891.90",6241-Hire of Vehicle with Driver,TRANSPORT,DIRECT TRANSPORT COSTS,REVENUE
Walsall Council,http://opendatacommunities.org/id/metropolitan-district-council/walsall ,WC161-378,30.04.24,CHILDRENS,ACE CARS & MINIBUSES LTD,22/04/2024,"1,361.00",6241-Hire of Vehicle with Driver,TRANSPORT,DIRECT TRANSPORT COSTS,REVENUE
Walsall Council,http://opendatacommunities.org/id/metropolitan-district-council/walsall ,WC161-379,30.04.24,CHILDRENS,ACE CARS & MINIBUSES LTD,22/04/2024,"1,537.90",6241-Hire of Vehicle with Driver,TRANSPORT,DIRECT TRANSPORT COSTS,REVENUE
Walsall Council,http://opendatacommunities.org/id/metropolitan-district-council/walsall ,WC161-380,30.04.24,CHILDRENS,ACE CARS & MINIBUSES LTD,22/04/2024,"1,557.60",6241-Hire of Vehicle with Driver,TRANSPORT,DIRECT TRANSPORT COSTS,REVENUE
Walsall Council,http://opendatacommunities.org/id/metropolitan-district-council/walsall ,WC161-381,30.04.24,CHILDRENS,ACE CARS & MINIBUSES LTD,22/04/2024,"1,140.00",6241-Hire of Vehicle with Driver,TRANSPORT,DIRECT TRANSPORT COSTS,REVENUE
Walsall Council,http://opendatacommunities.org/id/metropolitan-district-council/walsall ,WC161-382,30.04.24,CHILDRENS,ACE CARS & MINIBUSES LTD,22/04/2024,"1,195.00",6241-Hire of Vehicle with Driver,TRANSPORT,DIRECT TRANSPORT COSTS,REVENUE
Walsall Council,http://opendatacommunities.org/id/metropolitan-district-council/walsall ,WC161-383,30.04.24,CHILDRENS,ACE CARS & MINIBUSES LTD,22/04/2024,"1,195.00",6241-Hire of Vehicle with Driver,TRANSPORT,DIRECT TRANSPORT COSTS,REVENUE
Walsall Council,http://opendatacommunities.org/id/metropolitan-district-council/walsall ,WC161-384,30.04.24,CHILDRENS,ACE CARS & MINIBUSES LTD,22/04/2024,"1,070.00",6241-Hire of Vehicle with Driver,TRANSPORT,DIRECT TRANSPORT COSTS,REVENUE
Walsall Council,http://opendatacommunities.org/id/metropolitan-district-council/walsall ,WC161-385,30.04.24,CHILDRENS,ACE CARS & MINIBUSES LTD,22/04/2024,"1,070.00",6241-Hire of Vehicle with Driver,TRANSPORT,DIRECT TRANSPORT COSTS,REVENUE
Walsall Council,http://opendatacommunities.org/id/metropolitan-district-council/walsall ,WC161-386,30.04.24,CHILDRENS,ACE CARS & MINIBUSES LTD,22/04/2024,"1,070.00",6241-Hire of Vehicle with Driver,TRANSPORT,DIRECT TRANSPORT COSTS,REVENUE
Walsall Council,http://opendatacommunities.org/id/metropolitan-district-council/walsall ,WC161-387,30.04.24,CHILDRENS,ACE CARS & MINIBUSES LTD,22/04/2024,"1,070.00",6241-Hire of Vehicle with Driver,TRANSPORT,DIRECT TRANSPORT COSTS,REVENUE
Walsall Council,http://opendatacommunities.org/id/metropolitan-district-council/walsall ,WC161-388,30.04.24,CHILDRENS,ACE CARS & MINIBUSES LTD,22/04/2024,"1,180.00",6241-Hire of Vehicle with Driver,TRANSPORT,DIRECT TRANSPORT COSTS,REVENUE
Walsall Council,http://opendatacommunities.org/id/metropolitan-district-council/walsall ,WC161-389,30.04.24,CHILDRENS,ACE CARS & MINIBUSES LTD,22/04/2024,"1,585.00",6241-Hire of Vehicle with Driver,TRANSPORT,DIRECT TRANSPORT COSTS,REVENUE
Walsall Council,http://opendatacommunities.org/id/metropolitan-district-council/walsall ,WC161-390,30.04.24,CHILDRENS,ACE CARS & MINIBUSES LTD,22/04/2024,"1,695.00",6241-Hire of Vehicle with Driver,TRANSPORT,DIRECT TRANSPORT COSTS,REVENUE
Walsall Council,http://opendatacommunities.org/id/metropolitan-district-council/walsall ,WC161-391,30.04.24,CHILDRENS,ACE CARS & MINIBUSES LTD,22/04/2024,"1,195.00",6241-Hire of Vehicle with Driver,TRANSPORT,DIRECT TRANSPORT COSTS,REVENUE
Walsall Council,http://opendatacommunities.org/id/metropolitan-district-council/walsall ,WC161-392,30.04.24,CHILDRENS,ACE CARS & MINIBUSES LTD,22/04/2024,"1,768.60",6241-Hire of Vehicle with Driver,TRANSPORT,DIRECT TRANSPORT COSTS,REVENUE
Walsall Council,http://opendatacommunities.org/id/metropolitan-district-council/walsall ,WC161-393,30.04.24,CHILDRENS,ACE CARS & MINIBUSES LTD,22/04/2024,"1,361.00",6241-Hire of Vehicle with Driver,TRANSPORT,DIRECT TRANSPORT COSTS,REVENUE
Walsall Council,http://opendatacommunities.org/id/metropolitan-district-council/walsall ,WC161-394,30.04.24,CHILDRENS,ACE CARS & MINIBUSES LTD,22/04/2024,"1,361.00",6241-Hire of Vehicle with Driver,TRANSPORT,DIRECT TRANSPORT COSTS,REVENUE
Walsall Council,http://opendatacommunities.org/id/metropolitan-district-council/walsall ,WC161-395,30.04.24,CHILDRENS,ACE CARS & MINIBUSES LTD,22/04/2024,"1,195.00",6241-Hire of Vehicle with Driver,TRANSPORT,DIRECT TRANSPORT COSTS,REVENUE
Walsall Council,http://opendatacommunities.org/id/metropolitan-district-council/walsall ,WC161-396,30.04.24,CHILDRENS,ACE CARS & MINIBUSES LTD,22/04/2024,"1,140.00",6241-Hire of Vehicle with Driver,TRANSPORT,DIRECT TRANSPORT COSTS,REVENUE
Walsall Council,http://opendatacommunities.org/id/metropolitan-district-council/walsall ,WC161-397,30.04.24,CHILDRENS,ACE CARS & MINIBUSES LTD,22/04/2024,"1,070.00",6241-Hire of Vehicle with Driver,TRANSPORT,DIRECT TRANSPORT COSTS,REVENUE
Walsall Council,http://opendatacommunities.org/id/metropolitan-district-council/walsall ,WC161-398,30.04.24,CHILDRENS,ACE CARS & MINIBUSES LTD,22/04/2024,"2,124.00",6241-Hire of Vehicle with Driver,TRANSPORT,DIRECT TRANSPORT COSTS,REVENUE
Walsall Council,http://opendatacommunities.org/id/metropolitan-district-council/walsall ,WC161-399,30.04.24,CHILDRENS,ACE CARS & MINIBUSES LTD,22/04/2024,"1,070.00",6241-Hire of Vehicle with Driver,TRANSPORT,DIRECT TRANSPORT COSTS,REVENUE
Walsall Council,http://opendatacommunities.org/id/metropolitan-district-council/walsall ,WC161-400,30.04.24,CHILDRENS,ACE CARS & MINIBUSES LTD,22/04/2024,"1,070.00",6241-Hire of Vehicle with Driver,TRANSPORT,DIRECT TRANSPORT COSTS,REVENUE
Walsall Council,http://opendatacommunities.org/id/metropolitan-district-council/walsall ,WC161-401,30.04.24,CHILDRENS,ACE CARS & MINIBUSES LTD,22/04/2024,"1,070.00",6241-Hire of Vehicle with Driver,TRANSPORT,DIRECT TRANSPORT COSTS,REVENUE
Walsall Council,http://opendatacommunities.org/id/metropolitan-district-council/walsall ,WC161-402,30.04.24,CHILDRENS,ACE CARS & MINIBUSES LTD,22/04/2024,"1,180.00",6241-Hire of Vehicle with Driver,TRANSPORT,DIRECT TRANSPORT COSTS,REVENUE
Walsall Council,http://opendatacommunities.org/id/metropolitan-district-council/walsall ,WC161-403,30.04.24,CHILDRENS,ACE CARS & MINIBUSES LTD,22/04/2024,"1,361.00",6241-Hire of Vehicle with Driver,TRANSPORT,DIRECT TRANSPORT COSTS,REVENUE
Walsall Council,http://opendatacommunities.org/id/metropolitan-district-council/walsall ,WC161-404,30.04.24,CHILDRENS,ACE CARS & MINIBUSES LTD,22/04/2024,"1,361.00",6241-Hire of Vehicle with Driver,TRANSPORT,DIRECT TRANSPORT COSTS,REVENUE
Walsall Council,http://opendatacommunities.org/id/metropolitan-district-council/walsall ,WC161-405,30.04.24,CHILDRENS,ACE CARS & MINIBUSES LTD,22/04/2024,"1,361.00",6241-Hire of Vehicle with Driver,TRANSPORT,DIRECT TRANSPORT COSTS,REVENUE
Walsall Council,http://opendatacommunities.org/id/metropolitan-district-council/walsall ,WC161-406,30.04.24,CHILDRENS,ACE CARS & MINIBUSES LTD,22/04/2024,"1,924.00",6241-Hire of Vehicle with Driver,TRANSPORT,DIRECT TRANSPORT COSTS,REVENUE
Walsall Council,http://opendatacommunities.org/id/metropolitan-district-council/walsall ,WC161-407,30.04.24,CHILDRENS,ACE COACHING LIMITED,24/04/2024,527.00,6211-Professional Fees & Services,SUPPLIES & SERVICES,SERVICES,REVENUE
Walsall Council,http://opendatacommunities.org/id/metropolitan-district-council/walsall ,WC161-408,30.04.24,ADULT SOCIAL CARE,ACEPAY LTD (COTTAGE NUR HOME),09/04/2024,"2,505.36",6541-Nursing,THIRD PARTY PAYMENTS,PRIVATE CONTRACTOR,REVENUE
Walsall Council,http://opendatacommunities.org/id/metropolitan-district-council/walsall ,WC161-409,30.04.24,ADULT SOCIAL CARE,ACEPAY LTD (COTTAGE NUR HOME),09/04/2024,"2,505.36",6541-Nursing,THIRD PARTY PAYMENTS,PRIVATE CONTRACTOR,REVENUE
Walsall Council,http://opendatacommunities.org/id/metropolitan-district-council/walsall ,WC161-410,30.04.24,ADULT SOCIAL CARE,ACEPAY LTD (COTTAGE NUR HOME),09/04/2024,"2,413.36",6541-Residential EMI,THIRD PARTY PAYMENTS,PRIVATE CONTRACTOR,REVENUE
Walsall Council,http://opendatacommunities.org/id/metropolitan-district-council/walsall ,WC161-411,30.04.24,ADULT SOCIAL CARE,ACEPAY LTD (COTTAGE NUR HOME),09/04/2024,"2,819.08",6541-Nursing EMI,THIRD PARTY PAYMENTS,PRIVATE CONTRACTOR,REVENUE
Walsall Council,http://opendatacommunities.org/id/metropolitan-district-council/walsall ,WC161-412,30.04.24,ADULT SOCIAL CARE,ACEPAY LTD (COTTAGE NUR HOME),09/04/2024,"2,413.36",6541-Residential EMI,THIRD PARTY PAYMENTS,PRIVATE CONTRACTOR,REVENUE
Walsall Council,http://opendatacommunities.org/id/metropolitan-district-council/walsall ,WC161-413,30.04.24,ADULT SOCIAL CARE,ACEPAY LTD (COTTAGE NUR HOME),09/04/2024,"2,413.36",6541-Residential EMI,THIRD PARTY PAYMENTS,PRIVATE CONTRACTOR,REVENUE
Walsall Council,http://opendatacommunities.org/id/metropolitan-district-council/walsall ,WC161-414,30.04.24,ADULT SOCIAL CARE,ACEPAY LTD (COTTAGE NUR HOME),09/04/2024,"2,819.08",6541-Nursing EMI,THIRD PARTY PAYMENTS,PRIVATE CONTRACTOR,REVENUE
Walsall Council,http://opendatacommunities.org/id/metropolitan-district-council/walsall ,WC161-415,30.04.24,ADULT SOCIAL CARE,ACEPAY LTD (COTTAGE NUR HOME),09/04/2024,"2,819.08",6541-Nursing EMI,THIRD PARTY PAYMENTS,PRIVATE CONTRACTOR,REVENUE
Walsall Council,http://opendatacommunities.org/id/metropolitan-district-council/walsall ,WC161-416,30.04.24,ADULT SOCIAL CARE,ACEPAY LTD (COTTAGE NUR HOME),09/04/2024,"2,505.36",6541-Nursing,THIRD PARTY PAYMENTS,PRIVATE CONTRACTOR,REVENUE
Walsall Council,http://opendatacommunities.org/id/metropolitan-district-council/walsall ,WC161-417,30.04.24,ADULT SOCIAL CARE,ACEPAY LTD (COTTAGE NUR HOME),09/04/2024,"2,505.36",6541-Nursing,THIRD PARTY PAYMENTS,PRIVATE CONTRACTOR,REVENUE
Walsall Council,http://opendatacommunities.org/id/metropolitan-district-council/walsall ,WC161-418,30.04.24,ADULT SOCIAL CARE,ACEPAY LTD (COTTAGE NUR HOME),09/04/2024,"2,505.36",6541-Nursing,THIRD PARTY PAYMENTS,PRIVATE CONTRACTOR,REVENUE
Walsall Council,http://opendatacommunities.org/id/metropolitan-district-council/walsall ,WC161-419,30.04.24,ADULT SOCIAL CARE,ACEPAY LTD (COTTAGE NUR HOME),09/04/2024,"2,505.36",6541-Nursing,THIRD PARTY PAYMENTS,PRIVATE CONTRACTOR,REVENUE
Walsall Council,http://opendatacommunities.org/id/metropolitan-district-council/walsall ,WC161-420,30.04.24,ADULT SOCIAL CARE,ACEPAY LTD (COTTAGE NUR HOME),09/04/2024,"2,819.08",6541-Nursing EMI,THIRD PARTY PAYMENTS,PRIVATE CONTRACTOR,REVENUE
Walsall Council,http://opendatacommunities.org/id/metropolitan-district-council/walsall ,WC161-421,30.04.24,ADULT SOCIAL CARE,ACEPAY LTD (COTTAGE NUR HOME),09/04/2024,"2,505.36",6541-Nursing,THIRD PARTY PAYMENTS,PRIVATE CONTRACTOR,REVENUE
Walsall Council,http://opendatacommunities.org/id/metropolitan-district-council/walsall ,WC161-422,30.04.24,ADULT SOCIAL CARE,ACEPAY LTD (COTTAGE NUR HOME),09/04/2024,"2,413.36",6541-Residential EMI,THIRD PARTY PAYMENTS,PRIVATE CONTRACTOR,REVENUE
Walsall Council,http://opendatacommunities.org/id/metropolitan-district-council/walsall ,WC161-423,30.04.24,ADULT SOCIAL CARE,ACEPAY LTD (COTTAGE NUR HOME),09/04/2024,"2,819.08",6541-Nursing EMI,THIRD PARTY PAYMENTS,PRIVATE CONTRACTOR,REVENUE
Walsall Council,http://opendatacommunities.org/id/metropolitan-district-council/walsall ,WC161-424,30.04.24,ADULT SOCIAL CARE,ACEPAY LTD (COTTAGE NUR HOME),09/04/2024,"2,505.36",6541-Nursing,THIRD PARTY PAYMENTS,PRIVATE CONTRACTOR,REVENUE
Walsall Council,http://opendatacommunities.org/id/metropolitan-district-council/walsall ,WC161-425,30.04.24,ADULT SOCIAL CARE,ACEPAY LTD (COTTAGE NUR HOME),09/04/2024,"2,505.36",6541-Nursing,THIRD PARTY PAYMENTS,PRIVATE CONTRACTOR,REVENUE
Walsall Council,http://opendatacommunities.org/id/metropolitan-district-council/walsall ,WC161-426,30.04.24,ADULT SOCIAL CARE,ACEPAY LTD (COTTAGE NUR HOME),09/04/2024,"2,505.36",6541-Nursing,THIRD PARTY PAYMENTS,PRIVATE CONTRACTOR,REVENUE
Walsall Council,http://opendatacommunities.org/id/metropolitan-district-council/walsall ,WC161-427,30.04.24,ADULT SOCIAL CARE,ACEPAY LTD (COTTAGE NUR HOME),09/04/2024,"2,505.36",6541-Nursing,THIRD PARTY PAYMENTS,PRIVATE CONTRACTOR,REVENUE
Walsall Council,http://opendatacommunities.org/id/metropolitan-district-council/walsall ,WC161-428,30.04.24,ADULT SOCIAL CARE,ACEPAY LTD (COTTAGE NUR HOME),09/04/2024,"2,505.36",6541-Nursing,THIRD PARTY PAYMENTS,PRIVATE CONTRACTOR,REVENUE
Walsall Council,http://opendatacommunities.org/id/metropolitan-district-council/walsall ,WC161-429,30.04.24,ADULT SOCIAL CARE,ACEPAY LTD (COTTAGE NUR HOME),09/04/2024,"3,059.08",6541-Nursing EMI,THIRD PARTY PAYMENTS,PRIVATE CONTRACTOR,REVENUE
Walsall Council,http://opendatacommunities.org/id/metropolitan-district-council/walsall ,WC161-430,30.04.24,ADULT SOCIAL CARE,ACHIEVE TOGETHER LIMITED,09/04/2024,"6,572.72",6541-Residential,THIRD PARTY PAYMENTS,PRIVATE CONTRACTOR,REVENUE
Walsall Council,http://opendatacommunities.org/id/metropolitan-district-council/walsall ,WC161-431,30.04.24,ADULT SOCIAL CARE,ACHIEVE TOGETHER LIMITED,09/04/2024,"5,506.08",6541-Residential,THIRD PARTY PAYMENTS,PRIVATE CONTRACTOR,REVENUE
Walsall Council,http://opendatacommunities.org/id/metropolitan-district-council/walsall ,WC161-432,30.04.24,ADULT SOCIAL CARE,ACHIEVE TOGETHER LIMITED,09/04/2024,"9,178.80",6541-Residential,THIRD PARTY PAYMENTS,PRIVATE CONTRACTOR,REVENUE
Walsall Council,http://opendatacommunities.org/id/metropolitan-district-council/walsall ,WC161-433,30.04.24,ADULT SOCIAL CARE,ACHIEVE TOGETHER LIMITED,09/04/2024,"3,852.80",6541-Residential,THIRD PARTY PAYMENTS,PRIVATE CONTRACTOR,REVENUE
Walsall Council,http://opendatacommunities.org/id/metropolitan-district-council/walsall ,WC161-434,30.04.24,ADULT SOCIAL CARE,ACHIEVE TOGETHER LIMITED,09/04/2024,"4,920.72",6541-Residential,THIRD PARTY PAYMENTS,PRIVATE CONTRACTOR,REVENUE
Walsall Council,http://opendatacommunities.org/id/metropolitan-district-council/walsall ,WC161-435,30.04.24,CHILDRENS,ACORN CARE & EDUCATION LTD (SALES),16/04/2024,"29,207.60",6223-External Residential Care-Oth Agency Provision,THIRD PARTY PAYMENTS,PRIVATE CONTRACTOR,REVENUE
Walsall Council,http://opendatacommunities.org/id/metropolitan-district-council/walsall ,WC161-436,30.04.24,CHILDRENS,ACORN CARE & EDUCATION LTD (SALES),24/04/2024,"10,456.07",1220-Top Up Funding -Grants to Schools,SUPPLIES & SERVICES,GRANTS (EXP) & SUBSCRIPTIONS,REVENUE
Walsall Council,http://opendatacommunities.org/id/metropolitan-district-council/walsall ,WC161-437,30.04.24,CHILDRENS,ACORN CARE & EDUCATION LTD (SALES),05/04/2024,"16,486.87",1220-Professional Fees & Services,SUPPLIES & SERVICES,SERVICES,REVENUE
Walsall Council,http://opendatacommunities.org/id/metropolitan-district-council/walsall ,WC161-438,30.04.24,CHILDRENS,ACORN CARE & EDUCATION LTD (SALES),04/04/2024,466.63,1220-Top Up Funding -Grants to Schools,SUPPLIES & SERVICES,GRANTS (EXP) & SUBSCRIPTIONS,REVENUE
Walsall Council,http://opendatacommunities.org/id/metropolitan-district-council/walsall ,WC161-439,30.04.24,CHILDRENS,ACORN CARE & EDUCATION LTD (SALES),04/04/2024,778.80,1220-Top Up Funding -Grants to Schools,SUPPLIES & SERVICES,GRANTS (EXP) & SUBSCRIPTIONS,REVENUE
Walsall Council,http://opendatacommunities.org/id/metropolitan-district-council/walsall ,WC161-440,30.04.24,CHILDRENS,ACORN CARE & EDUCATION LTD (SALES),04/04/2024,519.06,1220-Top Up Funding -Grants to Schools,SUPPLIES & SERVICES,GRANTS (EXP) & SUBSCRIPTIONS,REVENUE
Walsall Council,http://opendatacommunities.org/id/metropolitan-district-council/walsall ,WC161-441,30.04.24,CHILDRENS,ACORN CARE & EDUCATION LTD (SALES),19/04/2024,"22,256.67",1220-Professional Fees & Services,SUPPLIES & SERVICES,SERVICES,REVENUE
Walsall Council,http://opendatacommunities.org/id/metropolitan-district-council/walsall ,WC161-442,30.04.24,CHILDRENS,ACORN CARE & EDUCATION LTD (SALES),04/04/2024,519.06,1220-Top Up Funding -Grants to Schools,SUPPLIES & SERVICES,GRANTS (EXP) & SUBSCRIPTIONS,REVENUE
Walsall Council,http://opendatacommunities.org/id/metropolitan-district-council/walsall ,WC161-443,30.04.24,CHILDRENS,ACORN CARE & EDUCATION LTD (SALES),04/04/2024,667.70,1220-Top Up Funding -Grants to Schools,SUPPLIES & SERVICES,GRANTS (EXP) & SUBSCRIPTIONS,REVENUE
Walsall Council,http://opendatacommunities.org/id/metropolitan-district-council/walsall ,WC161-444,30.04.24,CHILDRENS,ACORN CARE & EDUCATION LTD (SALES),04/04/2024,592.85,1220-Top Up Funding -Grants to Schools,SUPPLIES & SERVICES,GRANTS (EXP) & SUBSCRIPTIONS,REVENUE
Walsall Council,http://opendatacommunities.org/id/metropolitan-district-council/walsall ,WC161-445,30.04.24,CHILDRENS,ACORN CARE & EDUCATION LTD (SALES),04/04/2024,534.10,1220-Top Up Funding -Grants to Schools,SUPPLIES & SERVICES,GRANTS (EXP) & SUBSCRIPTIONS,REVENUE
Walsall Council,http://opendatacommunities.org/id/metropolitan-district-council/walsall ,WC161-446,30.04.24,CHILDRENS,ACORN CARE & EDUCATION LTD (SALES),04/04/2024,741.15,1220-Top Up Funding -Grants to Schools,SUPPLIES & SERVICES,GRANTS (EXP) & SUBSCRIPTIONS,REVENUE
Walsall Council,http://opendatacommunities.org/id/metropolitan-district-council/walsall ,WC161-447,30.04.24,CHILDRENS,ACORN CARE & EDUCATION LTD (SALES),04/04/2024,485.00,1220-Top Up Funding -Grants to Schools,SUPPLIES & SERVICES,GRANTS (EXP) & SUBSCRIPTIONS,REVENUE
Walsall Council,http://opendatacommunities.org/id/metropolitan-district-council/walsall ,WC161-448,30.04.24,CHILDRENS,ACORN CARE & EDUCATION LTD (SALES),04/04/2024,"6,333.33",1220-Professional Fees & Services,SUPPLIES & SERVICES,SERVICES,REVENUE
Walsall Council,http://opendatacommunities.org/id/metropolitan-district-council/walsall ,WC161-449,30.04.24,CHILDRENS,ACORN CARE & EDUCATION LTD (SALES),04/04/2024,801.40,1220-Top Up Funding -Grants to Schools,SUPPLIES & SERVICES,GRANTS (EXP) & SUBSCRIPTIONS,REVENUE
Walsall Council,http://opendatacommunities.org/id/metropolitan-district-council/walsall ,WC161-450,30.04.24,CHILDRENS,ACORN CARE & EDUCATION LTD (SALES),04/04/2024,778.80,1220-Top Up Funding -Grants to Schools,SUPPLIES & SERVICES,GRANTS (EXP) & SUBSCRIPTIONS,REVENUE
Walsall Council,http://opendatacommunities.org/id/metropolitan-district-council/walsall ,WC161-451,30.04.24,CHILDRENS,ACORN CARE & EDUCATION LTD (SALES),19/04/2024,554.51,1220-Professional Fees & Services,SUPPLIES & SERVICES,SERVICES,REVENUE
Walsall Council,http://opendatacommunities.org/id/metropolitan-district-council/walsall ,WC161-452,30.04.24,CHILDRENS,ACORN CARE & EDUCATION LTD (SALES),19/04/2024,747.22,1220-Professional Fees & Services,SUPPLIES & SERVICES,SERVICES,REVENUE
Walsall Council,http://opendatacommunities.org/id/metropolitan-district-council/walsall ,WC161-453,30.04.24,CHILDRENS,ACORN CARE & EDUCATION LTD (SALES),19/04/2024,896.84,1220-Professional Fees & Services,SUPPLIES & SERVICES,SERVICES,REVENUE
Walsall Council,http://opendatacommunities.org/id/metropolitan-district-council/walsall ,WC161-454,30.04.24,CHILDRENS,ACORN CARE & EDUCATION LTD (SALES),19/04/2024,807.97,1220-Professional Fees & Services,SUPPLIES & SERVICES,SERVICES,REVENUE
Walsall Council,http://opendatacommunities.org/id/metropolitan-district-council/walsall ,WC161-455,30.04.24,CHILDRENS,ACORN CARE & EDUCATION LTD (SALES),19/04/2024,597.71,1220-Professional Fees & Services,SUPPLIES & SERVICES,SERVICES,REVENUE
Walsall Council,http://opendatacommunities.org/id/metropolitan-district-council/walsall ,WC161-456,30.04.24,CHILDRENS,ACORN CARE & EDUCATION LTD (SALES),19/04/2024,597.71,1220-Professional Fees & Services,SUPPLIES & SERVICES,SERVICES,REVENUE
Walsall Council,http://opendatacommunities.org/id/metropolitan-district-council/walsall ,WC161-457,30.04.24,CHILDRENS,ACORN CARE & EDUCATION LTD (SALES),19/04/2024,538.48,1220-Professional Fees & Services,SUPPLIES & SERVICES,SERVICES,REVENUE
Walsall Council,http://opendatacommunities.org/id/metropolitan-district-council/walsall ,WC161-458,30.04.24,CHILDRENS,ACORN CARE & EDUCATION LTD (SALES),19/04/2024,538.48,1220-Professional Fees & Services,SUPPLIES & SERVICES,SERVICES,REVENUE
Walsall Council,http://opendatacommunities.org/id/metropolitan-district-council/walsall ,WC161-459,30.04.24,CHILDRENS,ACORN CARE & EDUCATION LTD (SALES),19/04/2024,800.00,1220-Professional Fees & Services,SUPPLIES & SERVICES,SERVICES,REVENUE
Walsall Council,http://opendatacommunities.org/id/metropolitan-district-council/walsall ,WC161-460,30.04.24,CHILDRENS,ACORN CARE & EDUCATION LTD (SALES),19/04/2024,681.32,1220-Professional Fees & Services,SUPPLIES & SERVICES,SERVICES,REVENUE
Walsall Council,http://opendatacommunities.org/id/metropolitan-district-council/walsall ,WC161-461,30.04.24,CHILDRENS,ACORN CARE & EDUCATION LTD (SALES),24/04/2024,"6,389.17",1220-Professional Fees & Services,SUPPLIES & SERVICES,SERVICES,REVENUE
Walsall Council,http://opendatacommunities.org/id/metropolitan-district-council/walsall ,WC161-462,30.04.24,CHILDRENS,ACORN CARE & EDUCATION LTD (SALES),24/04/2024,"-26,713.34",1220-Top Up Funding -Grants to Schools,SUPPLIES & SERVICES,GRANTS (EXP) & SUBSCRIPTIONS,REVENUE
Walsall Council,http://opendatacommunities.org/id/metropolitan-district-council/walsall ,WC161-463,30.04.24,CHILDRENS,ACORN CARE & EDUCATION LTD (SALES),24/04/2024,"-16,733.73",1220-Professional Fees & Services,SUPPLIES & SERVICES,SERVICES,REVENUE
Walsall Council,http://opendatacommunities.org/id/metropolitan-district-council/walsall ,WC161-464,30.04.24,CHILDRENS,ACORN CARE & EDUCATION LTD (SALES),24/04/2024,"-6,384.39",1220-Top Up Funding -Grants to Schools,SUPPLIES & SERVICES,GRANTS (EXP) & SUBSCRIPTIONS,REVENUE
Walsall Council,http://opendatacommunities.org/id/metropolitan-district-council/walsall ,WC161-465,30.04.24,CHILDRENS,ACORN CARE & EDUCATION LTD (SALES),24/04/2024,"-7,897.50",1220-Top Up Funding -Grants to Schools,SUPPLIES & SERVICES,GRANTS (EXP) & SUBSCRIPTIONS,REVENUE
Walsall Council,http://opendatacommunities.org/id/metropolitan-district-council/walsall ,WC161-466,30.04.24,CHILDRENS,ACORN FOSTERING SERVICES LTD,16/04/2024,"3,340.00",6223-Independent Foster Care-Oth Agency Provision,THIRD PARTY PAYMENTS,PRIVATE CONTRACTOR,REVENUE
Walsall Council,http://opendatacommunities.org/id/metropolitan-district-council/walsall ,WC161-467,30.04.24,CHILDRENS,ACPAS LIMITED,12/04/2024,296.40,6220-Medical Specialist Reports,DIRECT EMPLOYEES,EMPLOYEE ALLOWANCES & EXPENSES,REVENUE
Walsall Council,http://opendatacommunities.org/id/metropolitan-district-council/walsall ,WC161-468,30.04.24,CHILDRENS,ACPAS LIMITED,15/04/2024,889.20,6222-Consultant Fees,SUPPLIES & SERVICES,SERVICES,REVENUE
Walsall Council,http://opendatacommunities.org/id/metropolitan-district-council/walsall ,WC161-469,30.04.24,CHILDRENS,ACTIVE CARE SOLUTIONS LTD,16/04/2024,"3,576.52",6223-Independent Foster Care-Oth Agency Provision,THIRD PARTY PAYMENTS,PRIVATE CONTRACTOR,REVENUE
Walsall Council,http://opendatacommunities.org/id/metropolitan-district-council/walsall ,WC161-470,30.04.24,CHILDRENS,ACTIVITY GYM LTD,24/04/2024,477.24,6211-Professional Fees & Services,SUPPLIES & SERVICES,SERVICES,REVENUE
Walsall Council,http://opendatacommunities.org/id/metropolitan-district-council/walsall ,WC161-471,30.04.24,ADULT SOCIAL CARE,REDACTED,04/04/2024,747.92,6541-Direct Payment,THIRD PARTY PAYMENTS,PRIVATE CONTRACTOR,REVENUE
Walsall Council,http://opendatacommunities.org/id/metropolitan-district-council/walsall ,WC161-472,30.04.24,CHILDRENS,REDACTED,04/04/2024,350.96,6223-Residents Orders,TRANSFER PAYMENTS,CHILDREN SOCIAL SERVICES CLIENT,REVENUE
Walsall Council,http://opendatacommunities.org/id/metropolitan-district-council/walsall ,WC161-473,30.04.24,ADULT SOCIAL CARE,REDACTED,04/04/2024,"2,114.60",6541-Direct Payment,THIRD PARTY PAYMENTS,PRIVATE CONTRACTOR,REVENUE
Walsall Council,http://opendatacommunities.org/id/metropolitan-district-council/walsall ,WC161-474,30.04.24,ADULT SOCIAL CARE,ADVANCE HEALTH CARE (UK) LTD,09/04/2024,567.00,6541-Domiciliary Care,THIRD PARTY PAYMENTS,PRIVATE CONTRACTOR,REVENUE
Walsall Council,http://opendatacommunities.org/id/metropolitan-district-council/walsall ,WC161-475,30.04.24,ADULT SOCIAL CARE,ADVANCE HEALTH CARE (UK) LTD,09/04/2024,252.00,6541-Domiciliary Care,THIRD PARTY PAYMENTS,PRIVATE CONTRACTOR,REVENUE
Walsall Council,http://opendatacommunities.org/id/metropolitan-district-council/walsall ,WC161-476,30.04.24,ADULT SOCIAL CARE,ADVANCE HEALTH CARE (UK) LTD,09/04/2024,567.00,6541-Domiciliary Care,THIRD PARTY PAYMENTS,PRIVATE CONTRACTOR,REVENUE
Walsall Council,http://opendatacommunities.org/id/metropolitan-district-council/walsall ,WC161-477,30.04.24,ADULT SOCIAL CARE,ADVANCE HEALTH CARE (UK) LTD,09/04/2024,666.00,6541-Domiciliary Care,THIRD PARTY PAYMENTS,PRIVATE CONTRACTOR,REVENUE
Walsall Council,http://opendatacommunities.org/id/metropolitan-district-council/walsall ,WC161-478,30.04.24,ADULT SOCIAL CARE,ADVANCE HEALTH CARE (UK) LTD,09/04/2024,441.00,6541-Domiciliary Care,THIRD PARTY PAYMENTS,PRIVATE CONTRACTOR,REVENUE
Walsall Council,http://opendatacommunities.org/id/metropolitan-district-council/walsall ,WC161-479,30.04.24,ADULT SOCIAL CARE,ADVANCE HEALTH CARE (UK) LTD,09/04/2024,283.50,6541-Domiciliary Care,THIRD PARTY PAYMENTS,PRIVATE CONTRACTOR,REVENUE
Walsall Council,http://opendatacommunities.org/id/metropolitan-district-council/walsall ,WC161-480,30.04.24,ADULT SOCIAL CARE,ADVANCE HEALTH CARE (UK) LTD,09/04/2024,891.00,6541-Domiciliary Care,THIRD PARTY PAYMENTS,PRIVATE CONTRACTOR,REVENUE
Walsall Council,http://opendatacommunities.org/id/metropolitan-district-council/walsall ,WC161-481,30.04.24,ADULT SOCIAL CARE,ADVANCE HEALTH CARE (UK) LTD,09/04/2024,441.00,6541-Domiciliary Care,THIRD PARTY PAYMENTS,PRIVATE CONTRACTOR,REVENUE
Walsall Council,http://opendatacommunities.org/id/metropolitan-district-council/walsall ,WC161-482,30.04.24,ADULT SOCIAL CARE,ADVANCE HEALTH CARE (UK) LTD,09/04/2024,283.50,6541-Domiciliary Care,THIRD PARTY PAYMENTS,PRIVATE CONTRACTOR,REVENUE
Walsall Council,http://opendatacommunities.org/id/metropolitan-district-council/walsall ,WC161-483,30.04.24,ADULT SOCIAL CARE,ADVANCE HEALTH CARE (UK) LTD,09/04/2024,420.00,6541-Domiciliary Care,THIRD PARTY PAYMENTS,PRIVATE CONTRACTOR,REVENUE
Walsall Council,http://opendatacommunities.org/id/metropolitan-district-council/walsall ,WC161-484,30.04.24,ADULT SOCIAL CARE,ADVANCE HEALTH CARE (UK) LTD,09/04/2024,378.00,6541-Domiciliary Care,THIRD PARTY PAYMENTS,PRIVATE CONTRACTOR,REVENUE
Walsall Council,http://opendatacommunities.org/id/metropolitan-district-council/walsall ,WC161-485,30.04.24,ADULT SOCIAL CARE,ADVANCE HEALTH CARE (UK) LTD,09/04/2024,756.00,6541-Domiciliary Care,THIRD PARTY PAYMENTS,PRIVATE CONTRACTOR,REVENUE
Walsall Council,http://opendatacommunities.org/id/metropolitan-district-council/walsall ,WC161-486,30.04.24,ADULT SOCIAL CARE,ADVANCE HEALTH CARE (UK) LTD,09/04/2024,441.00,6541-Domiciliary Care,THIRD PARTY PAYMENTS,PRIVATE CONTRACTOR,REVENUE
Walsall Council,http://opendatacommunities.org/id/metropolitan-district-council/walsall ,WC161-487,30.04.24,ADULT SOCIAL CARE,ADVANCE HEALTH CARE (UK) LTD,09/04/2024,441.00,6541-Domiciliary Care,THIRD PARTY PAYMENTS,PRIVATE CONTRACTOR,REVENUE
Walsall Council,http://opendatacommunities.org/id/metropolitan-district-council/walsall ,WC161-488,30.04.24,ADULT SOCIAL CARE,ADVANCE HEALTH CARE (UK) LTD,09/04/2024,594.00,6541-Domiciliary Care,THIRD PARTY PAYMENTS,PRIVATE CONTRACTOR,REVENUE
Walsall Council,http://opendatacommunities.org/id/metropolitan-district-council/walsall ,WC161-489,30.04.24,ADULT SOCIAL CARE,ADVANCE HEALTH CARE (UK) LTD,09/04/2024,324.00,6541-Domiciliary Care,THIRD PARTY PAYMENTS,PRIVATE CONTRACTOR,REVENUE
Walsall Council,http://opendatacommunities.org/id/metropolitan-district-council/walsall ,WC161-490,30.04.24,ADULT SOCIAL CARE,ADVANCE HEALTH CARE (UK) LTD,09/04/2024,283.50,6541-Domiciliary Care,THIRD PARTY PAYMENTS,PRIVATE CONTRACTOR,REVENUE
Walsall Council,http://opendatacommunities.org/id/metropolitan-district-council/walsall ,WC161-491,30.04.24,ADULT SOCIAL CARE,ADVANCE HEALTH CARE (UK) LTD,09/04/2024,441.00,6541-Domiciliary Care,THIRD PARTY PAYMENTS,PRIVATE CONTRACTOR,REVENUE
Walsall Council,http://opendatacommunities.org/id/metropolitan-district-council/walsall ,WC161-492,30.04.24,ADULT SOCIAL CARE,ADVANCE HEALTH CARE (UK) LTD,09/04/2024,963.00,6541-Domiciliary Care,THIRD PARTY PAYMENTS,PRIVATE CONTRACTOR,REVENUE
Walsall Council,http://opendatacommunities.org/id/metropolitan-district-council/walsall ,WC161-493,30.04.24,ADULT SOCIAL CARE,ADVANCE HEALTH CARE (UK) LTD,09/04/2024,567.00,6541-Domiciliary Care,THIRD PARTY PAYMENTS,PRIVATE CONTRACTOR,REVENUE
Walsall Council,http://opendatacommunities.org/id/metropolitan-district-council/walsall ,WC161-494,30.04.24,ADULT SOCIAL CARE,ADVANCE HEALTH CARE (UK) LTD,09/04/2024,666.00,6541-Domiciliary Care,THIRD PARTY PAYMENTS,PRIVATE CONTRACTOR,REVENUE
Walsall Council,http://opendatacommunities.org/id/metropolitan-district-council/walsall ,WC161-495,30.04.24,ADULT SOCIAL CARE,ADVANCE HEALTH CARE (UK) LTD,09/04/2024,252.00,6541-Domiciliary Care,THIRD PARTY PAYMENTS,PRIVATE CONTRACTOR,REVENUE
Walsall Council,http://opendatacommunities.org/id/metropolitan-district-council/walsall ,WC161-496,30.04.24,ADULT SOCIAL CARE,ADVANCE HEALTH CARE (UK) LTD,09/04/2024,567.00,6541-Domiciliary Care,THIRD PARTY PAYMENTS,PRIVATE CONTRACTOR,REVENUE
Walsall Council,http://opendatacommunities.org/id/metropolitan-district-council/walsall ,WC161-497,30.04.24,ADULT SOCIAL CARE,ADVANCE HEALTH CARE (UK) LTD,09/04/2024,441.00,6541-Domiciliary Care,THIRD PARTY PAYMENTS,PRIVATE CONTRACTOR,REVENUE
Walsall Council,http://opendatacommunities.org/id/metropolitan-district-council/walsall ,WC161-498,30.04.24,ADULT SOCIAL CARE,ADVANCE HEALTH CARE (UK) LTD,09/04/2024,283.50,6541-Domiciliary Care,THIRD PARTY PAYMENTS,PRIVATE CONTRACTOR,REVENUE
Walsall Council,http://opendatacommunities.org/id/metropolitan-district-council/walsall ,WC161-499,30.04.24,ADULT SOCIAL CARE,ADVANCE HEALTH CARE (UK) LTD,09/04/2024,891.00,6541-Domiciliary Care,THIRD PARTY PAYMENTS,PRIVATE CONTRACTOR,REVENUE
Walsall Council,http://opendatacommunities.org/id/metropolitan-district-council/walsall ,WC161-500,30.04.24,ADULT SOCIAL CARE,ADVANCE HEALTH CARE (UK) LTD,09/04/2024,301.50,6541-Domiciliary Care,THIRD PARTY PAYMENTS,PRIVATE CONTRACTOR,REVENUE
Walsall Council,http://opendatacommunities.org/id/metropolitan-district-council/walsall ,WC161-501,30.04.24,ADULT SOCIAL CARE,ADVANCE HEALTH CARE (UK) LTD,09/04/2024,283.50,6541-Domiciliary Care,THIRD PARTY PAYMENTS,PRIVATE CONTRACTOR,REVENUE
Walsall Council,http://opendatacommunities.org/id/metropolitan-district-council/walsall ,WC161-502,30.04.24,ADULT SOCIAL CARE,ADVANCE HEALTH CARE (UK) LTD,09/04/2024,420.00,6541-Domiciliary Care,THIRD PARTY PAYMENTS,PRIVATE CONTRACTOR,REVENUE
Walsall Council,http://opendatacommunities.org/id/metropolitan-district-council/walsall ,WC161-503,30.04.24,ADULT SOCIAL CARE,ADVANCE HEALTH CARE (UK) LTD,09/04/2024,378.00,6541-Domiciliary Care,THIRD PARTY PAYMENTS,PRIVATE CONTRACTOR,REVENUE
Walsall Council,http://opendatacommunities.org/id/metropolitan-district-council/walsall ,WC161-504,30.04.24,ADULT SOCIAL CARE,ADVANCE HEALTH CARE (UK) LTD,09/04/2024,441.00,6541-Domiciliary Care,THIRD PARTY PAYMENTS,PRIVATE CONTRACTOR,REVENUE
Walsall Council,http://opendatacommunities.org/id/metropolitan-district-council/walsall ,WC161-505,30.04.24,ADULT SOCIAL CARE,ADVANCE HEALTH CARE (UK) LTD,09/04/2024,756.00,6541-Domiciliary Care,THIRD PARTY PAYMENTS,PRIVATE CONTRACTOR,REVENUE
Walsall Council,http://opendatacommunities.org/id/metropolitan-district-council/walsall ,WC161-506,30.04.24,ADULT SOCIAL CARE,ADVANCE HEALTH CARE (UK) LTD,09/04/2024,283.50,6541-Domiciliary Care,THIRD PARTY PAYMENTS,PRIVATE CONTRACTOR,REVENUE
Walsall Council,http://opendatacommunities.org/id/metropolitan-district-council/walsall ,WC161-507,30.04.24,ADULT SOCIAL CARE,ADVANCE HEALTH CARE (UK) LTD,09/04/2024,504.00,6541-Domiciliary Care,THIRD PARTY PAYMENTS,PRIVATE CONTRACTOR,REVENUE
Walsall Council,http://opendatacommunities.org/id/metropolitan-district-council/walsall ,WC161-508,30.04.24,ADULT SOCIAL CARE,ADVANCE HEALTH CARE (UK) LTD,09/04/2024,441.00,6541-Domiciliary Care,THIRD PARTY PAYMENTS,PRIVATE CONTRACTOR,REVENUE
Walsall Council,http://opendatacommunities.org/id/metropolitan-district-council/walsall ,WC161-509,30.04.24,ADULT SOCIAL CARE,ADVANCE HEALTH CARE (UK) LTD,09/04/2024,963.00,6541-Domiciliary Care,THIRD PARTY PAYMENTS,PRIVATE CONTRACTOR,REVENUE
Walsall Council,http://opendatacommunities.org/id/metropolitan-district-council/walsall ,WC161-510,30.04.24,ADULT SOCIAL CARE,ADVANCE HEALTH CARE (UK) LTD,09/04/2024,441.00,6541-Domiciliary Care,THIRD PARTY PAYMENTS,PRIVATE CONTRACTOR,REVENUE
Walsall Council,http://opendatacommunities.org/id/metropolitan-district-council/walsall ,WC161-511,30.04.24,ADULT SOCIAL CARE,ADVANCE HEALTH CARE (UK) LTD,09/04/2024,441.00,6541-Domiciliary Care,THIRD PARTY PAYMENTS,PRIVATE CONTRACTOR,REVENUE
Walsall Council,http://opendatacommunities.org/id/metropolitan-district-council/walsall ,WC161-512,30.04.24,ADULT SOCIAL CARE,ADVANCE HEALTH CARE (UK) LTD,09/04/2024,594.00,6541-Domiciliary Care,THIRD PARTY PAYMENTS,PRIVATE CONTRACTOR,REVENUE
Walsall Council,http://opendatacommunities.org/id/metropolitan-district-council/walsall ,WC161-513,30.04.24,ADULT SOCIAL CARE,ADVANCE HEALTH CARE (UK) LTD,22/04/2024,607.95,6541-Domiciliary Care,THIRD PARTY PAYMENTS,PRIVATE CONTRACTOR,REVENUE
Walsall Council,http://opendatacommunities.org/id/metropolitan-district-council/walsall ,WC161-514,30.04.24,ADULT SOCIAL CARE,ADVANCE HEALTH CARE (UK) LTD,22/04/2024,714.10,6541-Domiciliary Care,THIRD PARTY PAYMENTS,PRIVATE CONTRACTOR,REVENUE
Walsall Council,http://opendatacommunities.org/id/metropolitan-district-council/walsall ,WC161-515,30.04.24,ADULT SOCIAL CARE,ADVANCE HEALTH CARE (UK) LTD,22/04/2024,270.20,6541-Domiciliary Care,THIRD PARTY PAYMENTS,PRIVATE CONTRACTOR,REVENUE
Walsall Council,http://opendatacommunities.org/id/metropolitan-district-council/walsall ,WC161-516,30.04.24,ADULT SOCIAL CARE,ADVANCE HEALTH CARE (UK) LTD,22/04/2024,607.95,6541-Domiciliary Care,THIRD PARTY PAYMENTS,PRIVATE CONTRACTOR,REVENUE
Walsall Council,http://opendatacommunities.org/id/metropolitan-district-council/walsall ,WC161-517,30.04.24,ADULT SOCIAL CARE,ADVANCE HEALTH CARE (UK) LTD,22/04/2024,472.92,6541-Domiciliary Care,THIRD PARTY PAYMENTS,PRIVATE CONTRACTOR,REVENUE
Walsall Council,http://opendatacommunities.org/id/metropolitan-district-council/walsall ,WC161-518,30.04.24,ADULT SOCIAL CARE,ADVANCE HEALTH CARE (UK) LTD,22/04/2024,304.01,6541-Domiciliary Care,THIRD PARTY PAYMENTS,PRIVATE CONTRACTOR,REVENUE
Walsall Council,http://opendatacommunities.org/id/metropolitan-district-council/walsall ,WC161-519,30.04.24,ADULT SOCIAL CARE,ADVANCE HEALTH CARE (UK) LTD,22/04/2024,955.41,6541-Domiciliary Care,THIRD PARTY PAYMENTS,PRIVATE CONTRACTOR,REVENUE
Walsall Council,http://opendatacommunities.org/id/metropolitan-district-council/walsall ,WC161-520,30.04.24,ADULT SOCIAL CARE,ADVANCE HEALTH CARE (UK) LTD,22/04/2024,304.01,6541-Domiciliary Care,THIRD PARTY PAYMENTS,PRIVATE CONTRACTOR,REVENUE
Walsall Council,http://opendatacommunities.org/id/metropolitan-district-council/walsall ,WC161-521,30.04.24,ADULT SOCIAL CARE,ADVANCE HEALTH CARE (UK) LTD,22/04/2024,450.38,6541-Domiciliary Care,THIRD PARTY PAYMENTS,PRIVATE CONTRACTOR,REVENUE
Walsall Council,http://opendatacommunities.org/id/metropolitan-district-council/walsall ,WC161-522,30.04.24,ADULT SOCIAL CARE,ADVANCE HEALTH CARE (UK) LTD,22/04/2024,405.37,6541-Domiciliary Care,THIRD PARTY PAYMENTS,PRIVATE CONTRACTOR,REVENUE
Walsall Council,http://opendatacommunities.org/id/metropolitan-district-council/walsall ,WC161-523,30.04.24,ADULT SOCIAL CARE,ADVANCE HEALTH CARE (UK) LTD,22/04/2024,810.60,6541-Domiciliary Care,THIRD PARTY PAYMENTS,PRIVATE CONTRACTOR,REVENUE
Walsall Council,http://opendatacommunities.org/id/metropolitan-district-council/walsall ,WC161-524,30.04.24,ADULT SOCIAL CARE,ADVANCE HEALTH CARE (UK) LTD,22/04/2024,472.85,6541-Domiciliary Care,THIRD PARTY PAYMENTS,PRIVATE CONTRACTOR,REVENUE
Walsall Council,http://opendatacommunities.org/id/metropolitan-district-council/walsall ,WC161-525,30.04.24,ADULT SOCIAL CARE,ADVANCE HEALTH CARE (UK) LTD,22/04/2024,540.40,6541-Domiciliary Care,THIRD PARTY PAYMENTS,PRIVATE CONTRACTOR,REVENUE
Walsall Council,http://opendatacommunities.org/id/metropolitan-district-council/walsall ,WC161-526,30.04.24,ADULT SOCIAL CARE,ADVANCE HEALTH CARE (UK) LTD,22/04/2024,472.85,6541-Domiciliary Care,THIRD PARTY PAYMENTS,PRIVATE CONTRACTOR,REVENUE
Walsall Council,http://opendatacommunities.org/id/metropolitan-district-council/walsall ,WC161-527,30.04.24,ADULT SOCIAL CARE,ADVANCE HEALTH CARE (UK) LTD,22/04/2024,472.85,6541-Domiciliary Care,THIRD PARTY PAYMENTS,PRIVATE CONTRACTOR,REVENUE
Walsall Council,http://opendatacommunities.org/id/metropolitan-district-council/walsall ,WC161-528,30.04.24,ADULT SOCIAL CARE,ADVANCE HEALTH CARE (UK) LTD,22/04/2024,636.90,6541-Domiciliary Care,THIRD PARTY PAYMENTS,PRIVATE CONTRACTOR,REVENUE
Walsall Council,http://opendatacommunities.org/id/metropolitan-district-council/walsall ,WC161-529,30.04.24,ADULT SOCIAL CARE,ADVANCE HEALTH CARE (UK) LTD,22/04/2024,363.81,6541-Domiciliary Care,THIRD PARTY PAYMENTS,PRIVATE CONTRACTOR,REVENUE
Walsall Council,http://opendatacommunities.org/id/metropolitan-district-council/walsall ,WC161-530,30.04.24,ADULT SOCIAL CARE,ADVANCE HEALTH CARE (UK) LTD,22/04/2024,304.01,6541-Domiciliary Care,THIRD PARTY PAYMENTS,PRIVATE CONTRACTOR,REVENUE
Walsall Council,http://opendatacommunities.org/id/metropolitan-district-council/walsall ,WC161-531,30.04.24,ADULT SOCIAL CARE,ADVANCE HEALTH CARE (UK) LTD,22/04/2024,472.85,6541-Domiciliary Care,THIRD PARTY PAYMENTS,PRIVATE CONTRACTOR,REVENUE
Walsall Council,http://opendatacommunities.org/id/metropolitan-district-council/walsall ,WC161-532,30.04.24,ADULT SOCIAL CARE,ADVANCE HEALTH CARE (UK) LTD,22/04/2024,"1,032.55",6541-Domiciliary Care,THIRD PARTY PAYMENTS,PRIVATE CONTRACTOR,REVENUE
Walsall Council,http://opendatacommunities.org/id/metropolitan-district-council/walsall ,WC161-533,30.04.24,ADULT SOCIAL CARE,ADVANCE HEALTH CARE (UK) LTD,22/04/2024,607.95,6541-Domiciliary Care,THIRD PARTY PAYMENTS,PRIVATE CONTRACTOR,REVENUE
Walsall Council,http://opendatacommunities.org/id/metropolitan-district-council/walsall ,WC161-534,30.04.24,ADULT SOCIAL CARE,ADVANCE HEALTH CARE (UK) LTD,22/04/2024,270.20,6541-Domiciliary Care,THIRD PARTY PAYMENTS,PRIVATE CONTRACTOR,REVENUE
Walsall Council,http://opendatacommunities.org/id/metropolitan-district-council/walsall ,WC161-535,30.04.24,ADULT SOCIAL CARE,ADVANCE HEALTH CARE (UK) LTD,22/04/2024,607.95,6541-Domiciliary Care,THIRD PARTY PAYMENTS,PRIVATE CONTRACTOR,REVENUE
Walsall Council,http://opendatacommunities.org/id/metropolitan-district-council/walsall ,WC161-536,30.04.24,ADULT SOCIAL CARE,ADVANCE HEALTH CARE (UK) LTD,22/04/2024,472.92,6541-Domiciliary Care,THIRD PARTY PAYMENTS,PRIVATE CONTRACTOR,REVENUE
Walsall Council,http://opendatacommunities.org/id/metropolitan-district-council/walsall ,WC161-537,30.04.24,ADULT SOCIAL CARE,ADVANCE HEALTH CARE (UK) LTD,22/04/2024,304.01,6541-Domiciliary Care,THIRD PARTY PAYMENTS,PRIVATE CONTRACTOR,REVENUE
Walsall Council,http://opendatacommunities.org/id/metropolitan-district-council/walsall ,WC161-538,30.04.24,ADULT SOCIAL CARE,ADVANCE HEALTH CARE (UK) LTD,22/04/2024,450.38,6541-Domiciliary Care,THIRD PARTY PAYMENTS,PRIVATE CONTRACTOR,REVENUE
Walsall Council,http://opendatacommunities.org/id/metropolitan-district-council/walsall ,WC161-539,30.04.24,ADULT SOCIAL CARE,ADVANCE HEALTH CARE (UK) LTD,22/04/2024,405.37,6541-Domiciliary Care,THIRD PARTY PAYMENTS,PRIVATE CONTRACTOR,REVENUE
Walsall Council,http://opendatacommunities.org/id/metropolitan-district-council/walsall ,WC161-540,30.04.24,ADULT SOCIAL CARE,ADVANCE HEALTH CARE (UK) LTD,22/04/2024,714.10,6541-Domiciliary Care,THIRD PARTY PAYMENTS,PRIVATE CONTRACTOR,REVENUE
Walsall Council,http://opendatacommunities.org/id/metropolitan-district-council/walsall ,WC161-541,30.04.24,ADULT SOCIAL CARE,ADVANCE HEALTH CARE (UK) LTD,22/04/2024,304.01,6541-Domiciliary Care,THIRD PARTY PAYMENTS,PRIVATE CONTRACTOR,REVENUE
Walsall Council,http://opendatacommunities.org/id/metropolitan-district-council/walsall ,WC161-542,30.04.24,ADULT SOCIAL CARE,ADVANCE HEALTH CARE (UK) LTD,22/04/2024,955.41,6541-Domiciliary Care,THIRD PARTY PAYMENTS,PRIVATE CONTRACTOR,REVENUE
Walsall Council,http://opendatacommunities.org/id/metropolitan-district-council/walsall ,WC161-543,30.04.24,ADULT SOCIAL CARE,ADVANCE HEALTH CARE (UK) LTD,22/04/2024,472.85,6541-Domiciliary Care,THIRD PARTY PAYMENTS,PRIVATE CONTRACTOR,REVENUE
Walsall Council,http://opendatacommunities.org/id/metropolitan-district-council/walsall ,WC161-544,30.04.24,ADULT SOCIAL CARE,ADVANCE HEALTH CARE (UK) LTD,22/04/2024,810.60,6541-Domiciliary Care,THIRD PARTY PAYMENTS,PRIVATE CONTRACTOR,REVENUE
Walsall Council,http://opendatacommunities.org/id/metropolitan-district-council/walsall ,WC161-545,30.04.24,ADULT SOCIAL CARE,ADVANCE HEALTH CARE (UK) LTD,22/04/2024,540.40,6541-Domiciliary Care,THIRD PARTY PAYMENTS,PRIVATE CONTRACTOR,REVENUE
Walsall Council,http://opendatacommunities.org/id/metropolitan-district-council/walsall ,WC161-546,30.04.24,ADULT SOCIAL CARE,ADVANCE HEALTH CARE (UK) LTD,22/04/2024,323.31,6541-Domiciliary Care,THIRD PARTY PAYMENTS,PRIVATE CONTRACTOR,REVENUE
Walsall Council,http://opendatacommunities.org/id/metropolitan-district-council/walsall ,WC161-547,30.04.24,ADULT SOCIAL CARE,ADVANCE HEALTH CARE (UK) LTD,22/04/2024,304.01,6541-Domiciliary Care,THIRD PARTY PAYMENTS,PRIVATE CONTRACTOR,REVENUE
Walsall Council,http://opendatacommunities.org/id/metropolitan-district-council/walsall ,WC161-548,30.04.24,ADULT SOCIAL CARE,ADVANCE HEALTH CARE (UK) LTD,22/04/2024,472.85,6541-Domiciliary Care,THIRD PARTY PAYMENTS,PRIVATE CONTRACTOR,REVENUE
Walsall Council,http://opendatacommunities.org/id/metropolitan-district-council/walsall ,WC161-549,30.04.24,ADULT SOCIAL CARE,ADVANCE HEALTH CARE (UK) LTD,22/04/2024,"1,032.55",6541-Domiciliary Care,THIRD PARTY PAYMENTS,PRIVATE CONTRACTOR,REVENUE
Walsall Council,http://opendatacommunities.org/id/metropolitan-district-council/walsall ,WC161-550,30.04.24,ADULT SOCIAL CARE,ADVANCE HEALTH CARE (UK) LTD,22/04/2024,472.85,6541-Domiciliary Care,THIRD PARTY PAYMENTS,PRIVATE CONTRACTOR,REVENUE
Walsall Council,http://opendatacommunities.org/id/metropolitan-district-council/walsall ,WC161-551,30.04.24,ADULT SOCIAL CARE,ADVANCE HEALTH CARE (UK) LTD,22/04/2024,472.85,6541-Domiciliary Care,THIRD PARTY PAYMENTS,PRIVATE CONTRACTOR,REVENUE
Walsall Council,http://opendatacommunities.org/id/metropolitan-district-council/walsall ,WC161-552,30.04.24,ADULT SOCIAL CARE,ADVANCE HEALTH CARE (UK) LTD,22/04/2024,636.90,6541-Domiciliary Care,THIRD PARTY PAYMENTS,PRIVATE CONTRACTOR,REVENUE
Walsall Council,http://opendatacommunities.org/id/metropolitan-district-council/walsall ,WC161-553,30.04.24,ADULT SOCIAL CARE,ADVANCE HEALTH CARE (UK) LTD,03/04/2024,900.00,6541-Domiciliary Care,THIRD PARTY PAYMENTS,PRIVATE CONTRACTOR,REVENUE
Walsall Council,http://opendatacommunities.org/id/metropolitan-district-council/walsall ,WC161-554,30.04.24,ADULT SOCIAL CARE,ADVANCE HEALTH CARE (UK) LTD,03/04/2024,678.00,6541-Domiciliary Care,THIRD PARTY PAYMENTS,PRIVATE CONTRACTOR,REVENUE
Walsall Council,http://opendatacommunities.org/id/metropolitan-district-council/walsall ,WC161-555,30.04.24,ADULT SOCIAL CARE,ADVANCE HEALTH CARE (UK) LTD,03/04/2024,"1,134.00",6541-Domiciliary Care,THIRD PARTY PAYMENTS,PRIVATE CONTRACTOR,REVENUE
Walsall Council,http://opendatacommunities.org/id/metropolitan-district-council/walsall ,WC161-556,30.04.24,ADULT SOCIAL CARE,ADVANCE HEALTH CARE (UK) LTD,03/04/2024,996.00,6541-Domiciliary Care,THIRD PARTY PAYMENTS,PRIVATE CONTRACTOR,REVENUE
Walsall Council,http://opendatacommunities.org/id/metropolitan-district-council/walsall ,WC161-557,30.04.24,ADULT SOCIAL CARE,ADVANCE HEALTH CARE (UK) LTD,03/04/2024,"1,242.00",6541-Domiciliary Care,THIRD PARTY PAYMENTS,PRIVATE CONTRACTOR,REVENUE
Walsall Council,http://opendatacommunities.org/id/metropolitan-district-council/walsall ,WC161-558,30.04.24,ADULT SOCIAL CARE,ADVANCE HEALTH CARE (UK) LTD,03/04/2024,"1,302.00",6541-Domiciliary Care,THIRD PARTY PAYMENTS,PRIVATE CONTRACTOR,REVENUE
Walsall Council,http://opendatacommunities.org/id/metropolitan-district-council/walsall ,WC161-559,30.04.24,ADULT SOCIAL CARE,ADVANCE HEALTH CARE (UK) LTD,03/04/2024,840.00,6541-Domiciliary Care,THIRD PARTY PAYMENTS,PRIVATE CONTRACTOR,REVENUE
Walsall Council,http://opendatacommunities.org/id/metropolitan-district-council/walsall ,WC161-560,30.04.24,ADULT SOCIAL CARE,ADVANCE HEALTH CARE (UK) LTD,03/04/2024,472.50,6541-Domiciliary Care,THIRD PARTY PAYMENTS,PRIVATE CONTRACTOR,REVENUE
Walsall Council,http://opendatacommunities.org/id/metropolitan-district-council/walsall ,WC161-561,30.04.24,ADULT SOCIAL CARE,ADVANCE HEALTH CARE (UK) LTD,03/04/2024,924.00,6541-Domiciliary Care,THIRD PARTY PAYMENTS,PRIVATE CONTRACTOR,REVENUE
Walsall Council,http://opendatacommunities.org/id/metropolitan-district-council/walsall ,WC161-562,30.04.24,ADULT SOCIAL CARE,ADVANCE HEALTH CARE (UK) LTD,03/04/2024,828.00,6541-Domiciliary Care,THIRD PARTY PAYMENTS,PRIVATE CONTRACTOR,REVENUE
Walsall Council,http://opendatacommunities.org/id/metropolitan-district-council/walsall ,WC161-563,30.04.24,ADULT SOCIAL CARE,ADVANCE HEALTH CARE (UK) LTD,03/04/2024,"1,050.00",6541-Domiciliary Care,THIRD PARTY PAYMENTS,PRIVATE CONTRACTOR,REVENUE
Walsall Council,http://opendatacommunities.org/id/metropolitan-district-council/walsall ,WC161-564,30.04.24,ADULT SOCIAL CARE,ADVANCE HEALTH CARE (UK) LTD,03/04/2024,963.00,6541-Domiciliary Care,THIRD PARTY PAYMENTS,PRIVATE CONTRACTOR,REVENUE
Walsall Council,http://opendatacommunities.org/id/metropolitan-district-council/walsall ,WC161-565,30.04.24,ADULT SOCIAL CARE,ADVANCE HEALTH CARE (UK) LTD,03/04/2024,948.00,6541-Domiciliary Care,THIRD PARTY PAYMENTS,PRIVATE CONTRACTOR,REVENUE
Walsall Council,http://opendatacommunities.org/id/metropolitan-district-council/walsall ,WC161-566,30.04.24,ADULT SOCIAL CARE,ADVANCE HEALTH CARE (UK) LTD,03/04/2024,918.00,6541-Domiciliary Care,THIRD PARTY PAYMENTS,PRIVATE CONTRACTOR,REVENUE
Walsall Council,http://opendatacommunities.org/id/metropolitan-district-council/walsall ,WC161-567,30.04.24,ADULT SOCIAL CARE,ADVANCE HEALTH CARE (UK) LTD,03/04/2024,546.00,6541-Domiciliary Care,THIRD PARTY PAYMENTS,PRIVATE CONTRACTOR,REVENUE
Walsall Council,http://opendatacommunities.org/id/metropolitan-district-council/walsall ,WC161-568,30.04.24,ADULT SOCIAL CARE,ADVANCE HEALTH CARE (UK) LTD,03/04/2024,432.00,6541-Domiciliary Care,THIRD PARTY PAYMENTS,PRIVATE CONTRACTOR,REVENUE
Walsall Council,http://opendatacommunities.org/id/metropolitan-district-council/walsall ,WC161-569,30.04.24,ADULT SOCIAL CARE,ADVANCE HEALTH CARE (UK) LTD,03/04/2024,786.00,6541-Domiciliary Care,THIRD PARTY PAYMENTS,PRIVATE CONTRACTOR,REVENUE
Walsall Council,http://opendatacommunities.org/id/metropolitan-district-council/walsall ,WC161-570,30.04.24,ADULT SOCIAL CARE,ADVANCE HEALTH CARE (UK) LTD,03/04/2024,"1,278.00",6541-Domiciliary Care,THIRD PARTY PAYMENTS,PRIVATE CONTRACTOR,REVENUE
Walsall Council,http://opendatacommunities.org/id/metropolitan-district-council/walsall ,WC161-571,30.04.24,ADULT SOCIAL CARE,ADVANCE HEALTH CARE (UK) LTD,04/04/2024,"1,737.00",6554-Professional Services-Priv Contractor & Other Agencies,THIRD PARTY PAYMENTS,PRIVATE CONTRACTOR,REVENUE
Walsall Council,http://opendatacommunities.org/id/metropolitan-district-council/walsall ,WC161-572,30.04.24,ADULT SOCIAL CARE,ADVANCE HEALTH CARE (UK) LTD,04/04/2024,252.00,6554-Professional Services-Priv Contractor & Other Agencies,THIRD PARTY PAYMENTS,PRIVATE CONTRACTOR,REVENUE
Walsall Council,http://opendatacommunities.org/id/metropolitan-district-council/walsall ,WC161-573,30.04.24,ADULT SOCIAL CARE,ADVANCED HEALTH AND CARE,18/04/2024,"-11,912.80",6554-Advertising Staff Vacancies,INDIRECT EMPLOYEES,ADVERTISING STAFF VACANCIES,REVENUE
Walsall Council,http://opendatacommunities.org/id/metropolitan-district-council/walsall ,WC161-574,30.04.24,ADULT SOCIAL CARE,ADVANCED HEALTH AND CARE,18/04/2024,"11,912.76",6554-Advertising Staff Vacancies,INDIRECT EMPLOYEES,ADVERTISING STAFF VACANCIES,REVENUE
Walsall Council,http://opendatacommunities.org/id/metropolitan-district-council/walsall ,WC161-575,30.04.24,ADULT SOCIAL CARE,ADVANCED HEALTH AND CARE,18/04/2024,"11,912.80",6554-Advertising Staff Vacancies,INDIRECT EMPLOYEES,ADVERTISING STAFF VACANCIES,REVENUE
Walsall Council,http://opendatacommunities.org/id/metropolitan-district-council/walsall ,WC161-576,30.04.24,CHILDRENS,ADVENTURELAND DAY NURSERY,19/04/2024,-991.80,1184-Other-Grants to Other Orgs,SUPPLIES & SERVICES,GRANTS (EXP) & SUBSCRIPTIONS,REVENUE
Walsall Council,http://opendatacommunities.org/id/metropolitan-district-council/walsall ,WC161-577,30.04.24,CHILDRENS,ADVENTURELAND DAY NURSERY,16/04/2024,"21,323.25",1184-Other-Grants to Other Orgs,SUPPLIES & SERVICES,GRANTS (EXP) & SUBSCRIPTIONS,REVENUE
Walsall Council,http://opendatacommunities.org/id/metropolitan-district-council/walsall ,WC161-578,30.04.24,CHILDRENS,ADVENTURELAND DAY NURSERY,19/04/2024,"12,484.13",1184-Other-Grants to Other Orgs,SUPPLIES & SERVICES,GRANTS (EXP) & SUBSCRIPTIONS,REVENUE
Walsall Council,http://opendatacommunities.org/id/metropolitan-district-council/walsall ,WC161-579,30.04.24,CHILDRENS,ADVENTURELAND DAY NURSERY,19/04/2024,"-3,580.75",1184-Other-Grants to Other Orgs,SUPPLIES & SERVICES,GRANTS (EXP) & SUBSCRIPTIONS,REVENUE
Walsall Council,http://opendatacommunities.org/id/metropolitan-district-council/walsall ,WC161-580,30.04.24,CHILDRENS,ADVENTURELAND DAY NURSERY,16/04/2024,"49,058.22",1184-Other-Grants to Other Orgs,SUPPLIES & SERVICES,GRANTS (EXP) & SUBSCRIPTIONS,REVENUE
Walsall Council,http://opendatacommunities.org/id/metropolitan-district-council/walsall ,WC161-581,30.04.24,CHILDRENS,ADVENTURELAND DAY NURSERY,19/04/2024,"3,773.71",1184-Other-Grants to Other Orgs,SUPPLIES & SERVICES,GRANTS (EXP) & SUBSCRIPTIONS,REVENUE
Walsall Council,http://opendatacommunities.org/id/metropolitan-district-council/walsall ,WC161-582,30.04.24,CHILDRENS,ADVENTURELAND DAY NURSERY,18/04/2024,"1,280.00",1184-Transfer Payments-Other Schoolchildren/Student Related Items,TRANSFER PAYMENTS,SCHOOLCHILDREN/STUDENTS,REVENUE
Walsall Council,http://opendatacommunities.org/id/metropolitan-district-council/walsall ,WC161-583,30.04.24,CHILDRENS,ADVENTURELAND DAY NURSERY,03/04/2024,"1,577.00",1265-Early Years Supplementary Grant Expenditure,TRANSFER PAYMENTS,SCHOOLCHILDREN/STUDENTS,REVENUE
Walsall Council,http://opendatacommunities.org/id/metropolitan-district-council/walsall ,WC161-584,30.04.24,CHILDRENS,ADVENTURELAND DAY NURSERY,03/04/2024,"2,838.60",1265-Early Years Supplementary Grant Expenditure,TRANSFER PAYMENTS,SCHOOLCHILDREN/STUDENTS,REVENUE
Walsall Council,http://opendatacommunities.org/id/metropolitan-district-council/walsall ,WC161-585,30.04.24,CHILDRENS,ADVENTURELAND DAY NURSERY,03/04/2024,"2,169.82",1265-Early Years Supplementary Grant Expenditure,TRANSFER PAYMENTS,SCHOOLCHILDREN/STUDENTS,REVENUE
Walsall Council,http://opendatacommunities.org/id/metropolitan-district-council/walsall ,WC161-586,30.04.24,ADULT SOCIAL CARE,ADVINIA CARE HOMES LTD - HAMMERWICH HALL CARE HOME,09/04/2024,"2,413.36",6541-Residential EMI,THIRD PARTY PAYMENTS,PRIVATE CONTRACTOR,REVENUE
Walsall Council,http://opendatacommunities.org/id/metropolitan-district-council/walsall ,WC161-587,30.04.24,ADULT SOCIAL CARE,ADVINIA CARE HOMES LTD - HAMMERWICH HALL CARE HOME,09/04/2024,280.00,6541-Residential,THIRD PARTY PAYMENTS,PRIVATE CONTRACTOR,REVENUE
Walsall Council,http://opendatacommunities.org/id/metropolitan-district-council/walsall ,WC161-588,30.04.24,ADULT SOCIAL CARE,ADVINIA CARE HOMES LTD - HAMMERWICH HALL CARE HOME,09/04/2024,"2,137.32",6541-Residential,THIRD PARTY PAYMENTS,PRIVATE CONTRACTOR,REVENUE
Walsall Council,http://opendatacommunities.org/id/metropolitan-district-council/walsall ,WC161-589,30.04.24,ADULT SOCIAL CARE,ADVINIA CARE HOMES LTD - HAMMERWICH HALL CARE HOME,09/04/2024,280.00,6541-Residential EMI,THIRD PARTY PAYMENTS,PRIVATE CONTRACTOR,REVENUE
Walsall Council,http://opendatacommunities.org/id/metropolitan-district-council/walsall ,WC161-590,30.04.24,"ECONOMY, ENVIRONMENT & COMMUNITIES",AECOM LIMITED,02/04/2024,"6,995.00",6411-Materials,SUPPLIES & SERVICES,EQUIPMENT FURNITURE & MATERIALS,REVENUE
Walsall Council,http://opendatacommunities.org/id/metropolitan-district-council/walsall ,WC161-591,30.04.24,CHILDRENS,AFGHAN COMMUNITY & WELFARE CENTRE,24/04/2024,878.80,6211-Professional Fees & Services,SUPPLIES & SERVICES,SERVICES,REVENUE
Walsall Council,http://opendatacommunities.org/id/metropolitan-district-council/walsall ,WC161-592,30.04.24,ADULT SOCIAL CARE,REDACTED,04/04/2024,981.56,6541-Direct Payment,THIRD PARTY PAYMENTS,PRIVATE CONTRACTOR,REVENUE
Walsall Council,http://opendatacommunities.org/id/metropolitan-district-council/walsall ,WC161-593,30.04.24,ADULT SOCIAL CARE,REDACTED,04/04/2024,"1,305.64",6541-Direct Payment,THIRD PARTY PAYMENTS,PRIVATE CONTRACTOR,REVENUE
Walsall Council,http://opendatacommunities.org/id/metropolitan-district-council/walsall ,WC161-594,30.04.24,"ECONOMY, ENVIRONMENT & COMMUNITIES",AGILE APPLICATIONS LIMITED,02/04/2024,"30,000.00",6411-Computer Equipment,SUPPLIES & SERVICES,COMMUNICATIONS & COMPUTING,REVENUE
Walsall Council,http://opendatacommunities.org/id/metropolitan-district-council/walsall ,WC161-595,30.04.24,CHILDRENS,REDACTED,04/04/2024,347.79,6223-Special Guardianship Orders,TRANSFER PAYMENTS,CHILDREN SOCIAL SERVICES CLIENT,REVENUE
Walsall Council,http://opendatacommunities.org/id/metropolitan-district-council/walsall ,WC161-596,30.04.24,"ECONOMY, ENVIRONMENT & COMMUNITIES",AGROVISTA UK LTD,02/04/2024,356.82,6413-Materials,SUPPLIES & SERVICES,EQUIPMENT FURNITURE & MATERIALS,REVENUE
Walsall Council,http://opendatacommunities.org/id/metropolitan-district-council/walsall ,WC161-597,30.04.24,ECONOMY & ENVIRONMENT CAPITAL,AGROVISTA UK LTD,02/04/2024,"1,209.60",7200-Site Works - Other Contractors,CAPITAL,"NEW CONSTRUCTION,CONVERSION & RENOVATION",CAPITAL
Walsall Council,http://opendatacommunities.org/id/metropolitan-district-council/walsall ,WC161-598,30.04.24,"ECONOMY, ENVIRONMENT & COMMUNITIES",AGROVISTA UK LTD,05/04/2024,"1,375.00",6413-Materials,SUPPLIES & SERVICES,EQUIPMENT FURNITURE & MATERIALS,REVENUE
Walsall Council,http://opendatacommunities.org/id/metropolitan-district-council/walsall ,WC161-599,30.04.24,ADULT SOCIAL CARE,REDACTED,04/04/2024,309.96,6541-Direct Payment,THIRD PARTY PAYMENTS,PRIVATE CONTRACTOR,REVENUE
Walsall Council,http://opendatacommunities.org/id/metropolitan-district-council/walsall ,WC161-600,30.04.24,ADULT SOCIAL CARE,REDACTED,04/04/2024,"2,944.62",6541-Direct Payment,THIRD PARTY PAYMENTS,PRIVATE CONTRACTOR,REVENUE
Walsall Council,http://opendatacommunities.org/id/metropolitan-district-council/walsall ,WC161-601,30.04.24,RESOURCES AND TRANSFORMATION,AIRTECH CONTROLS LTD,17/04/2024,-720.00,6310-Planned Maintenance,PREMISES,REPAIRS & MAINTENANCE,REVENUE
Walsall Council,http://opendatacommunities.org/id/metropolitan-district-council/walsall ,WC161-602,30.04.24,RESOURCES AND TRANSFORMATION,AIRTECH CONTROLS LTD,17/04/2024,720.00,6310-Planned Maintenance,PREMISES,REPAIRS & MAINTENANCE,REVENUE
Walsall Council,http://opendatacommunities.org/id/metropolitan-district-council/walsall ,WC161-603,30.04.24,RESOURCES AND TRANSFORMATION,AIRTECH CONTROLS LTD,17/04/2024,"3,902.00",6310-Planned Maintenance,PREMISES,REPAIRS & MAINTENANCE,REVENUE
Walsall Council,http://opendatacommunities.org/id/metropolitan-district-council/walsall ,WC161-604,30.04.24,RESOURCES AND TRANSFORMATION,AIRTECH CONTROLS LTD,17/04/2024,920.00,6310-Planned Maintenance,PREMISES,REPAIRS & MAINTENANCE,REVENUE
Walsall Council,http://opendatacommunities.org/id/metropolitan-district-council/walsall ,WC161-605,30.04.24,ADULT SOCIAL CARE,REDACTED,04/04/2024,"1,125.44",6541-Direct Payment,THIRD PARTY PAYMENTS,PRIVATE CONTRACTOR,REVENUE
Walsall Council,http://opendatacommunities.org/id/metropolitan-district-council/walsall ,WC161-606,30.04.24,ADULT SOCIAL CARE,REDACTED,04/04/2024,513.88,6541-Direct Payment,THIRD PARTY PAYMENTS,PRIVATE CONTRACTOR,REVENUE
Walsall Council,http://opendatacommunities.org/id/metropolitan-district-council/walsall ,WC161-607,30.04.24,ADULT SOCIAL CARE,REDACTED,04/04/2024,267.44,6541-Direct Payment,THIRD PARTY PAYMENTS,PRIVATE CONTRACTOR,REVENUE
Walsall Council,http://opendatacommunities.org/id/metropolitan-district-council/walsall ,WC161-608,30.04.24,ADULT SOCIAL CARE,REDACTED,04/04/2024,"1,588.08",6541-Direct Payment,THIRD PARTY PAYMENTS,PRIVATE CONTRACTOR,REVENUE
Walsall Council,http://opendatacommunities.org/id/metropolitan-district-council/walsall ,WC161-609,30.04.24,ADULT SOCIAL CARE,ALDBOURNE NURSING HOME LTD,09/04/2024,"5,920.00",6541-Nursing EMI,THIRD PARTY PAYMENTS,PRIVATE CONTRACTOR,REVENUE
Walsall Council,http://opendatacommunities.org/id/metropolitan-district-council/walsall ,WC161-610,30.04.24,CHILDRENS,ALDRIDGE & BARONS LIMITED,22/04/2024,"1,405.80",6241-Hire of Vehicle with Driver,TRANSPORT,DIRECT TRANSPORT COSTS,REVENUE
Walsall Council,http://opendatacommunities.org/id/metropolitan-district-council/walsall ,WC161-611,30.04.24,CHILDRENS,ALDRIDGE & BARONS LIMITED,22/04/2024,"1,675.00",6241-Hire of Vehicle with Driver,TRANSPORT,DIRECT TRANSPORT COSTS,REVENUE
Walsall Council,http://opendatacommunities.org/id/metropolitan-district-council/walsall ,WC161-612,30.04.24,CHILDRENS,ALDRIDGE & BARONS LIMITED,22/04/2024,796.50,6241-Hire of Vehicle with Driver,TRANSPORT,DIRECT TRANSPORT COSTS,REVENUE
Walsall Council,http://opendatacommunities.org/id/metropolitan-district-council/walsall ,WC161-613,30.04.24,CHILDRENS,ALDRIDGE & BARONS LIMITED,22/04/2024,957.00,6241-Hire of Vehicle with Driver,TRANSPORT,DIRECT TRANSPORT COSTS,REVENUE
Walsall Council,http://opendatacommunities.org/id/metropolitan-district-council/walsall ,WC161-614,30.04.24,CHILDRENS,ALDRIDGE & BARONS LIMITED,22/04/2024,"1,802.40",6241-Hire of Vehicle with Driver,TRANSPORT,DIRECT TRANSPORT COSTS,REVENUE
Walsall Council,http://opendatacommunities.org/id/metropolitan-district-council/walsall ,WC161-615,30.04.24,CHILDRENS,ALDRIDGE & BARONS LIMITED,22/04/2024,"1,116.00",6241-Hire of Vehicle with Driver,TRANSPORT,DIRECT TRANSPORT COSTS,REVENUE
Walsall Council,http://opendatacommunities.org/id/metropolitan-district-council/walsall ,WC161-616,30.04.24,CHILDRENS,ALDRIDGE & BARONS LIMITED,22/04/2024,"1,500.00",6241-Hire of Vehicle with Driver,TRANSPORT,DIRECT TRANSPORT COSTS,REVENUE
Walsall Council,http://opendatacommunities.org/id/metropolitan-district-council/walsall ,WC161-617,30.04.24,CHILDRENS,ALDRIDGE & BARONS LIMITED,22/04/2024,"1,586.90",6241-Hire of Vehicle with Driver,TRANSPORT,DIRECT TRANSPORT COSTS,REVENUE
Walsall Council,http://opendatacommunities.org/id/metropolitan-district-council/walsall ,WC161-618,30.04.24,CHILDRENS,ALDRIDGE & BARONS LIMITED,22/04/2024,"1,200.00",6241-Hire of Vehicle with Driver,TRANSPORT,DIRECT TRANSPORT COSTS,REVENUE
Walsall Council,http://opendatacommunities.org/id/metropolitan-district-council/walsall ,WC161-619,30.04.24,CHILDRENS,ALDRIDGE & BARONS LIMITED,22/04/2024,"1,450.00",6241-Hire of Vehicle with Driver,TRANSPORT,DIRECT TRANSPORT COSTS,REVENUE
Walsall Council,http://opendatacommunities.org/id/metropolitan-district-council/walsall ,WC161-620,30.04.24,CHILDRENS,ALDRIDGE & BARONS LIMITED,22/04/2024,"1,443.80",6241-Hire of Vehicle with Driver,TRANSPORT,DIRECT TRANSPORT COSTS,REVENUE
Walsall Council,http://opendatacommunities.org/id/metropolitan-district-council/walsall ,WC161-621,30.04.24,CHILDRENS,ALDRIDGE & BARONS LIMITED,22/04/2024,"1,170.00",6241-Hire of Vehicle with Driver,TRANSPORT,DIRECT TRANSPORT COSTS,REVENUE
Walsall Council,http://opendatacommunities.org/id/metropolitan-district-council/walsall ,WC161-622,30.04.24,CHILDRENS,ALDRIDGE & BARONS LIMITED,22/04/2024,"1,125.00",6241-Hire of Vehicle with Driver,TRANSPORT,DIRECT TRANSPORT COSTS,REVENUE
Walsall Council,http://opendatacommunities.org/id/metropolitan-district-council/walsall ,WC161-623,30.04.24,CHILDRENS,ALDRIDGE & BARONS LIMITED,22/04/2024,"1,840.00",6241-Hire of Vehicle with Driver,TRANSPORT,DIRECT TRANSPORT COSTS,REVENUE
Walsall Council,http://opendatacommunities.org/id/metropolitan-district-council/walsall ,WC161-624,30.04.24,CHILDRENS,ALDRIDGE & BARONS LIMITED,22/04/2024,"1,600.00",6241-Hire of Vehicle with Driver,TRANSPORT,DIRECT TRANSPORT COSTS,REVENUE
Walsall Council,http://opendatacommunities.org/id/metropolitan-district-council/walsall ,WC161-625,30.04.24,CHILDRENS,ALDRIDGE & BARONS LIMITED,22/04/2024,"1,776.00",6241-Hire of Vehicle with Driver,TRANSPORT,DIRECT TRANSPORT COSTS,REVENUE
Walsall Council,http://opendatacommunities.org/id/metropolitan-district-council/walsall ,WC161-626,30.04.24,CHILDRENS,ALDRIDGE & BARONS LIMITED,22/04/2024,"1,183.50",6241-Hire of Vehicle with Driver,TRANSPORT,DIRECT TRANSPORT COSTS,REVENUE
Walsall Council,http://opendatacommunities.org/id/metropolitan-district-council/walsall ,WC161-627,30.04.24,CHILDRENS,ALDRIDGE & BARONS LIMITED,22/04/2024,"15,125.00",6241-Hire of Vehicle with Driver,TRANSPORT,DIRECT TRANSPORT COSTS,REVENUE
Walsall Council,http://opendatacommunities.org/id/metropolitan-district-council/walsall ,WC161-628,30.04.24,CHILDRENS,ALDRIDGE & BARONS LIMITED,22/04/2024,"1,095.30",6241-Hire of Vehicle with Driver,TRANSPORT,DIRECT TRANSPORT COSTS,REVENUE
Walsall Council,http://opendatacommunities.org/id/metropolitan-district-council/walsall ,WC161-629,30.04.24,CHILDRENS,ALDRIDGE & BARONS LIMITED,22/04/2024,"1,469.30",6241-Hire of Vehicle with Driver,TRANSPORT,DIRECT TRANSPORT COSTS,REVENUE
Walsall Council,http://opendatacommunities.org/id/metropolitan-district-council/walsall ,WC161-630,30.04.24,CHILDRENS,ALDRIDGE & BARONS LIMITED,22/04/2024,"1,287.00",6241-Hire of Vehicle with Driver,TRANSPORT,DIRECT TRANSPORT COSTS,REVENUE
Walsall Council,http://opendatacommunities.org/id/metropolitan-district-council/walsall ,WC161-631,30.04.24,CHILDRENS,ALDRIDGE & BARONS LIMITED,22/04/2024,"1,300.00",6241-Hire of Vehicle with Driver,TRANSPORT,DIRECT TRANSPORT COSTS,REVENUE
Walsall Council,http://opendatacommunities.org/id/metropolitan-district-council/walsall ,WC161-632,30.04.24,CHILDRENS,ALDRIDGE & BARONS LIMITED,22/04/2024,"1,500.00",6241-Hire of Vehicle with Driver,TRANSPORT,DIRECT TRANSPORT COSTS,REVENUE
Walsall Council,http://opendatacommunities.org/id/metropolitan-district-council/walsall ,WC161-633,30.04.24,CHILDRENS,ALDRIDGE & BARONS LIMITED,22/04/2024,"1,800.00",6241-Hire of Vehicle with Driver,TRANSPORT,DIRECT TRANSPORT COSTS,REVENUE
Walsall Council,http://opendatacommunities.org/id/metropolitan-district-council/walsall ,WC161-634,30.04.24,CHILDRENS,ALDRIDGE & BARONS LIMITED,22/04/2024,990.00,6241-Hire of Vehicle with Driver,TRANSPORT,DIRECT TRANSPORT COSTS,REVENUE
Walsall Council,http://opendatacommunities.org/id/metropolitan-district-council/walsall ,WC161-635,30.04.24,CHILDRENS,ALDRIDGE & BARONS LIMITED,22/04/2024,"1,430.00",6241-Hire of Vehicle with Driver,TRANSPORT,DIRECT TRANSPORT COSTS,REVENUE
Walsall Council,http://opendatacommunities.org/id/metropolitan-district-council/walsall ,WC161-636,30.04.24,CHILDRENS,ALDRIDGE & BARONS LIMITED,22/04/2024,424.00,6241-Hire of Vehicle with Driver,TRANSPORT,DIRECT TRANSPORT COSTS,REVENUE
Walsall Council,http://opendatacommunities.org/id/metropolitan-district-council/walsall ,WC161-637,30.04.24,CHILDRENS,ALDRIDGE & BARONS LIMITED,22/04/2024,"1,502.00",6241-Hire of Vehicle with Driver,TRANSPORT,DIRECT TRANSPORT COSTS,REVENUE
Walsall Council,http://opendatacommunities.org/id/metropolitan-district-council/walsall ,WC161-638,30.04.24,CHILDRENS,ALDRIDGE & BARONS LIMITED,22/04/2024,"1,080.00",6241-Hire of Vehicle with Driver,TRANSPORT,DIRECT TRANSPORT COSTS,REVENUE
Walsall Council,http://opendatacommunities.org/id/metropolitan-district-council/walsall ,WC161-639,30.04.24,CHILDRENS,ALDRIDGE & BARONS LIMITED,22/04/2024,"1,430.00",6241-Hire of Vehicle with Driver,TRANSPORT,DIRECT TRANSPORT COSTS,REVENUE
Walsall Council,http://opendatacommunities.org/id/metropolitan-district-council/walsall ,WC161-640,30.04.24,CHILDRENS,ALDRIDGE & BARONS LIMITED,22/04/2024,"1,250.00",6241-Hire of Vehicle with Driver,TRANSPORT,DIRECT TRANSPORT COSTS,REVENUE
Walsall Council,http://opendatacommunities.org/id/metropolitan-district-council/walsall ,WC161-641,30.04.24,CHILDRENS,ALDRIDGE & BARONS LIMITED,22/04/2024,990.00,6241-Hire of Vehicle with Driver,TRANSPORT,DIRECT TRANSPORT COSTS,REVENUE
Walsall Council,http://opendatacommunities.org/id/metropolitan-district-council/walsall ,WC161-642,30.04.24,CHILDRENS,ALDRIDGE & BARONS LIMITED,22/04/2024,960.00,6241-Hire of Vehicle with Driver,TRANSPORT,DIRECT TRANSPORT COSTS,REVENUE
Walsall Council,http://opendatacommunities.org/id/metropolitan-district-council/walsall ,WC161-643,30.04.24,CHILDRENS,ALDRIDGE PREMIER TUITION LTD,09/04/2024,310.00,1220-Professional Fees & Services,SUPPLIES & SERVICES,SERVICES,REVENUE
Walsall Council,http://opendatacommunities.org/id/metropolitan-district-council/walsall ,WC161-644,30.04.24,CHILDRENS,ALDRIDGE PREMIER TUITION LTD,10/04/2024,560.00,1220-Professional Fees & Services,SUPPLIES & SERVICES,SERVICES,REVENUE
Walsall Council,http://opendatacommunities.org/id/metropolitan-district-council/walsall ,WC161-645,30.04.24,CHILDRENS,ALDRIDGE PREMIER TUITION LTD,10/04/2024,"5,612.00",1220-Professional Fees & Services,SUPPLIES & SERVICES,SERVICES,REVENUE
Walsall Council,http://opendatacommunities.org/id/metropolitan-district-council/walsall ,WC161-646,30.04.24,CHILDRENS,ALDRIDGE PREMIER TUITION LTD,10/04/2024,320.00,1220-Professional Fees & Services,SUPPLIES & SERVICES,SERVICES,REVENUE
Walsall Council,http://opendatacommunities.org/id/metropolitan-district-council/walsall ,WC161-647,30.04.24,CHILDRENS,ALDRIDGE PREMIER TUITION LTD,10/04/2024,360.00,1220-Professional Fees & Services,SUPPLIES & SERVICES,SERVICES,REVENUE
Walsall Council,http://opendatacommunities.org/id/metropolitan-district-council/walsall ,WC161-648,30.04.24,ADULT SOCIAL CARE,REDACTED,04/04/2024,"1,790.40",6541-Direct Payment,THIRD PARTY PAYMENTS,PRIVATE CONTRACTOR,REVENUE
Walsall Council,http://opendatacommunities.org/id/metropolitan-district-council/walsall ,WC161-649,30.04.24,ADULT SOCIAL CARE,ALEXANDRA HOUSE CARE SERVICES LTD T/A STONEBRIDGE NURSING HOME,09/04/2024,"7,546.24",6541-Residential,THIRD PARTY PAYMENTS,PRIVATE CONTRACTOR,REVENUE
Walsall Council,http://opendatacommunities.org/id/metropolitan-district-council/walsall ,WC161-650,30.04.24,ADULT SOCIAL CARE,ALEXANDRA HOUSE SUPPORT SERVICES LTD,09/04/2024,"5,936.00",6541-Residential,THIRD PARTY PAYMENTS,PRIVATE CONTRACTOR,REVENUE
Walsall Council,http://opendatacommunities.org/id/metropolitan-district-council/walsall ,WC161-651,30.04.24,ADULT SOCIAL CARE,REDACTED,04/04/2024,"1,136.52",6541-Direct Payment,THIRD PARTY PAYMENTS,PRIVATE CONTRACTOR,REVENUE
Walsall Council,http://opendatacommunities.org/id/metropolitan-district-council/walsall ,WC161-652,30.04.24,CHILDRENS,REDACTED,04/04/2024,323.60,6223-Special Guardianship Orders,TRANSFER PAYMENTS,CHILDREN SOCIAL SERVICES CLIENT,REVENUE
Walsall Council,http://opendatacommunities.org/id/metropolitan-district-council/walsall ,WC161-653,30.04.24,ADULT SOCIAL CARE,REDACTED,18/04/2024,434.30,6541-Shared Lives,THIRD PARTY PAYMENTS,PRIVATE CONTRACTOR,REVENUE
Walsall Council,http://opendatacommunities.org/id/metropolitan-district-council/walsall ,WC161-654,30.04.24,ADULT SOCIAL CARE,REDACTED,18/04/2024,434.30,6541-Shared Lives,THIRD PARTY PAYMENTS,PRIVATE CONTRACTOR,REVENUE
Walsall Council,http://opendatacommunities.org/id/metropolitan-district-council/walsall ,WC161-655,30.04.24,ADULT SOCIAL CARE,REDACTED,18/04/2024,434.30,6541-Shared Lives,THIRD PARTY PAYMENTS,PRIVATE CONTRACTOR,REVENUE
Walsall Council,http://opendatacommunities.org/id/metropolitan-district-council/walsall ,WC161-656,30.04.24,CHILDRENS,ALL STARS WALSALL CIC,24/04/2024,858.80,6211-Professional Fees & Services,SUPPLIES & SERVICES,SERVICES,REVENUE
Walsall Council,http://opendatacommunities.org/id/metropolitan-district-council/walsall ,WC161-657,30.04.24,RESOURCES AND TRANSFORMATION,ALLIED PUBLICITY SERVICES (MANCHESTER) LIMITED T/A APS GROUP,17/04/2024,"1,349.43",6312-External Printing Services,SUPPLIES & SERVICES,PRINTING STATIONERY & GENERAL OFFICE,REVENUE
Walsall Council,http://opendatacommunities.org/id/metropolitan-district-council/walsall ,WC161-658,30.04.24,RESOURCES AND TRANSFORMATION,ALLIED PUBLICITY SERVICES (MANCHESTER) LIMITED T/A APS GROUP,17/04/2024,"1,187.54",6312-External Printing Services,SUPPLIES & SERVICES,PRINTING STATIONERY & GENERAL OFFICE,REVENUE
Walsall Council,http://opendatacommunities.org/id/metropolitan-district-council/walsall ,WC161-659,30.04.24,ADULT SOCIAL CARE,ALMA COURT,09/04/2024,"6,718.40",6541-Residential,THIRD PARTY PAYMENTS,PRIVATE CONTRACTOR,REVENUE
Walsall Council,http://opendatacommunities.org/id/metropolitan-district-council/walsall ,WC161-660,30.04.24,ADULT SOCIAL CARE,ALMA COURT,09/04/2024,"4,861.00",6541-Nursing EMI,THIRD PARTY PAYMENTS,PRIVATE CONTRACTOR,REVENUE
Walsall Council,http://opendatacommunities.org/id/metropolitan-district-council/walsall ,WC161-661,30.04.24,ADULT SOCIAL CARE,ALMA COURT,09/04/2024,"5,200.00",6541-Residential,THIRD PARTY PAYMENTS,PRIVATE CONTRACTOR,REVENUE
Walsall Council,http://opendatacommunities.org/id/metropolitan-district-council/walsall ,WC161-662,30.04.24,ADULT SOCIAL CARE,ALMA COURT,09/04/2024,"4,263.00",6541-Residential,THIRD PARTY PAYMENTS,PRIVATE CONTRACTOR,REVENUE
Walsall Council,http://opendatacommunities.org/id/metropolitan-district-council/walsall ,WC161-663,30.04.24,ADULT SOCIAL CARE,ALMA COURT,09/04/2024,"4,055.28",6541-Nursing EMI,THIRD PARTY PAYMENTS,PRIVATE CONTRACTOR,REVENUE
Walsall Council,http://opendatacommunities.org/id/metropolitan-district-council/walsall ,WC161-664,30.04.24,ADULT SOCIAL CARE,ALMA COURT,09/04/2024,371.43,6541-Nursing EMI,THIRD PARTY PAYMENTS,PRIVATE CONTRACTOR,REVENUE
Walsall Council,http://opendatacommunities.org/id/metropolitan-district-council/walsall ,WC161-665,30.04.24,CHILDRENS,ALMOZENE NURSERY & CHILDRENS CENTRE,19/04/2024,-578.55,1184-Other-Grants to Other Orgs,SUPPLIES & SERVICES,GRANTS (EXP) & SUBSCRIPTIONS,REVENUE
Walsall Council,http://opendatacommunities.org/id/metropolitan-district-council/walsall ,WC161-666,30.04.24,CHILDRENS,ALMOZENE NURSERY & CHILDRENS CENTRE,16/04/2024,"10,266.75",1184-Other-Grants to Other Orgs,SUPPLIES & SERVICES,GRANTS (EXP) & SUBSCRIPTIONS,REVENUE
Walsall Council,http://opendatacommunities.org/id/metropolitan-district-council/walsall ,WC161-667,30.04.24,CHILDRENS,ALMOZENE NURSERY & CHILDRENS CENTRE,19/04/2024,"6,010.88",1184-Other-Grants to Other Orgs,SUPPLIES & SERVICES,GRANTS (EXP) & SUBSCRIPTIONS,REVENUE
Walsall Council,http://opendatacommunities.org/id/metropolitan-district-council/walsall ,WC161-668,30.04.24,CHILDRENS,ALMOZENE NURSERY & CHILDRENS CENTRE,19/04/2024,-874.80,1184-Other-Grants to Other Orgs,SUPPLIES & SERVICES,GRANTS (EXP) & SUBSCRIPTIONS,REVENUE
Walsall Council,http://opendatacommunities.org/id/metropolitan-district-council/walsall ,WC161-669,30.04.24,CHILDRENS,ALMOZENE NURSERY & CHILDRENS CENTRE,16/04/2024,"8,687.25",1184-Other-Grants to Other Orgs,SUPPLIES & SERVICES,GRANTS (EXP) & SUBSCRIPTIONS,REVENUE
Walsall Council,http://opendatacommunities.org/id/metropolitan-district-council/walsall ,WC161-670,30.04.24,CHILDRENS,ALMOZENE NURSERY & CHILDRENS CENTRE,19/04/2024,668.25,1184-Other-Grants to Other Orgs,SUPPLIES & SERVICES,GRANTS (EXP) & SUBSCRIPTIONS,REVENUE
Walsall Council,http://opendatacommunities.org/id/metropolitan-district-council/walsall ,WC161-671,30.04.24,CHILDRENS,ALMOZENE NURSERY & CHILDRENS CENTRE,03/04/2024,-974.87,1265-Early Years Supplementary Grant Expenditure,TRANSFER PAYMENTS,SCHOOLCHILDREN/STUDENTS,REVENUE
Walsall Council,http://opendatacommunities.org/id/metropolitan-district-council/walsall ,WC161-672,30.04.24,CHILDRENS,ALMOZENE NURSERY & CHILDRENS CENTRE,03/04/2024,"1,655.85",1265-Early Years Supplementary Grant Expenditure,TRANSFER PAYMENTS,SCHOOLCHILDREN/STUDENTS,REVENUE
Walsall Council,http://opendatacommunities.org/id/metropolitan-district-council/walsall ,WC161-673,30.04.24,CHILDRENS,ALMOZENE NURSERY & CHILDRENS CENTRE,03/04/2024,-647.90,1265-Early Years Supplementary Grant Expenditure,TRANSFER PAYMENTS,SCHOOLCHILDREN/STUDENTS,REVENUE
Walsall Council,http://opendatacommunities.org/id/metropolitan-district-council/walsall ,WC161-674,30.04.24,CHILDRENS,ALMOZENE NURSERY & CHILDRENS CENTRE,03/04/2024,530.10,1265-Early Years Supplementary Grant Expenditure,TRANSFER PAYMENTS,SCHOOLCHILDREN/STUDENTS,REVENUE
Walsall Council,http://opendatacommunities.org/id/metropolitan-district-council/walsall ,WC161-675,30.04.24,CHILDRENS,ALMOZENE NURSERY & CHILDRENS CENTRE,24/04/2024,"1,153.53",6211-Professional Fees & Services,SUPPLIES & SERVICES,SERVICES,REVENUE
Walsall Council,http://opendatacommunities.org/id/metropolitan-district-council/walsall ,WC161-676,30.04.24,ADULT SOCIAL CARE,ALPHA HEALTH CARE LTD,09/04/2024,"2,819.08",6541-Nursing EMI,THIRD PARTY PAYMENTS,PRIVATE CONTRACTOR,REVENUE
Walsall Council,http://opendatacommunities.org/id/metropolitan-district-council/walsall ,WC161-677,30.04.24,ADULT SOCIAL CARE,ALPHA HEALTH CARE LTD,09/04/2024,"2,936.84",6541-Residential EMI,THIRD PARTY PAYMENTS,PRIVATE CONTRACTOR,REVENUE
Walsall Council,http://opendatacommunities.org/id/metropolitan-district-council/walsall ,WC161-678,30.04.24,ADULT SOCIAL CARE,ALPHA HEALTH CARE LTD,09/04/2024,"3,445.36",6541-Residential EMI,THIRD PARTY PAYMENTS,PRIVATE CONTRACTOR,REVENUE
Walsall Council,http://opendatacommunities.org/id/metropolitan-district-council/walsall ,WC161-679,30.04.24,ADULT SOCIAL CARE,ALPHA HEALTH CARE LTD,09/04/2024,"2,813.36",6541-Residential EMI,THIRD PARTY PAYMENTS,PRIVATE CONTRACTOR,REVENUE
Walsall Council,http://opendatacommunities.org/id/metropolitan-district-council/walsall ,WC161-680,30.04.24,ADULT SOCIAL CARE,ALPHA HEALTH CARE LTD,09/04/2024,"4,027.32",6541-Residential EMI,THIRD PARTY PAYMENTS,PRIVATE CONTRACTOR,REVENUE
Walsall Council,http://opendatacommunities.org/id/metropolitan-district-council/walsall ,WC161-681,30.04.24,ADULT SOCIAL CARE,ALPHA HEALTH CARE LTD,09/04/2024,"-4,530.97",6541-Residential,THIRD PARTY PAYMENTS,PRIVATE CONTRACTOR,REVENUE
Walsall Council,http://opendatacommunities.org/id/metropolitan-district-council/walsall ,WC161-682,30.04.24,ADULT SOCIAL CARE,ALPHA HEALTH CARE LTD,09/04/2024,"2,413.36",6541-Residential EMI,THIRD PARTY PAYMENTS,PRIVATE CONTRACTOR,REVENUE
Walsall Council,http://opendatacommunities.org/id/metropolitan-district-council/walsall ,WC161-683,30.04.24,ADULT SOCIAL CARE,ALPHA HEALTH CARE LTD,09/04/2024,"4,440.00",6541-Nursing EMI,THIRD PARTY PAYMENTS,PRIVATE CONTRACTOR,REVENUE
Walsall Council,http://opendatacommunities.org/id/metropolitan-district-council/walsall ,WC161-684,30.04.24,ADULT SOCIAL CARE,ALPHA HEALTH CARE LTD,09/04/2024,"3,829.36",6541-Residential EMI,THIRD PARTY PAYMENTS,PRIVATE CONTRACTOR,REVENUE
Walsall Council,http://opendatacommunities.org/id/metropolitan-district-council/walsall ,WC161-685,30.04.24,ADULT SOCIAL CARE,ALPHA HEALTH CARE LTD,09/04/2024,"7,600.00",6541-Residential,THIRD PARTY PAYMENTS,PRIVATE CONTRACTOR,REVENUE
Walsall Council,http://opendatacommunities.org/id/metropolitan-district-council/walsall ,WC161-686,30.04.24,ADULT SOCIAL CARE,ALPHA HEALTH CARE LTD,09/04/2024,"3,721.16",6541-Nursing EMI,THIRD PARTY PAYMENTS,PRIVATE CONTRACTOR,REVENUE
Walsall Council,http://opendatacommunities.org/id/metropolitan-district-council/walsall ,WC161-687,30.04.24,ADULT SOCIAL CARE,ALPHA HEALTH CARE LTD,09/04/2024,"3,800.00",6541-Residential,THIRD PARTY PAYMENTS,PRIVATE CONTRACTOR,REVENUE
Walsall Council,http://opendatacommunities.org/id/metropolitan-district-council/walsall ,WC161-688,30.04.24,ADULT SOCIAL CARE,ALPHA HEALTH CARE LTD,09/04/2024,"-10,542.86",6541-Residential,THIRD PARTY PAYMENTS,PRIVATE CONTRACTOR,REVENUE
Walsall Council,http://opendatacommunities.org/id/metropolitan-district-council/walsall ,WC161-689,30.04.24,ADULT SOCIAL CARE,ALPHA HEALTH CARE LTD,09/04/2024,"4,200.00",6541-Nursing EMI,THIRD PARTY PAYMENTS,PRIVATE CONTRACTOR,REVENUE
Walsall Council,http://opendatacommunities.org/id/metropolitan-district-council/walsall ,WC161-690,30.04.24,ADULT SOCIAL CARE,ALPHA HEALTH CARE LTD,09/04/2024,"7,105.00",6541-Residential,THIRD PARTY PAYMENTS,PRIVATE CONTRACTOR,REVENUE
Walsall Council,http://opendatacommunities.org/id/metropolitan-district-council/walsall ,WC161-691,30.04.24,ADULT SOCIAL CARE,ALPHA HEALTH CARE LTD,09/04/2024,"3,723.08",6541-Nursing EMI,THIRD PARTY PAYMENTS,PRIVATE CONTRACTOR,REVENUE
Walsall Council,http://opendatacommunities.org/id/metropolitan-district-council/walsall ,WC161-692,30.04.24,ADULT SOCIAL CARE,ALPHA HEALTH CARE LTD,09/04/2024,"7,123.08",6541-Residential,THIRD PARTY PAYMENTS,PRIVATE CONTRACTOR,REVENUE
Walsall Council,http://opendatacommunities.org/id/metropolitan-district-council/walsall ,WC161-693,30.04.24,ADULT SOCIAL CARE,ALPHA HEALTH CARE LTD,09/04/2024,"7,600.00",6541-Residential,THIRD PARTY PAYMENTS,PRIVATE CONTRACTOR,REVENUE
Walsall Council,http://opendatacommunities.org/id/metropolitan-district-council/walsall ,WC161-694,30.04.24,ADULT SOCIAL CARE,ALPHA HEALTH CARE LTD,09/04/2024,"2,692.86",6541-Residential EMI,THIRD PARTY PAYMENTS,PRIVATE CONTRACTOR,REVENUE
Walsall Council,http://opendatacommunities.org/id/metropolitan-district-council/walsall ,WC161-695,30.04.24,ADULT SOCIAL CARE,ALPHA HEALTH CARE LTD,09/04/2024,"4,284.00",6541-Nursing,THIRD PARTY PAYMENTS,PRIVATE CONTRACTOR,REVENUE
Walsall Council,http://opendatacommunities.org/id/metropolitan-district-council/walsall ,WC161-696,30.04.24,ADULT SOCIAL CARE,ALPHA HEALTH CARE LTD,09/04/2024,"7,980.00",6541-Residential,THIRD PARTY PAYMENTS,PRIVATE CONTRACTOR,REVENUE
Walsall Council,http://opendatacommunities.org/id/metropolitan-district-council/walsall ,WC161-697,30.04.24,ADULT SOCIAL CARE,ALPHA HEALTH CARE LTD,09/04/2024,"3,422.28",6541-Residential EMI,THIRD PARTY PAYMENTS,PRIVATE CONTRACTOR,REVENUE
Walsall Council,http://opendatacommunities.org/id/metropolitan-district-council/walsall ,WC161-698,30.04.24,ADULT SOCIAL CARE,ALPHA HEALTH CARE LTD,09/04/2024,"7,600.00",6541-Residential,THIRD PARTY PAYMENTS,PRIVATE CONTRACTOR,REVENUE
Walsall Council,http://opendatacommunities.org/id/metropolitan-district-council/walsall ,WC161-699,30.04.24,ADULT SOCIAL CARE,ALPHA HEALTH CARE LTD,09/04/2024,"7,600.00",6541-Residential,THIRD PARTY PAYMENTS,PRIVATE CONTRACTOR,REVENUE
Walsall Council,http://opendatacommunities.org/id/metropolitan-district-council/walsall ,WC161-700,30.04.24,ADULT SOCIAL CARE,ALPHA HEALTH CARE LTD,09/04/2024,"7,980.00",6541-Nursing EMI,THIRD PARTY PAYMENTS,PRIVATE CONTRACTOR,REVENUE
Walsall Council,http://opendatacommunities.org/id/metropolitan-district-council/walsall ,WC161-701,30.04.24,ADULT SOCIAL CARE,ALPHA HEALTH CARE LTD,09/04/2024,"7,180.00",6541-Nursing EMI,THIRD PARTY PAYMENTS,PRIVATE CONTRACTOR,REVENUE
Walsall Council,http://opendatacommunities.org/id/metropolitan-district-council/walsall ,WC161-702,30.04.24,ADULT SOCIAL CARE,ALPHA HEALTH CARE LTD,09/04/2024,"3,621.16",6541-Nursing EMI,THIRD PARTY PAYMENTS,PRIVATE CONTRACTOR,REVENUE
Walsall Council,http://opendatacommunities.org/id/metropolitan-district-council/walsall ,WC161-703,30.04.24,ADULT SOCIAL CARE,ALPHA HEALTH CARE LTD,09/04/2024,"2,244.65",6541-Short Stay Residential,THIRD PARTY PAYMENTS,PRIVATE CONTRACTOR,REVENUE
Walsall Council,http://opendatacommunities.org/id/metropolitan-district-council/walsall ,WC161-704,30.04.24,ADULT SOCIAL CARE,ALPHA HEALTH CARE LTD,09/04/2024,"28,500.00",6541-Residential,THIRD PARTY PAYMENTS,PRIVATE CONTRACTOR,REVENUE
Walsall Council,http://opendatacommunities.org/id/metropolitan-district-council/walsall ,WC161-705,30.04.24,ADULT SOCIAL CARE,ALPHA HEALTH CARE LTD,09/04/2024,"-40,699.11",6541-Nursing EMI,THIRD PARTY PAYMENTS,PRIVATE CONTRACTOR,REVENUE
Walsall Council,http://opendatacommunities.org/id/metropolitan-district-council/walsall ,WC161-706,30.04.24,ADULT SOCIAL CARE,ALPHA HEALTH CARE LTD,09/04/2024,"1,289.56",6541-Nursing,THIRD PARTY PAYMENTS,PRIVATE CONTRACTOR,REVENUE
Walsall Council,http://opendatacommunities.org/id/metropolitan-district-council/walsall ,WC161-707,30.04.24,ADULT SOCIAL CARE,ALPHA HEALTH CARE LTD,09/04/2024,"3,090.44",6541-Residential,THIRD PARTY PAYMENTS,PRIVATE CONTRACTOR,REVENUE
Walsall Council,http://opendatacommunities.org/id/metropolitan-district-council/walsall ,WC161-708,30.04.24,ADULT SOCIAL CARE,ALPHA HEALTH CARE LTD,09/04/2024,"3,567.32",6541-Residential EMI,THIRD PARTY PAYMENTS,PRIVATE CONTRACTOR,REVENUE
Walsall Council,http://opendatacommunities.org/id/metropolitan-district-council/walsall ,WC161-709,30.04.24,ADULT SOCIAL CARE,ALPHA HEALTH CARE LTD,09/04/2024,"4,855.28",6541-Nursing EMI,THIRD PARTY PAYMENTS,PRIVATE CONTRACTOR,REVENUE
Walsall Council,http://opendatacommunities.org/id/metropolitan-district-council/walsall ,WC161-710,30.04.24,ADULT SOCIAL CARE,ALPHA HEALTH CARE LTD,09/04/2024,"5,055.28",6541-Nursing EMI,THIRD PARTY PAYMENTS,PRIVATE CONTRACTOR,REVENUE
Walsall Council,http://opendatacommunities.org/id/metropolitan-district-council/walsall ,WC161-711,30.04.24,ADULT SOCIAL CARE,ALPHA HEALTH CARE LTD,09/04/2024,"3,800.00",6541-Residential,THIRD PARTY PAYMENTS,PRIVATE CONTRACTOR,REVENUE
Walsall Council,http://opendatacommunities.org/id/metropolitan-district-council/walsall ,WC161-712,30.04.24,ADULT SOCIAL CARE,ALPHA HEALTH CARE LTD,09/04/2024,"4,600.00",6541-Residential,THIRD PARTY PAYMENTS,PRIVATE CONTRACTOR,REVENUE
Walsall Council,http://opendatacommunities.org/id/metropolitan-district-council/walsall ,WC161-713,30.04.24,ADULT SOCIAL CARE,ALPHA HEALTH CARE LTD,09/04/2024,"7,980.00",6541-Residential,THIRD PARTY PAYMENTS,PRIVATE CONTRACTOR,REVENUE
Walsall Council,http://opendatacommunities.org/id/metropolitan-district-council/walsall ,WC161-714,30.04.24,ADULT SOCIAL CARE,ALPHA HEALTH CARE LTD,09/04/2024,"4,800.00",6541-Nursing EMI,THIRD PARTY PAYMENTS,PRIVATE CONTRACTOR,REVENUE
Walsall Council,http://opendatacommunities.org/id/metropolitan-district-council/walsall ,WC161-715,30.04.24,ADULT SOCIAL CARE,ALPHA HEALTH CARE LTD,09/04/2024,"4,500.00",6541-Residential,THIRD PARTY PAYMENTS,PRIVATE CONTRACTOR,REVENUE
Walsall Council,http://opendatacommunities.org/id/metropolitan-district-council/walsall ,WC161-716,30.04.24,ADULT SOCIAL CARE,ALPHA HEALTH CARE LTD,09/04/2024,"8,571.43",6541-Nursing EMI,THIRD PARTY PAYMENTS,PRIVATE CONTRACTOR,REVENUE
Walsall Council,http://opendatacommunities.org/id/metropolitan-district-council/walsall ,WC161-717,30.04.24,CHILDRENS,ALPHA TRAINING ACADEMY UK LTD,16/04/2024,"4,590.00",1187-Materials,SUPPLIES & SERVICES,EQUIPMENT FURNITURE & MATERIALS,REVENUE
Walsall Council,http://opendatacommunities.org/id/metropolitan-district-council/walsall ,WC161-718,30.04.24,CHILDRENS,ALPHABIOLABS,04/04/2024,"1,896.40",6222-Professional Fees & Services,SUPPLIES & SERVICES,SERVICES,REVENUE
Walsall Council,http://opendatacommunities.org/id/metropolitan-district-council/walsall ,WC161-719,30.04.24,CHILDRENS,ALPHABIOLABS,25/04/2024,605.00,6222-Professional Fees & Services,SUPPLIES & SERVICES,SERVICES,REVENUE
Walsall Council,http://opendatacommunities.org/id/metropolitan-district-council/walsall ,WC161-720,30.04.24,ADULT SOCIAL CARE,REDACTED,04/04/2024,708.32,6541-Direct Payment,THIRD PARTY PAYMENTS,PRIVATE CONTRACTOR,REVENUE
Walsall Council,http://opendatacommunities.org/id/metropolitan-district-council/walsall ,WC161-721,30.04.24,ADULT SOCIAL CARE,REDACTED,04/04/2024,"1,361.16",6541-Shared Lives,THIRD PARTY PAYMENTS,PRIVATE CONTRACTOR,REVENUE
Walsall Council,http://opendatacommunities.org/id/metropolitan-district-council/walsall ,WC161-722,30.04.24,ADULT SOCIAL CARE,REDACTED,03/04/2024,"1,514.80",6541-Shared Lives,THIRD PARTY PAYMENTS,PRIVATE CONTRACTOR,REVENUE
Walsall Council,http://opendatacommunities.org/id/metropolitan-district-council/walsall ,WC161-723,30.04.24,CHILDRENS,AMANS TRAVEL LTD,22/04/2024,"3,500.00",6241-Hire of Vehicle with Driver,TRANSPORT,DIRECT TRANSPORT COSTS,REVENUE
Walsall Council,http://opendatacommunities.org/id/metropolitan-district-council/walsall ,WC161-724,30.04.24,CHILDRENS,AMANS TRAVEL LTD,22/04/2024,"2,185.00",6241-Hire of Vehicle with Driver,TRANSPORT,DIRECT TRANSPORT COSTS,REVENUE
Walsall Council,http://opendatacommunities.org/id/metropolitan-district-council/walsall ,WC161-725,30.04.24,CHILDRENS,AMANS TRAVEL LTD,22/04/2024,"2,185.00",6241-Hire of Vehicle with Driver,TRANSPORT,DIRECT TRANSPORT COSTS,REVENUE
Walsall Council,http://opendatacommunities.org/id/metropolitan-district-council/walsall ,WC161-726,30.04.24,CHILDRENS,AMANS TRAVEL LTD,22/04/2024,"1,552.50",6241-Hire of Vehicle with Driver,TRANSPORT,DIRECT TRANSPORT COSTS,REVENUE
Walsall Council,http://opendatacommunities.org/id/metropolitan-district-council/walsall ,WC161-727,30.04.24,CHILDRENS,AMANS TRAVEL LTD,22/04/2024,"2,385.00",6241-Hire of Vehicle with Driver,TRANSPORT,DIRECT TRANSPORT COSTS,REVENUE
Walsall Council,http://opendatacommunities.org/id/metropolitan-district-council/walsall ,WC161-728,30.04.24,ADULT SOCIAL CARE,REDACTED,04/04/2024,"3,687.12",6541-Direct Payment,THIRD PARTY PAYMENTS,PRIVATE CONTRACTOR,REVENUE
Walsall Council,http://opendatacommunities.org/id/metropolitan-district-council/walsall ,WC161-729,30.04.24,ECONOMY & ENVIRONMENT CAPITAL,AMEY OW LTD,17/04/2024,"6,407.88",7200-Site Works Contractors,CAPITAL,"NEW CONSTRUCTION,CONVERSION & RENOVATION",CAPITAL
Walsall Council,http://opendatacommunities.org/id/metropolitan-district-council/walsall ,WC161-730,30.04.24,ADULT SOCIAL CARE,AMG NURSING CARE SERVICES,04/04/2024,620.40,6554-Professional Services-Priv Contractor & Other Agencies,THIRD PARTY PAYMENTS,PRIVATE CONTRACTOR,REVENUE
Walsall Council,http://opendatacommunities.org/id/metropolitan-district-council/walsall ,WC161-731,30.04.24,ADULT SOCIAL CARE,AMG NURSING CARE SERVICES,04/04/2024,826.37,6554-Professional Services-Priv Contractor & Other Agencies,THIRD PARTY PAYMENTS,PRIVATE CONTRACTOR,REVENUE
Walsall Council,http://opendatacommunities.org/id/metropolitan-district-council/walsall ,WC161-732,30.04.24,ADULT SOCIAL CARE,AMG NURSING CARE SERVICES,04/04/2024,"1,049.70",6554-Professional Services-Priv Contractor & Other Agencies,THIRD PARTY PAYMENTS,PRIVATE CONTRACTOR,REVENUE
Walsall Council,http://opendatacommunities.org/id/metropolitan-district-council/walsall ,WC161-733,30.04.24,ADULT SOCIAL CARE,AMG NURSING CARE SERVICES,04/04/2024,302.47,6554-Professional Services-Priv Contractor & Other Agencies,THIRD PARTY PAYMENTS,PRIVATE CONTRACTOR,REVENUE
Walsall Council,http://opendatacommunities.org/id/metropolitan-district-council/walsall ,WC161-734,30.04.24,CHILDRENS,AMG NURSING CARE SERVICES,02/04/2024,428.24,6220-Professional Fees & Services,SUPPLIES & SERVICES,SERVICES,REVENUE
Walsall Council,http://opendatacommunities.org/id/metropolitan-district-council/walsall ,WC161-735,30.04.24,CHILDRENS,AMG NURSING CARE SERVICES,02/04/2024,"1,258.44",6220-Professional Fees & Services,SUPPLIES & SERVICES,SERVICES,REVENUE
Walsall Council,http://opendatacommunities.org/id/metropolitan-district-council/walsall ,WC161-736,30.04.24,CHILDRENS,AMG NURSING CARE SERVICES,02/04/2024,535.30,6220-Professional Fees & Services,SUPPLIES & SERVICES,SERVICES,REVENUE
Walsall Council,http://opendatacommunities.org/id/metropolitan-district-council/walsall ,WC161-737,30.04.24,CHILDRENS,AMG NURSING CARE SERVICES,02/04/2024,"1,217.75",6220-Professional Fees & Services,SUPPLIES & SERVICES,SERVICES,REVENUE
Walsall Council,http://opendatacommunities.org/id/metropolitan-district-council/walsall ,WC161-738,30.04.24,CHILDRENS,AMG NURSING CARE SERVICES,09/04/2024,602.80,6220-Professional Fees & Services,SUPPLIES & SERVICES,SERVICES,REVENUE
Walsall Council,http://opendatacommunities.org/id/metropolitan-district-council/walsall ,WC161-739,30.04.24,CHILDRENS,AMG NURSING CARE SERVICES,09/04/2024,"1,612.59",6220-Professional Fees & Services,SUPPLIES & SERVICES,SERVICES,REVENUE
Walsall Council,http://opendatacommunities.org/id/metropolitan-district-council/walsall ,WC161-740,30.04.24,CHILDRENS,AMG NURSING CARE SERVICES,09/04/2024,464.70,6220-Professional Fees & Services,SUPPLIES & SERVICES,SERVICES,REVENUE
Walsall Council,http://opendatacommunities.org/id/metropolitan-district-council/walsall ,WC161-741,30.04.24,CHILDRENS,AMG NURSING CARE SERVICES,16/04/2024,602.80,6220-Professional Fees & Services,SUPPLIES & SERVICES,SERVICES,REVENUE
Walsall Council,http://opendatacommunities.org/id/metropolitan-district-council/walsall ,WC161-742,30.04.24,CHILDRENS,AMG NURSING CARE SERVICES,16/04/2024,"1,337.15",6220-Professional Fees & Services,SUPPLIES & SERVICES,SERVICES,REVENUE
Walsall Council,http://opendatacommunities.org/id/metropolitan-district-council/walsall ,WC161-743,30.04.24,CHILDRENS,AMG NURSING CARE SERVICES,18/04/2024,637.92,6220-Professional Fees & Services,SUPPLIES & SERVICES,SERVICES,REVENUE
Walsall Council,http://opendatacommunities.org/id/metropolitan-district-council/walsall ,WC161-744,30.04.24,CHILDRENS,AMG NURSING CARE SERVICES,19/04/2024,535.30,6220-Professional Fees & Services,SUPPLIES & SERVICES,SERVICES,REVENUE
Walsall Council,http://opendatacommunities.org/id/metropolitan-district-council/walsall ,WC161-745,30.04.24,CHILDRENS,AMG NURSING CARE SERVICES,19/04/2024,"1,260.87",6220-Professional Fees & Services,SUPPLIES & SERVICES,SERVICES,REVENUE
Walsall Council,http://opendatacommunities.org/id/metropolitan-district-council/walsall ,WC161-746,30.04.24,CHILDRENS,AMG NURSING CARE SERVICES,29/04/2024,535.30,6220-Professional Fees & Services,SUPPLIES & SERVICES,SERVICES,REVENUE
Walsall Council,http://opendatacommunities.org/id/metropolitan-district-council/walsall ,WC161-747,30.04.24,CHILDRENS,AMG NURSING CARE SERVICES,29/04/2024,"1,223.36",6220-Professional Fees & Services,SUPPLIES & SERVICES,SERVICES,REVENUE
Walsall Council,http://opendatacommunities.org/id/metropolitan-district-council/walsall ,WC161-748,30.04.24,CHILDRENS,AMG NURSING CARE SERVICES,29/04/2024,560.16,6220-Professional Fees & Services,SUPPLIES & SERVICES,SERVICES,REVENUE
Walsall Council,http://opendatacommunities.org/id/metropolitan-district-council/walsall ,WC161-749,30.04.24,CHILDRENS,AMMA CHILDCARE SERVICES LTD,16/04/2024,"24,760.00",6223-External Residential Care-Oth Agency Provision,THIRD PARTY PAYMENTS,PRIVATE CONTRACTOR,REVENUE
Walsall Council,http://opendatacommunities.org/id/metropolitan-district-council/walsall ,WC161-750,30.04.24,CHILDRENS,REDACTED,04/04/2024,700.00,6223-Special Guardianship Orders,TRANSFER PAYMENTS,CHILDREN SOCIAL SERVICES CLIENT,REVENUE
Walsall Council,http://opendatacommunities.org/id/metropolitan-district-council/walsall ,WC161-751,30.04.24,CHILDRENS,REDACTED,04/04/2024,374.00,6223-Special Guardianship Orders,TRANSFER PAYMENTS,CHILDREN SOCIAL SERVICES CLIENT,REVENUE
Walsall Council,http://opendatacommunities.org/id/metropolitan-district-council/walsall ,WC161-752,30.04.24,ADULT SOCIAL CARE,ANCHOR HANOVER GROUP - BLOOMFIELD COURT,09/04/2024,"1,683.82",6541-Residential EMI,THIRD PARTY PAYMENTS,PRIVATE CONTRACTOR,REVENUE
Walsall Council,http://opendatacommunities.org/id/metropolitan-district-council/walsall ,WC161-753,30.04.24,ADULT SOCIAL CARE,ANCHOR HANOVER GROUP - BLOOMFIELD COURT,09/04/2024,948.11,6541-Residential EMI,THIRD PARTY PAYMENTS,PRIVATE CONTRACTOR,REVENUE
Walsall Council,http://opendatacommunities.org/id/metropolitan-district-council/walsall ,WC161-754,30.04.24,ADULT SOCIAL CARE,ANCHOR HANOVER GROUP - HARDEN HALL CARE HOME,09/04/2024,"2,413.36",6541-Residential EMI,THIRD PARTY PAYMENTS,PRIVATE CONTRACTOR,REVENUE
Walsall Council,http://opendatacommunities.org/id/metropolitan-district-council/walsall ,WC161-755,30.04.24,ADULT SOCIAL CARE,ANCHOR HANOVER GROUP - HARDEN HALL CARE HOME,09/04/2024,"2,413.36",6541-Residential EMI,THIRD PARTY PAYMENTS,PRIVATE CONTRACTOR,REVENUE
Walsall Council,http://opendatacommunities.org/id/metropolitan-district-council/walsall ,WC161-756,30.04.24,ADULT SOCIAL CARE,ANCHOR HANOVER GROUP - HARDEN HALL CARE HOME,09/04/2024,"2,413.36",6541-Residential EMI,THIRD PARTY PAYMENTS,PRIVATE CONTRACTOR,REVENUE
Walsall Council,http://opendatacommunities.org/id/metropolitan-district-council/walsall ,WC161-757,30.04.24,ADULT SOCIAL CARE,ANCHOR HANOVER GROUP - HARDEN HALL CARE HOME,09/04/2024,"2,773.36",6541-Residential EMI,THIRD PARTY PAYMENTS,PRIVATE CONTRACTOR,REVENUE
Walsall Council,http://opendatacommunities.org/id/metropolitan-district-council/walsall ,WC161-758,30.04.24,ADULT SOCIAL CARE,ANCHOR HANOVER GROUP - HARDEN HALL CARE HOME,09/04/2024,"2,773.36",6541-Residential EMI,THIRD PARTY PAYMENTS,PRIVATE CONTRACTOR,REVENUE
Walsall Council,http://opendatacommunities.org/id/metropolitan-district-council/walsall ,WC161-759,30.04.24,ADULT SOCIAL CARE,ANCHOR HANOVER GROUP - HARDEN HALL CARE HOME,09/04/2024,"2,773.36",6541-Residential EMI,THIRD PARTY PAYMENTS,PRIVATE CONTRACTOR,REVENUE
Walsall Council,http://opendatacommunities.org/id/metropolitan-district-council/walsall ,WC161-760,30.04.24,ADULT SOCIAL CARE,ANCHOR HANOVER GROUP - HARDEN HALL CARE HOME,09/04/2024,"2,137.32",6541-Residential,THIRD PARTY PAYMENTS,PRIVATE CONTRACTOR,REVENUE
Walsall Council,http://opendatacommunities.org/id/metropolitan-district-council/walsall ,WC161-761,30.04.24,ADULT SOCIAL CARE,ANCHOR HANOVER GROUP - HARDEN HALL CARE HOME,09/04/2024,"2,773.36",6541-Residential EMI,THIRD PARTY PAYMENTS,PRIVATE CONTRACTOR,REVENUE
Walsall Council,http://opendatacommunities.org/id/metropolitan-district-council/walsall ,WC161-762,30.04.24,ADULT SOCIAL CARE,ANCHOR HANOVER GROUP - HARDEN HALL CARE HOME,09/04/2024,"2,773.36",6541-Residential EMI,THIRD PARTY PAYMENTS,PRIVATE CONTRACTOR,REVENUE
Walsall Council,http://opendatacommunities.org/id/metropolitan-district-council/walsall ,WC161-763,30.04.24,ADULT SOCIAL CARE,ANCHOR HANOVER GROUP - HARDEN HALL CARE HOME,09/04/2024,"2,773.36",6541-Residential EMI,THIRD PARTY PAYMENTS,PRIVATE CONTRACTOR,REVENUE
Walsall Council,http://opendatacommunities.org/id/metropolitan-district-council/walsall ,WC161-764,30.04.24,ADULT SOCIAL CARE,ANCHOR HANOVER GROUP - HARDEN HALL CARE HOME,09/04/2024,"2,413.36",6541-Residential EMI,THIRD PARTY PAYMENTS,PRIVATE CONTRACTOR,REVENUE
Walsall Council,http://opendatacommunities.org/id/metropolitan-district-council/walsall ,WC161-765,30.04.24,ADULT SOCIAL CARE,ANCHOR HANOVER GROUP - HARDEN HALL CARE HOME,09/04/2024,"2,240.98",6541-Residential EMI,THIRD PARTY PAYMENTS,PRIVATE CONTRACTOR,REVENUE
Walsall Council,http://opendatacommunities.org/id/metropolitan-district-council/walsall ,WC161-766,30.04.24,ADULT SOCIAL CARE,ANCHOR HANOVER GROUP - HARDEN HALL CARE HOME,09/04/2024,"2,413.36",6541-Residential EMI,THIRD PARTY PAYMENTS,PRIVATE CONTRACTOR,REVENUE
Walsall Council,http://opendatacommunities.org/id/metropolitan-district-council/walsall ,WC161-767,30.04.24,ADULT SOCIAL CARE,ANCHOR HANOVER GROUP - HARDEN HALL CARE HOME,09/04/2024,"2,413.36",6541-Residential EMI,THIRD PARTY PAYMENTS,PRIVATE CONTRACTOR,REVENUE
Walsall Council,http://opendatacommunities.org/id/metropolitan-district-council/walsall ,WC161-768,30.04.24,ADULT SOCIAL CARE,ANCHOR HANOVER GROUP - HARDEN HALL CARE HOME,09/04/2024,"2,413.36",6541-Residential EMI,THIRD PARTY PAYMENTS,PRIVATE CONTRACTOR,REVENUE
Walsall Council,http://opendatacommunities.org/id/metropolitan-district-council/walsall ,WC161-769,30.04.24,ADULT SOCIAL CARE,ANCHOR HANOVER GROUP - HARDEN HALL CARE HOME,09/04/2024,"2,724.20",6541-Residential EMI,THIRD PARTY PAYMENTS,PRIVATE CONTRACTOR,REVENUE
Walsall Council,http://opendatacommunities.org/id/metropolitan-district-council/walsall ,WC161-770,30.04.24,ADULT SOCIAL CARE,ANCHOR HANOVER GROUP - HARDEN HALL CARE HOME,09/04/2024,"2,773.36",6541-Residential EMI,THIRD PARTY PAYMENTS,PRIVATE CONTRACTOR,REVENUE
Walsall Council,http://opendatacommunities.org/id/metropolitan-district-council/walsall ,WC161-771,30.04.24,ADULT SOCIAL CARE,ANCHOR HANOVER GROUP - HARDEN HALL CARE HOME,09/04/2024,"2,137.32",6541-Residential,THIRD PARTY PAYMENTS,PRIVATE CONTRACTOR,REVENUE
Walsall Council,http://opendatacommunities.org/id/metropolitan-district-council/walsall ,WC161-772,30.04.24,ADULT SOCIAL CARE,ANCHOR HANOVER GROUP - HARDEN HALL CARE HOME,09/04/2024,"2,773.36",6541-Residential EMI,THIRD PARTY PAYMENTS,PRIVATE CONTRACTOR,REVENUE
Walsall Council,http://opendatacommunities.org/id/metropolitan-district-council/walsall ,WC161-773,30.04.24,ADULT SOCIAL CARE,ANCHOR HANOVER GROUP - HARDEN HALL CARE HOME,09/04/2024,"2,497.32",6541-Residential,THIRD PARTY PAYMENTS,PRIVATE CONTRACTOR,REVENUE
Walsall Council,http://opendatacommunities.org/id/metropolitan-district-council/walsall ,WC161-774,30.04.24,ADULT SOCIAL CARE,ANCHOR HANOVER GROUP - HARDEN HALL CARE HOME,09/04/2024,"11,118.69",6541-Residential EMI,THIRD PARTY PAYMENTS,PRIVATE CONTRACTOR,REVENUE
Walsall Council,http://opendatacommunities.org/id/metropolitan-district-council/walsall ,WC161-775,30.04.24,ADULT SOCIAL CARE,ANCHOR HANOVER GROUP - HARDEN HALL CARE HOME,09/04/2024,"2,773.36",6541-Residential EMI,THIRD PARTY PAYMENTS,PRIVATE CONTRACTOR,REVENUE
Walsall Council,http://opendatacommunities.org/id/metropolitan-district-council/walsall ,WC161-776,30.04.24,ADULT SOCIAL CARE,ANCHOR HANOVER GROUP - HARDEN HALL CARE HOME,09/04/2024,"2,413.36",6541-Residential EMI,THIRD PARTY PAYMENTS,PRIVATE CONTRACTOR,REVENUE
Walsall Council,http://opendatacommunities.org/id/metropolitan-district-council/walsall ,WC161-777,30.04.24,ADULT SOCIAL CARE,ANCHOR HANOVER GROUP - HARDEN HALL CARE HOME,09/04/2024,"2,773.36",6541-Residential EMI,THIRD PARTY PAYMENTS,PRIVATE CONTRACTOR,REVENUE
Walsall Council,http://opendatacommunities.org/id/metropolitan-district-council/walsall ,WC161-778,30.04.24,ADULT SOCIAL CARE,ANCHOR HANOVER GROUP - HARDEN HALL CARE HOME,09/04/2024,"2,773.36",6541-Residential EMI,THIRD PARTY PAYMENTS,PRIVATE CONTRACTOR,REVENUE
Walsall Council,http://opendatacommunities.org/id/metropolitan-district-council/walsall ,WC161-779,30.04.24,ADULT SOCIAL CARE,ANCHOR HANOVER GROUP - HARDEN HALL CARE HOME,09/04/2024,"2,773.36",6541-Residential EMI,THIRD PARTY PAYMENTS,PRIVATE CONTRACTOR,REVENUE
Walsall Council,http://opendatacommunities.org/id/metropolitan-district-council/walsall ,WC161-780,30.04.24,ADULT SOCIAL CARE,ANCHOR HANOVER GROUP - HARDEN HALL CARE HOME,09/04/2024,"2,613.36",6541-Residential EMI,THIRD PARTY PAYMENTS,PRIVATE CONTRACTOR,REVENUE
Walsall Council,http://opendatacommunities.org/id/metropolitan-district-council/walsall ,WC161-781,30.04.24,ADULT SOCIAL CARE,ANCHOR HANOVER GROUP - HARDEN HALL CARE HOME,09/04/2024,"2,773.36",6541-Residential EMI,THIRD PARTY PAYMENTS,PRIVATE CONTRACTOR,REVENUE
Walsall Council,http://opendatacommunities.org/id/metropolitan-district-council/walsall ,WC161-782,30.04.24,ADULT SOCIAL CARE,ANCHOR HANOVER GROUP - HARDEN HALL CARE HOME,02/04/2024,532.65,6541-Residential,THIRD PARTY PAYMENTS,PRIVATE CONTRACTOR,REVENUE
Walsall Council,http://opendatacommunities.org/id/metropolitan-district-council/walsall ,WC161-783,30.04.24,ADULT SOCIAL CARE,ANCHOR HANOVER GROUP - HARDEN HALL CARE HOME,02/04/2024,"6,360.28",6541-Residential EMI,THIRD PARTY PAYMENTS,PRIVATE CONTRACTOR,REVENUE
Walsall Council,http://opendatacommunities.org/id/metropolitan-district-council/walsall ,WC161-784,30.04.24,CHILDRENS,REDACTED,04/04/2024,323.60,6223-Special Guardianship Orders,TRANSFER PAYMENTS,CHILDREN SOCIAL SERVICES CLIENT,REVENUE
Walsall Council,http://opendatacommunities.org/id/metropolitan-district-council/walsall ,WC161-785,30.04.24,ADULT SOCIAL CARE,REDACTED,04/04/2024,"6,272.00",6541-Direct Payment,THIRD PARTY PAYMENTS,PRIVATE CONTRACTOR,REVENUE
Walsall Council,http://opendatacommunities.org/id/metropolitan-district-council/walsall ,WC161-786,30.04.24,ADULT SOCIAL CARE,REDACTED,04/04/2024,763.80,6541-Direct Payment,THIRD PARTY PAYMENTS,PRIVATE CONTRACTOR,REVENUE
Walsall Council,http://opendatacommunities.org/id/metropolitan-district-council/walsall ,WC161-787,30.04.24,ADULT SOCIAL CARE,REDACTED,04/04/2024,"6,205.66",6541-Direct Payment,THIRD PARTY PAYMENTS,PRIVATE CONTRACTOR,REVENUE
Walsall Council,http://opendatacommunities.org/id/metropolitan-district-council/walsall ,WC161-788,30.04.24,CHILDRENS CAPITAL,ANDREWS ELECTRICAL LTD,12/04/2024,"23,129.00",7155-Site Works Contractors,CAPITAL,"NEW CONSTRUCTION,CONVERSION & RENOVATION",CAPITAL
Walsall Council,http://opendatacommunities.org/id/metropolitan-district-council/walsall ,WC161-789,30.04.24,CHILDRENS CAPITAL,ANDREWS ELECTRICAL LTD,04/04/2024,"26,778.00",7150-Site Works Contractors,CAPITAL,"NEW CONSTRUCTION,CONVERSION & RENOVATION",CAPITAL
Walsall Council,http://opendatacommunities.org/id/metropolitan-district-council/walsall ,WC161-790,30.04.24,CHILDRENS CAPITAL,ANDREWS ELECTRICAL LTD,10/04/2024,"38,000.00",7150-Site Works Contractors,CAPITAL,"NEW CONSTRUCTION,CONVERSION & RENOVATION",CAPITAL
Walsall Council,http://opendatacommunities.org/id/metropolitan-district-council/walsall ,WC161-791,30.04.24,CHILDRENS CAPITAL,ANDREWS ELECTRICAL LTD,24/04/2024,"8,655.31",7150-Site Works Contractors,CAPITAL,"NEW CONSTRUCTION,CONVERSION & RENOVATION",CAPITAL
Walsall Council,http://opendatacommunities.org/id/metropolitan-district-council/walsall ,WC161-792,30.04.24,CHILDRENS CAPITAL,ANDREWS ELECTRICAL LTD,30/04/2024,"19,916.00",7150-Site Works Contractors,CAPITAL,"NEW CONSTRUCTION,CONVERSION & RENOVATION",CAPITAL
Walsall Council,http://opendatacommunities.org/id/metropolitan-district-council/walsall ,WC161-793,30.04.24,CHILDRENS CAPITAL,ANDREWS ELECTRICAL LTD,12/04/2024,-823.00,7155-Site Works Contractors,CAPITAL,"NEW CONSTRUCTION,CONVERSION & RENOVATION",CAPITAL
Walsall Council,http://opendatacommunities.org/id/metropolitan-district-council/walsall ,WC161-794,30.04.24,ADULT SOCIAL CARE,ANGEL SOLUTIONS LTD,08/04/2024,"4,428.00",6550-Fees & Licences,SUPPLIES & SERVICES,SERVICES,REVENUE
Walsall Council,http://opendatacommunities.org/id/metropolitan-district-council/walsall ,WC161-795,30.04.24,CHILDRENS,REDACTED,04/04/2024,"2,714.14",6223-Special Guardianship Orders,TRANSFER PAYMENTS,CHILDREN SOCIAL SERVICES CLIENT,REVENUE
Walsall Council,http://opendatacommunities.org/id/metropolitan-district-council/walsall ,WC161-796,30.04.24,CHILDRENS,REDACTED,04/04/2024,-513.67,6223-Special Guardianship Orders,TRANSFER PAYMENTS,CHILDREN SOCIAL SERVICES CLIENT,REVENUE
Walsall Council,http://opendatacommunities.org/id/metropolitan-district-council/walsall ,WC161-797,30.04.24,ADULT SOCIAL CARE,REDACTED,04/04/2024,708.76,6541-Direct Payment,THIRD PARTY PAYMENTS,PRIVATE CONTRACTOR,REVENUE
Walsall Council,http://opendatacommunities.org/id/metropolitan-district-council/walsall ,WC161-798,30.04.24,CHILDRENS,REDACTED,04/04/2024,"2,733.62",6223-Special Guardianship Orders,TRANSFER PAYMENTS,CHILDREN SOCIAL SERVICES CLIENT,REVENUE
Walsall Council,http://opendatacommunities.org/id/metropolitan-district-council/walsall ,WC161-799,30.04.24,CHILDRENS,ANGELS AND BUTTERFLIES CHILDMINDING,17/04/2024,"2,369.25",1184-Other-Grants to Other Orgs,SUPPLIES & SERVICES,GRANTS (EXP) & SUBSCRIPTIONS,REVENUE
Walsall Council,http://opendatacommunities.org/id/metropolitan-district-council/walsall ,WC161-800,30.04.24,CHILDRENS,ANGELS AND BUTTERFLIES CHILDMINDING,19/04/2024,"1,387.13",1184-Other-Grants to Other Orgs,SUPPLIES & SERVICES,GRANTS (EXP) & SUBSCRIPTIONS,REVENUE
Walsall Council,http://opendatacommunities.org/id/metropolitan-district-council/walsall ,WC161-801,30.04.24,CHILDRENS,ANGELS AND BUTTERFLIES CHILDMINDING,19/04/2024,-364.50,1184-Other-Grants to Other Orgs,SUPPLIES & SERVICES,GRANTS (EXP) & SUBSCRIPTIONS,REVENUE
Walsall Council,http://opendatacommunities.org/id/metropolitan-district-council/walsall ,WC161-802,30.04.24,CHILDRENS,ANGELS AND BUTTERFLIES CHILDMINDING,17/04/2024,"7,107.75",1184-Other-Grants to Other Orgs,SUPPLIES & SERVICES,GRANTS (EXP) & SUBSCRIPTIONS,REVENUE
Walsall Council,http://opendatacommunities.org/id/metropolitan-district-council/walsall ,WC161-803,30.04.24,CHILDRENS,ANGELS AND BUTTERFLIES CHILDMINDING,19/04/2024,546.75,1184-Other-Grants to Other Orgs,SUPPLIES & SERVICES,GRANTS (EXP) & SUBSCRIPTIONS,REVENUE
Walsall Council,http://opendatacommunities.org/id/metropolitan-district-council/walsall ,WC161-804,30.04.24,CHILDRENS,ANGELS AND BUTTERFLIES CHILDMINDING,03/04/2024,315.40,1265-Early Years Supplementary Grant Expenditure,TRANSFER PAYMENTS,SCHOOLCHILDREN/STUDENTS,REVENUE
Walsall Council,http://opendatacommunities.org/id/metropolitan-district-council/walsall ,WC161-805,30.04.24,CHILDRENS,ANGELS AND BUTTERFLIES CHILDMINDING,03/04/2024,473.10,1265-Early Years Supplementary Grant Expenditure,TRANSFER PAYMENTS,SCHOOLCHILDREN/STUDENTS,REVENUE
Walsall Council,http://opendatacommunities.org/id/metropolitan-district-council/walsall ,WC161-806,30.04.24,ADULT SOCIAL CARE,REDACTED,04/04/2024,"1,320.00",6541-Direct Payment,THIRD PARTY PAYMENTS,PRIVATE CONTRACTOR,REVENUE
Walsall Council,http://opendatacommunities.org/id/metropolitan-district-council/walsall ,WC161-807,30.04.24,CHILDRENS,REDACTED,04/04/2024,417.96,6223-Residents Orders,TRANSFER PAYMENTS,CHILDREN SOCIAL SERVICES CLIENT,REVENUE
Walsall Council,http://opendatacommunities.org/id/metropolitan-district-council/walsall ,WC161-808,30.04.24,CHILDRENS,REDACTED,04/04/2024,"1,604.76",6223-Internal Foster Carers-Carer Fees,TRANSFER PAYMENTS,CHILDREN SOCIAL SERVICES CLIENT,REVENUE
Walsall Council,http://opendatacommunities.org/id/metropolitan-district-council/walsall ,WC161-809,30.04.24,CHILDRENS,REDACTED,04/04/2024,756.00,6223-Foster Carers Maintenance Allowance,TRANSFER PAYMENTS,CHILDREN SOCIAL SERVICES CLIENT,REVENUE
Walsall Council,http://opendatacommunities.org/id/metropolitan-district-council/walsall ,WC161-810,30.04.24,CHILDRENS,ANNOR PROPERTIES LTD,11/04/2024,"2,925.00",6222-Section 1/17Child Care Act 1989-Assistance to S/S Clients,TRANSFER PAYMENTS,CHILDREN SOCIAL SERVICES CLIENT,REVENUE
Walsall Council,http://opendatacommunities.org/id/metropolitan-district-council/walsall ,WC161-811,30.04.24,ADULT SOCIAL CARE,ANSON COURT RESIDENTIAL HOME,09/04/2024,"2,413.36",6541-Residential EMI,THIRD PARTY PAYMENTS,PRIVATE CONTRACTOR,REVENUE
Walsall Council,http://opendatacommunities.org/id/metropolitan-district-council/walsall ,WC161-812,30.04.24,ADULT SOCIAL CARE,ANSON COURT RESIDENTIAL HOME,09/04/2024,"2,337.32",6541-Residential,THIRD PARTY PAYMENTS,PRIVATE CONTRACTOR,REVENUE
Walsall Council,http://opendatacommunities.org/id/metropolitan-district-council/walsall ,WC161-813,30.04.24,ADULT SOCIAL CARE,ANSON COURT RESIDENTIAL HOME,09/04/2024,948.11,6541-Residential EMI,THIRD PARTY PAYMENTS,PRIVATE CONTRACTOR,REVENUE
Walsall Council,http://opendatacommunities.org/id/metropolitan-district-council/walsall ,WC161-814,30.04.24,ADULT SOCIAL CARE,ANSON COURT RESIDENTIAL HOME,09/04/2024,"2,613.36",6541-Residential EMI,THIRD PARTY PAYMENTS,PRIVATE CONTRACTOR,REVENUE
Walsall Council,http://opendatacommunities.org/id/metropolitan-district-council/walsall ,WC161-815,30.04.24,ADULT SOCIAL CARE,ANSON COURT RESIDENTIAL HOME,09/04/2024,"2,613.36",6541-Residential EMI,THIRD PARTY PAYMENTS,PRIVATE CONTRACTOR,REVENUE
